{"text_format":"1","workbook":"xlsx","n_sheets":31,"sheets":["MEC MASTER11","MEC LICENCE10","MEC MASTER12","GC MASTER11","GC LICENCE10","GC MASTER12","EAI LICENCE10","EAI MASTER12","EAI MASTER11","MAT MASTER11","MAT MASTER12","MAT LICENCE10","DGPI LICENCE10","DGPI MASTER11","ENV MASTER12","MI LICENCE","TA MASTER12","TA MASTER11","ENV LICENCE10","MI MASTER11","MI MASTER12","EN LICENCE10","EN MASTER11","EN MASTER12","TC S31","TC S32","TC S34","TC S36","TC S38","TC S39","TC S310"],"not_rendered":{"charts":0,"images":0,"macros":1,"external_links":2,"defined_names":133,"comments":0,"pivot_tables":0},"unopened":[],"bounds":{"document_bytes":16777216,"sheet_cells":100000,"rows_first":2000,"rows_last":500,"rows_between":2000,"halvings":0,"cell_chars":16384,"cell_head_chars":4096},"cells_cut":0,"cells_raw":0,"read":"whole","date_system":"1900"}

{"sheet":"MEC MASTER11","index":0,"n_rows":36,"n_cols":18,"rows_kept":36,"cut":false,"hidden":false,"merged":[[0,9,0,13],[33,0,35,0],[3,0,8,0],[9,0,14,0],[0,0,0,1],[21,0,26,0],[15,0,20,0],[27,0,32,0]]}
["Departement:",null,null,null,null,"MECANIQUE",null,null,null,"Spécialite:const-fab-stru-chaudronnerie"]
[{"$f":"TODAY()","v":"2017-10-05"},"Section:",null,null,null,"MASTER 2ème année"]
["Jour","SEANCES","MCM-16","Enseignant","Salle","MCM16","MFMP16","Enseignant","Salle","MFMP16","MSM16","Enseignant","Salle","MSM16","MOCP16","Enseignant","Salle","MOCP16"]
["Dimanche","8h 00                     9h 30","P-AU-CHOIX©","X","C310","P-AU-CHOIX© X C310","BUREAU DES METHODES©","TOURAB","B417","BUREAU DES METHODES© TOURAB B417"]
[null,"9h 40                 11h 10","P-AU-CHOIX©","X","C310","P-AU-CHOIX© X C310","BUREAU DES METHODES(TD)","TOURAB","B417","BUREAU DES METHODES(TD) TOURAB B417","ANGLAIS©","X","B35","ANGLAIS© X B35","ANGLAIS©","X","B413","ANGLAIS© X B413"]
[null,"11h20                 12h 50"]
[null,"13h 00              14h 30","TURBOMACHINES©","BRAHIMI","B311","TURBOMACHINES© BRAHIMI B311",null,null,null,null,"CON-MEF©","ABED-ZIANE","B38","CON-MEF© ABED-ZIANE B38","DAO-CAO©","CHALLALI","A14","DAO-CAO© CHALLALI A14"]
[null,"14h 40              16h 10",null,null,null,null,null,null,null,null,"CON-MEF(TD)","ABED-ZIANE","B38","CON-MEF(TD) ABED-ZIANE B38","DAO-CAO(TD)","CHALLALI","A14","DAO-CAO(TD) CHALLALI A14"]
[null,"16h 20              17h 50"]
["Lundi","8h 00                    9h 30","BUREAU DES METHODES©","TALHI","B313","BUREAU DES METHODES© TALHI B313","M-D-R FATIGUE©","LECHEB","B214","M-D-R FATIGUE© LECHEB B214",null,null,null,null,"EXPLOIT-LOG(TD)","SAHALI","C43","EXPLOIT-LOG(TD) SAHALI C43"]
[null,"9h 40                  11h 10","BUREAU DES METHODES(TP)","TALHI","B313","BUREAU DES METHODES(TP) TALHI B313","M-D-R FATIGUE(TD)","LECHEB","B214","M-D-R FATIGUE(TD) LECHEB B214",null,null,null,null,"DAO-CAO(TP)","CHALLALI","C43","DAO-CAO(TP) CHALLALI C43"]
[null,"11h20                12h 50",null,null,null,null,"USINAG-SURF-GAUCHE(TD)","CHALLALI","B214","USINAG-SURF-GAUCHE(TD) CHALLALI B214","CAL-STRUCTAO©","MESKINE","B42","CAL-STRUCTAO© MESKINE B42"]
[null,"13h 00              14h 30","M-D-R-FATIGUE©","LECHEB","A22","M-D-R-FATIGUE© LECHEB A22","BUREAU DES METHODES(TP)","BOUHABILA","C310","BUREAU DES METHODES(TP) BOUHABILA C310","TECH-MEF©","BOUZIANE","B212","TECH-MEF© BOUZIANE B212"]
[null,"14h 40              16h 10","M-D-R-FATIGUE(TD)","LECHEB","A22","M-D-R-FATIGUE(TD) LECHEB A22",null,null,null,null,"TECH-MEF(TD)","BOUZIANE","B212","TECH-MEF(TD) BOUZIANE B212"]
[null,"16h 20              17h 50"]
["Mardi","8h 00                    9h 30","DYNAM-MACH-TOURNANTES©","NOUR","RC13","DYNAM-MACH-TOURNANTES© NOUR RC13","USINAG-SURF-GAUCHE©","BELAIDI-I","C42","USINAG-SURF-GAUCHE© BELAIDI-I C42"]
[null,"9h 40                 11h 10","DYNAM-MACH-TOURNANTES(TD)","NOUR","RC13","DYNAM-MACH-TOURNANTES(TD) NOUR RC13","USINAGE  A GRANDE VITESSE©","BELAIDI-I","C42","USINAGE  A GRANDE VITESSE© BELAIDI-I C42","CND©","IFRAH","B418","CND© IFRAH B418","CND©","IFRAH","B418","CND© IFRAH B418"]
[null,"11h20                12h 50","MAT-FERR-NON-FER©","AITSAADA","C310","MAT-FERR-NON-FER© AITSAADA C310",null,null,null,null,"CND(TD)","IFRAH","B418","CND(TD) IFRAH B418","CND(TD)","IFRAH","B418","CND(TD) IFRAH B418"]
[null,"13h 00              14h 30",null,null,null,null,"TECHNIQUE DE SOUDAGE(TP)","BOUZIANE","ATFM","TECHNIQUE DE SOUDAGE(TP) BOUZIANE ATFM","CON-MEF©","ABED-ZIANE","C32","CON-MEF© ABED-ZIANE C32","CND(TP)","LECHEB","AT16","CND(TP) LECHEB AT16"]
[null,"14h 40              16h 10","LOGICIEL-SIMUL-NUM-MEE(TP)","MECHAKRA","A26","LOGICIEL-SIMUL-NUM-MEE(TP) MECHAKRA A26","TECHNIQUE DE SOUDAGE(TP)","BOUZIANE","ATFM","TECHNIQUE DE SOUDAGE(TP) BOUZIANE ATFM",null,null,null,null,"CND(TP)","LECHEB","AT16","CND(TP) LECHEB AT16"]
[null,"16h 20              17h 50"]
["Mercredi","8h 00                    9h 30","MATER-COMPOSITES©","MECHAKRA","C37","MATER-COMPOSITES© MECHAKRA C37","DYN-MACH-TOUR©","NOUR","RC13","DYN-MACH-TOUR© NOUR RC13"]
[null,"9h 40                 11h 10","MATER-COMPOSITES(TD)","MECHAKRA","C37","MATER-COMPOSITES(TD) MECHAKRA C37","DYN-MACH-TOUR(TD)","NOUR","RC13","DYN-MACH-TOUR(TD) NOUR RC13","METH-FAB©","IFRAH","AP1","METH-FAB© IFRAH AP1","BUREAUX METH©","IFRAH","AP1","BUREAUX METH© IFRAH AP1"]
[null,"11h20                12h 50",null,null,null,null,null,null,null,null,"METH-FAB(TD)","IFRAH","AP1","METH-FAB(TD) IFRAH AP1","BUREAUX METH(TD)","IFRAH","AP1","BUREAUX METH(TD) IFRAH AP1"]
[null,"13h 00              14h 30","TURBOMACHINES(TP)","BRAHIMI","RC13","TURBOMACHINES(TP) BRAHIMI RC13","P-AU-CHOIX©","X","C37","P-AU-CHOIX© X C37",null,null,null,null,"HSE©","IFRAH","A16","HSE© IFRAH A16"]
[null,"14h 40              16h 10","MAT-FERR-NON-FER(TD)","AITSAADA","RC13","MAT-FERR-NON-FER(TD) AITSAADA RC13",null,null,null,null,null,null,null,null,"HSE(TD)","IFRAH","A16","HSE(TD) IFRAH A16"]
[null,"16h 20              17h 50"]
["Jeudi","8h 00                     9h 30","RECHERCHE-DOC-CON-MEM©","ALEM","C48","RECHERCHE-DOC-CON-MEM© ALEM C48","RECHERCHE-DOC-CON-MEM©","ALEM","C48","RECHERCHE-DOC-CON-MEM© ALEM C48","CALCUL SISMIQUE©","OUAKLI","B36","CALCUL SISMIQUE© OUAKLI B36"]
[null,"9h 40                  11h 10","CHARP-METALLIQUE©","MESKINE","RC13","CHARP-METALLIQUE© MESKINE RC13","P-AU-CHOIX©","X","C310","P-AU-CHOIX© X C310","CALCUL SISMIQUE(TD)","OUAKLI","B36","CALCUL SISMIQUE(TD) OUAKLI B36","INSTRUMENT©","MASSOUT","C37","INSTRUMENT© MASSOUT C37"]
[null,"11h20                 12h 50",null,null,null,null,"MOL-ING-PLASTIC©","MESKINE","C310","MOL-ING-PLASTIC© MESKINE C310",null,null,null,null,"INSTRUMENT©","MASSOUT","C37","INSTRUMENT© MASSOUT C37"]
[null,"13h 00              14h 30",null,null,null,null,"MOL-ING-PLASTIC(TP)","MESKINE","C310","MOL-ING-PLASTIC(TP) MESKINE C310"]
[null,"14h 40              16h 10"]
[null,"16h 20              17h 50"]
["Samedi","8h 00                     9h 30"]
[null,"9h 40                  11h 10"]
[null,"11h20                 12h 50"]

{"sheet":"MEC LICENCE10","index":1,"n_rows":36,"n_cols":18,"rows_kept":36,"cut":false,"hidden":false,"merged":[[0,0,0,5],[21,0,26,0],[27,0,32,0],[33,0,35,0],[3,0,8,0],[9,0,14,0],[15,0,20,0]]}
["Dep:G-Mécanique",null,null,null,null,null,null,null,null,"Filière:Construction Mécanique",null,null,null,"Spécialite:Construction Mécanique"]
[{"$f":"TODAY()","v":"2017-10-05"},"Section:",null,null,null,"Licence 3ème année"]
["Jour","SEANCES","LCM-15/A","Enseignant","Salle","LCM-15/A","LCM-15/B","Enseignant","Salle","LCM-15/B","LCM-15/C","Enseignant","Salle","LCM-15/C","LCM-14/D","Enseignant","Salle","LCM-14/D"]
["Dimanche","8h 00                     9h 30","DESSIN(TP)","MAIZA","AT23","DESSIN(TP) MAIZA AT23",null,null,null,null,null,null,null,null,"CFAO(TP)","XX","XX","CFAO(TP) XX XX"]
[null,"9h 40                 11h 10","DESSIN(TP)","MAIZA","AT23","DESSIN(TP) MAIZA AT23",null,null,null,null,"CONSTR-MEC(TD)","BOUDIEB","A22","CONSTR-MEC(TD) BOUDIEB A22","CFAO(TP)","XX","XX","CFAO(TP) XX XX"]
[null,"11h20                 12h 50",null,null,null,null,"CONSTR-MEC(TD)","BOUDIEB","C49","CONSTR-MEC(TD) BOUDIEB C49"]
[null,"13h 00              14h 30","ASSERV ET REGULAT©","BOUMEDINE","AP3","ASSERV ET REGULAT© BOUMEDINE AP3","ASSERV ET REGULAT©","BOUMEDINE","AP3","ASSERV ET REGULAT© BOUMEDINE AP3","ASSERV ET REGULAT©","BOUMEDINE","AP3","ASSERV ET REGULAT© BOUMEDINE AP3","MEC ANALYTIQUE©","XX","XX","MEC ANALYTIQUE© XX XX"]
[null,"14h 40              16h 10","CONSTR MEC©","BOUDIEB","AP3","CONSTR MEC© BOUDIEB AP3","CONSTR MEC©","BOUDIEB","AP3","CONSTR MEC© BOUDIEB AP3","CONSTR MEC©","BOUDIEB","AP3","CONSTR MEC© BOUDIEB AP3","CONSTR MEC©","XX","XX","CONSTR MEC© XX XX"]
[null,"16h 20              17h 50"]
["Lundi","8h 00                    9h 30","ENVR ET DEVLOPP DURABLE©","MOHAMMEDI","AP3","ENVR ET DEVLOPP DURABLE© MOHAMMEDI AP3","ENVR ET DEVLOPP DURABLE©","MOHAMMEDI","AP3","ENVR ET DEVLOPP DURABLE© MOHAMMEDI AP3","ENVR ET DEVLOPP DURABLE©","MOHAMMEDI","AP3","ENVR ET DEVLOPP DURABLE© MOHAMMEDI AP3","RESIST DES MATR©","XX","XX","RESIST DES MATR© XX XX"]
[null,"9h 40                  11h 10","MEC ANALYTIQUE©","HEDEILI-F","AP3","MEC ANALYTIQUE© HEDEILI-F AP3","MEC ANALYTIQUE©","HEDEILI-F","AP3","MEC ANALYTIQUE© HEDEILI-F AP3","MEC ANALYTIQUE©","HEDEILI-F","AP3","MEC ANALYTIQUE© HEDEILI-F AP3","MEC ANALYTIQUE©","XX","XX","MEC ANALYTIQUE© XX XX"]
[null,"11h20                12h 50"]
[null,"13h 00              14h 30",null,null,null,null,"DESSIN(TP)","MAIZA","AT24","DESSIN(TP) MAIZA AT24","CFAO(TP)","HAMRANI","RC9/B","CFAO(TP) HAMRANI RC9/B","MEC ANALYTIQUE(TD)","XX","XX","MEC ANALYTIQUE(TD) XX XX"]
[null,"14h 40              16h 10",null,null,null,null,"DESSIN(TP)","MAIZA","AT24","DESSIN(TP) MAIZA AT24","CFAO(TP)","HAMRANI","RC9/B","CFAO(TP) HAMRANI RC9/B"]
[null,"16h 20              17h 50"]
["Mardi","8h 00                    9h 30","MAINTENANCE©","BENAMMAR","AP1","MAINTENANCE© BENAMMAR AP1","MAINTENANCE©","BENAMMAR","AP1","MAINTENANCE© BENAMMAR AP1","MAINTENANCE©","BENAMMAR","AP1","MAINTENANCE© BENAMMAR AP1","DESSIN(TP)","XX","XX","DESSIN(TP) XX XX"]
[null,"9h 40                 11h 10","RESIST DES MATR(TD)","CHIKH","C49","RESIST DES MATR(TD) CHIKH C49","ELASTICITE(TD)","DJOUAD","C37","ELASTICITE(TD) DJOUAD C37",null,null,null,null,"DESSIN(TP)","XX","XX","DESSIN(TP) XX XX"]
[null,"11h20                12h 50",null,null,null,null,null,null,null,null,null,null,null,null,"ELASTICITE©","XX","XX","ELASTICITE© XX XX"]
[null,"13h 00              14h 30","ELASTICITE©","DJOUAD","AP1","ELASTICITE© DJOUAD AP1","ELASTICITE©","DJOUAD","AP1","ELASTICITE© DJOUAD AP1","ELASTICITE©","DJOUAD","AP1","ELASTICITE© DJOUAD AP1"]
[null,"14h 40              16h 10","RESIST DES MATR©","CHIKH","AP1","RESIST DES MATR© CHIKH AP1","RESIST DES MATR©","CHIKH","AP1","RESIST DES MATR© CHIKH AP1","RESIST DES MATR©","CHIKH","AP1","RESIST DES MATR© CHIKH AP1","MAINTENANCE©","XX","XX","MAINTENANCE© XX XX"]
[null,"16h 20              17h 50"]
["Mercredi","8h 00                    9h 30",null,null,null,null,"CFAO(TP)","HAMRANI","AB12","CFAO(TP) HAMRANI AB12","METROLOGIE(TP)","CHALLA","ATFMS","METROLOGIE(TP) CHALLA ATFMS"]
[null,"9h 40                 11h 10",null,null,null,null,"CFAO(TP)","HAMRANI","AB12","CFAO(TP) HAMRANI AB12","METROLOGIE(TP)","CHALLA","ATFMS","METROLOGIE(TP) CHALLA ATFMS"]
[null,"11h20                12h 50","CONSTR MEC(TD)","BOUDIEB","A21","CONSTR MEC(TD) BOUDIEB A21",null,null,null,null,"RESIST DES MATR(TD)","CHIKH","A14","RESIST DES MATR(TD) CHIKH A14"]
[null,"13h 00              14h 30","CFAO(TP)","HAMRANI","A26","CFAO(TP) HAMRANI A26","RESIST DES MATR(TD)","CHIKH","A21","RESIST DES MATR(TD) CHIKH A21",null,null,null,null,"CONSTR MEC(TD)","XX","XX","CONSTR MEC(TD) XX XX"]
[null,"14h 40              16h 10","CFAO(TP)","HAMRANI","A26","CFAO(TP) HAMRANI A26","MEC ANALYTIQUE(TD)","HEDEILI-F","A21","MEC ANALYTIQUE(TD) HEDEILI-F A21",null,null,null,null,"R-D-M(TD)","XX","XX","R-D-M(TD) XX XX"]
[null,"16h 20              17h 50"]
["Jeudi","8h 00                     9h 30","MEC ANALYTIQUE©","HEDEILI-F","AP1","MEC ANALYTIQUE© HEDEILI-F AP1","MEC ANALYTIQUE©","HEDEILI-F","AP1","MEC ANALYTIQUE© HEDEILI-F AP1","MEC ANALYTIQUE©","HEDEILI-F","AP1","MEC ANALYTIQUE© HEDEILI-F AP1","ENVR ET DEVLOPP DURABLE©","XX","XX","ENVR ET DEVLOPP DURABLE© XX XX"]
[null,"9h 40                  11h 10","METROLOGIE(TP)","CHALLA","ATFMS","METROLOGIE(TP) CHALLA ATFMS",null,null,null,null,null,null,null,null,"ASSERV ET REGULAT©","XX","XX","ASSERV ET REGULAT© XX XX"]
[null,"11h20                 12h 50","METROLOGIE(TP)","CHALLA","ATFMS","METROLOGIE(TP) CHALLA ATFMS"]
[null,"13h 00              14h 30",null,null,null,null,"METROLOGIE(TP)","CHALLA","ATFMS","METROLOGIE(TP) CHALLA ATFMS","DESSIN(TP)","MAIZA","AT23","DESSIN(TP) MAIZA AT23"]
[null,"14h 40              16h 10",null,null,null,null,"METROLOGIE(TP)","CHALLA","ATFMS","METROLOGIE(TP) CHALLA ATFMS","DESSIN(TP)","MAIZA","AT23","DESSIN(TP) MAIZA AT23"]
[null,"16h 20              17h 50"]
["Samedi","8h 00                     9h 30","ELASTICITE(TD)","DJOUAD","A23","ELASTICITE(TD) DJOUAD A23"]
[null,"9h 40                  11h 10","MEC ANALYTIQUE(TD)","HEDEILI-N","A23","MEC ANALYTIQUE(TD) HEDEILI-N A23",null,null,null,null,"ELASTICITE(TD)","DJOUAD","A25","ELASTICITE(TD) DJOUAD A25","METROLOGIE(TP)","XX","XX","METROLOGIE(TP) XX XX"]
[null,"11h20                 12h 50",null,null,null,null,null,null,null,null,"MEC ANALYTIQUE(TD)","HEDEILI-N","A25","MEC ANALYTIQUE(TD) HEDEILI-N A25","ELASTICITE(TD)","XX","XX","ELASTICITE(TD) XX XX"]

{"sheet":"MEC MASTER12","index":2,"n_rows":36,"n_cols":18,"rows_kept":36,"cut":false,"hidden":false,"merged":[[33,0,35,0],[0,0,0,1],[3,0,8,0],[9,0,14,0],[15,0,20,0],[21,0,26,0],[27,0,32,0]]}
["Filière:génie  mécanique",null,null,null,null,null,null,null,null,"Spécialité:Construction-fabrication",null,null,null,"structure mecanique",null,null,null,"chaudronnerie"]
[{"$f":"TODAY()","v":"2017-10-05"},"Section:",null,null,null,"Mastre 1ère année"]
["Jour","SEANCES","MCM-17","Enseignant","Salle","MCM-17","MFMP-17","Enseignant","Salle","MFMP-17","MSM-17","Enseignant","Salle","MSM-17","MOCP17","Enseignant","Salle","MOCP17"]
["Dimanche","8h 00                     9h 30","MOTEUR A COND©","MERAH","C48","MOTEUR A COND© MERAH C48","MATERIAUX©","AITSAADA","B310","MATERIAUX© AITSAADA B310","ELEMENT FINIS I©","XX","XX","ELEMENT FINIS I© XX XX"]
[null,"9h 40                 11h 10","MOTEUR A COND(TD)","MERAH","C48","MOTEUR A COND(TD) MERAH C48","MATERIAUX(TD)","AITSAADA","B310","MATERIAUX(TD) AITSAADA B310","ELEMENT FINIS I©","XX","XX","ELEMENT FINIS I© XX XX"]
[null,"11h20                 12h 50",null,null,null,null,null,null,null,null,"CHAUDRONNERIE-TUYAUTERIE I©","XX","XX","CHAUDRONNERIE-TUYAUTERIE I© XX XX","DYN DES STRUCTURES II(TD)","HAMRANI","C43","DYN DES STRUCTURES II(TD) HAMRANI C43"]
[null,"13h 00              14h 30","RDM(TP);MDF(TP)","BELHADEF;X","AT13;RC7","RDM(TP) BELHADEF AT13\nMDF(TP) X RC7",null,null,null,null,null,null,null,null,"CHAUDRONNERIR I©","CHEBAB","C43","CHAUDRONNERIR I© CHEBAB C43"]
[null,"14h 40              16h 10","RDM(TP);MDF(TP)","BELHADEF;X","AT13;RC7","RDM(TP) BELHADEF AT13\nMDF(TP) X RC7",null,null,null,null,null,null,null,null,"CHAUDRONNERIR I(TD)","CHEBAB","C43","CHAUDRONNERIR I(TD) CHEBAB C43"]
[null,"16h 20              17h 50"]
["Lundi","8h 00                    9h 30","TECH-FAB-COND-AV©","BOUHABILA","C310","TECH-FAB-COND-AV© BOUHABILA C310","COUP DES METAUX©","BELAIDI-I","C37","COUP DES METAUX© BELAIDI-I C37","CONCEPTION METALIQUE I©","XX","XX","CONCEPTION METALIQUE I© XX XX","SOUDAGE©","BOUTOUTAOU","B212","SOUDAGE© BOUTOUTAOU B212"]
[null,"9h 40                  11h 10","ANGLAIS©","X","B49","ANGLAIS© X B49","COUP DES METAUX(TD)","BELAIDI-I","C37","COUP DES METAUX(TD) BELAIDI-I C37","CONCEPTION METALIQUE©","XX","XX","CONCEPTION METALIQUE© XX XX","ELEMENTS FINIS ET PROGR©","BOUTOUTAOU","B212","ELEMENTS FINIS ET PROGR© BOUTOUTAOU B212"]
[null,"11h20                12h 50",null,null,null,null,null,null,null,null,"CONCEPT-MET(TD)","XX","XX","CONCEPT-MET(TD) XX XX","DYN DES STRUCTURES II©","HAMRANI","B212","DYN DES STRUCTURES II© HAMRANI B212"]
[null,"13h 00              14h 30","MAINT-INDUST©","BENAMMAR","AP4","MAINT-INDUST© BENAMMAR AP4","MAINT-INDUST©","BENAMMAR","AP4","MAINT-INDUST© BENAMMAR AP4"]
[null,"14h 40              16h 10","CHARPENTE-METALIQUE©","MESKINE","B32","CHARPENTE-METALIQUE© MESKINE B32","H-S-I©","REGUEB","B39","H-S-I© REGUEB B39","TECH-SOUDAGE(TD)","XX","XX","TECH-SOUDAGE(TD) XX XX","SOUDAGE(TD)","BOUTOUTAOU","B213","SOUDAGE(TD) BOUTOUTAOU B213"]
[null,"16h 20              17h 50"]
["Mardi","8h 00                    9h 30","DY-FLUIDES-APP©","MERAH","B414","DY-FLUIDES-APP© MERAH B414",null,null,null,null,"VIBRATION DES STRUCTURES(TD)","XX","XX","VIBRATION DES STRUCTURES(TD) XX XX","PLASTICITE©","HEDEILI-N","B212","PLASTICITE© HEDEILI-N B212"]
[null,"9h 40                 11h 10","DY-FLUIDES-APP(TD)","MERAH","B312","DY-FLUIDES-APP(TD) MERAH B312","M-M-C©","BENSAFIA","B313","M-M-C© BENSAFIA B313",null,null,null,null,"PLASTICITE(TD)","HEDEILI-N","B212","PLASTICITE(TD) HEDEILI-N B212"]
[null,"11h20                12h 50",null,null,null,null,"M-M-C(TD)","BENSAFIA","B313","M-M-C(TD) BENSAFIA B313","ELEMENTS FINIS I(TD)","XX","XX","ELEMENTS FINIS I(TD) XX XX","M-D-R©","HACHEMANE","B212","M-D-R© HACHEMANE B212"]
[null,"13h 00              14h 30","R-D-M-A©","CHIKH","B38","R-D-M-A© CHIKH B38",null,null,null,null,"STABI-ELEM-STRUCT©","XX","XX","STABI-ELEM-STRUCT© XX XX"]
[null,"14h 40              16h 10","M-M-C©","BENSAFIA","B36","M-M-C© BENSAFIA B36","MACHINES OUTILS©","CHALLALI","B313","MACHINES OUTILS© CHALLALI B313"]
[null,"16h 20              17h 50"]
["Mercredi","8h 00                    9h 30",null,null,null,null,"PROCEDES M-E-F©","BENDJEDDOU","C49","PROCEDES M-E-F© BENDJEDDOU C49",null,null,null,null,"ELEMENTS FINIS ET PROGR©","BOUTOUTAOU","B212","ELEMENTS FINIS ET PROGR© BOUTOUTAOU B212"]
[null,"9h 40                 11h 10","M-M-C©","BENSAFIA","B36","M-M-C© BENSAFIA B36","ANGLAIS©","X","C49","ANGLAIS© X C49",null,null,null,null,"ELEMENTS FINIS ET PROGR(TD) ","BOUTOUTAOU","B212","ELEMENTS FINIS ET PROGR(TD)  BOUTOUTAOU B212"]
[null,"11h20                12h 50","M-M-C(TD)","BENSAFIA","B36","M-M-C(TD) BENSAFIA B36"]
[null,"13h 00              14h 30",null,null,null,null,"FABR-MEC-METROL(TP);METROLOGIE(TP)","BELLAL;CHALLA","ATFM;ATFMS","FABR-MEC-METROL(TP) BELLAL ATFM\nMETROLOGIE(TP) CHALLA ATFMS",null,null,null,null,"M-D-R(TD) ","HACHEMANE","C43","M-D-R(TD)  HACHEMANE C43"]
[null,"14h 40              16h 10","R-D-M(TD)","CHIKH","B32","R-D-M(TD) CHIKH B32","FABR-MEC-METROL(TP);METROLOGIE(TP)","BELLAL;CHALLA","ATFM;ATFMS","FABR-MEC-METROL(TP) BELLAL ATFM\nMETROLOGIE(TP) CHALLA ATFMS",null,null,null,null,"SOUDAGE©","BOUTOUTAOU","C43","SOUDAGE© BOUTOUTAOU C43"]
[null,"16h 20              17h 50"]
["Jeudi","8h 00                     9h 30","TECH-FAB-COND-AV(TP)","BELLAL+HALFAOUI","FM","TECH-FAB-COND-AV(TP) BELLAL+HALFAOUI FM","PROCEDES M-E-F(TD)","BENDJEDDOU","A13","PROCEDES M-E-F(TD) BENDJEDDOU A13"]
[null,"9h 40                  11h 10","TECH-FAB-COND-AV(TP)","BELLAL+HALFAOUI","FM","TECH-FAB-COND-AV(TP) BELLAL+HALFAOUI FM","ROBOTIQUE-INDUST©","HEDEILI-F","A13","ROBOTIQUE-INDUST© HEDEILI-F A13","VIBRATIOIN DES STRUCTURE©","XX","XX","VIBRATIOIN DES STRUCTURE© XX XX","TUYAUTRIE I©","REGUEB","AP1","TUYAUTRIE I© REGUEB AP1"]
[null,"11h20                 12h 50",null,null,null,null,"ROBOTIQUE INDUST(TP)","HEDEILI-F","A13","ROBOTIQUE INDUST(TP) HEDEILI-F A13","TECHNOLOGIES DE SODAGE©","XX","XX","TECHNOLOGIES DE SODAGE© XX XX","TUYAUTRIE I(TD)","REGUEB","AP1","TUYAUTRIE I(TD) REGUEB AP1"]
[null,"13h 00              14h 30","AUTO-SYST-INDUST©","SEMMOUD","B42","AUTO-SYST-INDUST© SEMMOUD B42"]
[null,"14h 40              16h 10","AUTO-SYST-INDUST(TP)","SEMMOUD","B42","AUTO-SYST-INDUST(TP) SEMMOUD B42"]
[null,"16h 20              17h 50"]
["Samedi","8h 00                     9h 30",null,null,null,null,null,null,null,null,"STABI-ELEM-STRUCT(TD)","XX","XX","STABI-ELEM-STRUCT(TD) XX XX"]
[null,"9h 40                  11h 10",null,null,null,null,null,null,null,null,"CHAUD-TUYAUT©","XX","XX","CHAUD-TUYAUT© XX XX"]
[null,"11h20                 12h 50",null,null,null,null,null,null,null,null,"CHAUD-TUYAUT(TD) ","XX","XX","CHAUD-TUYAUT(TD)  XX XX"]

{"sheet":"GC MASTER11","index":3,"n_rows":36,"n_cols":18,"rows_kept":36,"cut":false,"hidden":false,"merged":[[33,0,35,0],[3,0,8,0],[9,0,14,0],[0,0,0,1],[15,0,20,0],[21,0,26,0],[27,0,32,0]]}
["Departement:",null,null,null,null,"génie civil"]
[{"$f":"TODAY()","v":"2017-10-05"},"Section:",null,null,null,"Master 2ème année"]
["Jour","SEANCES","MGC16-ST","Enseignant","Salle","MGC16-ST","MGC16-GO","Enseignant","Salle","MGC16-GO","MGC16-P/A","Enseignant","Salle","MGC16-P/A","MGC16-P/B","Enseignant","Salle","MGC16-P/B"]
["Dimanche","8h 00                     9h 30",null,null,null,null,"GEOSTATISTIQUE©","X","B48","GEOSTATISTIQUE© X B48"]
[null,"9h 40                 11h 10","GENIE PARASISMIQUE©","SERIDI","B32","GENIE PARASISMIQUE© SERIDI B32","GEOSTATISTIQUE(TD)","X","B48","GEOSTATISTIQUE(TD) X B48","INGENIERIE FONDATIONS©","BERKANI","AP5","INGENIERIE FONDATIONS© BERKANI AP5","INGENIERIE FONDATIONS©","BERKANI","AP5","INGENIERIE FONDATIONS© BERKANI AP5"]
[null,"11h20                 12h 50",null,null,null,null,"BARRAGES-EN-TERR©","X","B48","BARRAGES-EN-TERR© X B48","CONSTR-MET(TD)","LABDAOUI","B415","CONSTR-MET(TD) LABDAOUI B415","INGENIERIE FONDATIONS(TD)","BERKANI","B41","INGENIERIE FONDATIONS(TD) BERKANI B41"]
[null,"13h 00              14h 30","PLASTICITE-ENDOM©","X","B36","PLASTICITE-ENDOM© X B36"]
[null,"14h 40              16h 10","PLASTICITE-ENDOM(TD)","X","B36","PLASTICITE-ENDOM(TD) X B36"]
[null,"16h 20              17h 50"]
["Lundi","8h 00                    9h 30","GENIE PARASISMIQUE(TD)","SERIDI","B32","GENIE PARASISMIQUE(TD) SERIDI B32","CAL-RUP-ANAL-LIM©","X","B48","CAL-RUP-ANAL-LIM© X B48","BETON PRECONTRAIT(TD)","CHEBBOUT","B415","BETON PRECONTRAIT(TD) CHEBBOUT B415","CAL-STRUCT-ASSIST PAR ORD©","BEDDIAR","RC9/B","CAL-STRUCT-ASSIST PAR ORD© BEDDIAR RC9/B"]
[null,"9h 40                  11h 10","BETON PRECONTRAINT©","CHEBBOUT","B32","BETON PRECONTRAINT© CHEBBOUT B32","CAL-RUP-ANAL-LIM(TD)","X","B48","CAL-RUP-ANAL-LIM(TD) X B48","CAL-STRUCT-ASSIST PAR ORD©","BEDDIAR","RC9/B","CAL-STRUCT-ASSIST PAR ORD© BEDDIAR RC9/B","ELEMENT FINIS(TD)","MEGHOUCHE","C42","ELEMENT FINIS(TD) MEGHOUCHE C42"]
[null,"11h20                12h 50",null,null,null,null,null,null,null,null,"BETON PRECONTRAIT©","CHEBBOUT","B417","BETON PRECONTRAIT© CHEBBOUT B417","BETON PRECONTRAIT©","CHEBBOUT","B417","BETON PRECONTRAIT© CHEBBOUT B417"]
[null,"13h 00              14h 30","THERMIQUE DE BATIMENT©","X","B38","THERMIQUE DE BATIMENT© X B38","PATHO-OUV-GEO©","X","B48","PATHO-OUV-GEO© X B48"]
[null,"14h 40              16h 10","RISQUES MAT TECH©","X","B38","RISQUES MAT TECH© X B38","NOTION-CONSTR-CIVIL-INDUST©","X","B48","NOTION-CONSTR-CIVIL-INDUST© X B48"]
[null,"16h 20              17h 50"]
["Mardi","8h 00                    9h 30","OUVRAGE SPECIAUX©","X","B31","OUVRAGE SPECIAUX© X B31","DY-OUV-GEO©","X","C48","DY-OUV-GEO© X C48"]
[null,"9h 40                 11h 10","OUVRAGE SPECIAUX(TD)","X","B31","OUVRAGE SPECIAUX(TD) X B31","DY-OUV-GEO(TD)","X","C48","DY-OUV-GEO(TD) X C48"]
[null,"11h20                12h 50"]
[null,"13h 00              14h 30",null,null,null,null,"SYST-INFOR-GE©","X","B42","SYST-INFOR-GE© X B42","CONSTR-MET©","LABDAOUI","B416","CONSTR-MET© LABDAOUI B416","CONSTR-MET©","LABDAOUI","B416","CONSTR-MET© LABDAOUI B416"]
[null,"14h 40              16h 10",null,null,null,null,"SYST-INFOR-GE(TP)","X","B42","SYST-INFOR-GE(TP) X B42","ELEMENT FINISII(TD)","KAB","B416","ELEMENT FINISII(TD) KAB B416","CONSTR-MET(TD)","LABDAOUI","B415","CONSTR-MET(TD) LABDAOUI B415"]
[null,"16h 20              17h 50"]
["Mercredi","8h 00                    9h 30","PROJET-STRUCT-BET-ARME©","X","B32","PROJET-STRUCT-BET-ARME© X B32",null,null,null,null,"ORG DES CHANTIERS©","BERKANI","B418","ORG DES CHANTIERS© BERKANI B418","ORG DES CHANTIERS©","BERKANI","B418","ORG DES CHANTIERS© BERKANI B418"]
[null,"9h 40                 11h 10","PROJET-STRUCT-BET-ARME(TP);MODELISATION STRUCTURE(TP)","X;X","X;X","PROJET-STRUCT-BET-ARME(TP) X X\nMODELISATION STRUCTURE(TP) X X","TUNNELS-OUV-SOUT©","X","A16","TUNNELS-OUV-SOUT© X A16","ELEMENT FINIS©","KADRI","B418","ELEMENT FINIS© KADRI B418","ELEMENT FINIS©","KADRI","B418","ELEMENT FINIS© KADRI B418"]
[null,"11h20                12h 50","PROJET-STRUCT-BET-ARME(TP);MODELISATION STRUCTURE(TP)","X;X","X;X","PROJET-STRUCT-BET-ARME(TP) X X\nMODELISATION STRUCTURE(TP) X X","TUNNELS-OUV-SOUT(TD)","X","A16","TUNNELS-OUV-SOUT(TD) X A16"]
[null,"13h 00              14h 30"]
[null,"14h 40              16h 10"]
[null,"16h 20              17h 50"]
["Jeudi","8h 00                     9h 30",null,null,null,null,"STAB-SOL-PROB©","X","B311","STAB-SOL-PROB© X B311",null,null,null,null,"BETON PRECONTRAIT(TD)","CHEBBOUT","B35","BETON PRECONTRAIT(TD) CHEBBOUT B35"]
[null,"9h 40                  11h 10","RECH-DOC-CONCEPT-MEM©","X","B311","RECH-DOC-CONCEPT-MEM© X B311","RECH-DOC-CONCEPT-MEM©","X","B311","RECH-DOC-CONCEPT-MEM© X B311","BETON PRECONTRAIT©","CHEBBOUT","B417","BETON PRECONTRAIT© CHEBBOUT B417","BETON PRECONTRAIT©","CHEBBOUT","B417","BETON PRECONTRAIT© CHEBBOUT B417"]
[null,"11h20                 12h 50","BETON PRECONTRAINT©","CHEBBOUT","B311","BETON PRECONTRAINT© CHEBBOUT B311"]
[null,"13h 00              14h 30","BETON PRECONTRAINT(TD)","CHEBBOUT","B311","BETON PRECONTRAINT(TD) CHEBBOUT B311","STABILITE-SOL-PROB(TP)","X","X","STABILITE-SOL-PROB(TP) X X","INGENIERIE FONDATIONS©","BERKANI","B213","INGENIERIE FONDATIONS© BERKANI B213","INGENIERIE FONDATIONS©","BERKANI","B213","INGENIERIE FONDATIONS© BERKANI B213"]
[null,"14h 40              16h 10",null,null,null,null,"STABILITE-SOL-PROB(TP)","X","X","STABILITE-SOL-PROB(TP) X X","INGENIERIE FONDATIONS(TD)","BERKANI","B213","INGENIERIE FONDATIONS(TD) BERKANI B213"]
[null,"16h 20              17h 50"]
["Samedi","8h 00                     9h 30"]
[null,"9h 40                  11h 10"]
[null,"11h20                 12h 50"]

{"sheet":"GC LICENCE10","index":4,"n_rows":36,"n_cols":18,"rows_kept":36,"cut":false,"hidden":false,"merged":[[33,0,34,0],[3,0,8,0],[9,0,14,0],[0,0,0,1],[21,0,26,0],[15,0,20,0],[27,0,32,0]]}
["Departement:",null,null,null,null,"génie civil",null,null,null,"Filière:G-civil",null,null,null,"Spécialite:G-civil"]
[{"$f":"TODAY()","v":"2017-10-05"},"Section:",null,null,null,"Licence 3ème année"]
["Jour","SEANCES","LGC-15/A","Enseignant","Salle","LGC-15/A","LGC-15/B","Enseignant","Salle","LGC-15/B","LGC-15/C","Enseignant","Salle","LGC-15/C","LGC-15/D","Enseignant","Salle","LGC-15/D"]
["Dimanche","8h 00                     9h 30","RESISTANCE DES MATERIAUXII©","BOUDJELOUD","AP3","RESISTANCE DES MATERIAUXII© BOUDJELOUD AP3","RESISTANCE DES MATERIAUXII©","BOUDJELOUD","AP3","RESISTANCE DES MATERIAUXII© BOUDJELOUD AP3","RESISTANCE DES MATERIAUXII©","BOUDJELOUD","AP3","RESISTANCE DES MATERIAUXII© BOUDJELOUD AP3","RESISTANCE DES MATERIAUXII©","BOUDJELOUD","AP3","RESISTANCE DES MATERIAUXII© BOUDJELOUD AP3"]
[null,"9h 40                 11h 10","MECANIQUE DES SOLSII©","SANDJAK","AP3","MECANIQUE DES SOLSII© SANDJAK AP3","MECANIQUE DES SOLSII©","SANDJAK","AP3","MECANIQUE DES SOLSII© SANDJAK AP3","MECANIQUE DES SOLSII©","SANDJAK","AP3","MECANIQUE DES SOLSII© SANDJAK AP3","MECANIQUE DES SOLSII©","SANDJAK","AP3","MECANIQUE DES SOLSII© SANDJAK AP3"]
[null,"11h20                 12h 50","R-D-MII(TD)","BOUDJELOUD","B31","R-D-MII(TD) BOUDJELOUD B31"]
[null,"13h 00              14h 30",null,null,null,null,"R-D-MII(TD)","BOUDJELOUD","B31","R-D-MII(TD) BOUDJELOUD B31","MDC(TP)","BENHAOUA","C08","MDC(TP) BENHAOUA C08","MDS(TP)","BERKANI+RAHLI","C05","MDS(TP) BERKANI+RAHLI C05"]
[null,"14h 40              16h 10",null,null,null,null,null,null,null,null,"MDS(TP)","BERKANI+RAHLI","C05","MDS(TP) BERKANI+RAHLI C05","MDC(TP)","BENHAOUA","C08","MDC(TP) BENHAOUA C08"]
[null,"16h 20              17h 50"]
["Lundi","8h 00                    9h 30"]
[null,"9h 40                  11h 10",null,null,null,null,"BETON ARME(TD)","GAHER","B39","BETON ARME(TD) GAHER B39",null,null,null,null,"M-D-S(TD)","KERFOUF","A11","M-D-S(TD) KERFOUF A11"]
[null,"11h20                12h 50",null,null,null,null,null,null,null,null,"M-D-S(TD)","KERFOUF","B35","M-D-S(TD) KERFOUF B35","BETON ARME(TD)","GAHER","B313","BETON ARME(TD) GAHER B313"]
[null,"13h 00              14h 30","BETON ARME©","GAHER","AP3","BETON ARME© GAHER AP3","BETON ARME©","GAHER","AP3","BETON ARME© GAHER AP3","BETON ARME©","GAHER","AP3","BETON ARME© GAHER AP3","BETON ARME©","GAHER","AP3","BETON ARME© GAHER AP3"]
[null,"14h 40              16h 10","HYDROLIQUE GEN©","GHERNAOUAT","AP3","HYDROLIQUE GEN© GHERNAOUAT AP3","HYDROLIQUE GEN©","GHERNAOUAT","AP3","HYDROLIQUE GEN© GHERNAOUAT AP3","HYDROLIQUE GEN©","GHERNAOUAT","AP3","HYDROLIQUE GEN© GHERNAOUAT AP3","HYDROLIQUE GEN©","GHERNAOUAT","AP3","HYDROLIQUE GEN© GHERNAOUAT AP3"]
[null,"16h 20              17h 50"]
["Mardi","8h 00                    9h 30"]
[null,"9h 40                 11h 10","CHARPENTE METTALIQUE©","BEDAOUI","AP2","CHARPENTE METTALIQUE© BEDAOUI AP2","CHARPENTE METTALIQUE©","BEDAOUI","AP2","CHARPENTE METTALIQUE© BEDAOUI AP2","CHARPENTE METTALIQUE©","BEDAOUI","AP2","CHARPENTE METTALIQUE© BEDAOUI AP2","CHARPENTE METTALIQUE©","BEDAOUI","AP2","CHARPENTE METTALIQUE© BEDAOUI AP2"]
[null,"11h20                12h 50","NORMES ET REGLEMENT©","BEDAOUI","AP2","NORMES ET REGLEMENT© BEDAOUI AP2","NORMES ET REGLEMENT©","BEDAOUI","AP2","NORMES ET REGLEMENT© BEDAOUI AP2","NORMES ET REGLEMENT©","BEDAOUI","AP2","NORMES ET REGLEMENT© BEDAOUI AP2","NORMES ET REGLEMENT©","BEDAOUI","AP2","NORMES ET REGLEMENT© BEDAOUI AP2"]
[null,"13h 00              14h 30",null,null,null,null,null,null,null,null,"CHARP-METALIQ(TD)","BEDAOUI","B36","CHARP-METALIQ(TD) BEDAOUI B36"]
[null,"14h 40              16h 10"]
[null,"16h 20              17h 50"]
["Mercredi","8h 00                    9h 30","[SP]DESSIN(TP)","BELARBI","B47","[SP]DESSIN(TP) BELARBI B47","[SI]DESSIN-BTP(TD)","BELARBI","B47","[SI]DESSIN-BTP(TD) BELARBI B47","R-D-MII(TD)","BOUDJELOUD","B312","R-D-MII(TD) BOUDJELOUD B312"]
[null,"9h 40                 11h 10","[SP]DESSIN(TP)","BELARBI","B47","[SP]DESSIN(TP) BELARBI B47","[SI]DESSIN-BTP(TD)","BELARBI","B47","[SI]DESSIN-BTP(TD) BELARBI B47",null,null,null,null,"R-D-MII(TD)","BOUDJELOUD","B311","R-D-MII(TD) BOUDJELOUD B311"]
[null,"11h20                12h 50"]
[null,"13h 00              14h 30","MAT DE CONSTRUCTION©","CHAID","AP3","MAT DE CONSTRUCTION© CHAID AP3","MAT DE CONSTRUCTION©","CHAID","AP3","MAT DE CONSTRUCTION© CHAID AP3","MAT DE CONSTRUCTION©","CHAID","AP3","MAT DE CONSTRUCTION© CHAID AP3","MAT DE CONSTRUCTION©","CHAID","AP3","MAT DE CONSTRUCTION© CHAID AP3"]
[null,"14h 40              16h 10","TOPOGRAPHIE©","BELARBI","AP3","TOPOGRAPHIE© BELARBI AP3","TOPOGRAPHIE©","BELARBI","AP3","TOPOGRAPHIE© BELARBI AP3","TOPOGRAPHIE©","BELARBI","AP3","TOPOGRAPHIE© BELARBI AP3","TOPOGRAPHIE©","BELARBI","AP3","TOPOGRAPHIE© BELARBI AP3"]
[null,"16h 20              17h 50"]
["Jeudi","8h 00                     9h 30","CHARP-METALIQ(TD)","BEDAOUI","B42","CHARP-METALIQ(TD) BEDAOUI B42",null,null,null,null,"[SI]DESSIN(TP)","BELARBI","B415","[SI]DESSIN(TP) BELARBI B415","[SP]DESSIN(TP)","BELARBI","B415","[SP]DESSIN(TP) BELARBI B415"]
[null,"9h 40                  11h 10","BETON ARME(TD)","GAHER","B42","BETON ARME(TD) GAHER B42","CHARP-METALIQ(TD)","BEDAOUI","B313","CHARP-METALIQ(TD) BEDAOUI B313","[SI]DESSIN(TP)","BELARBI","B415","[SI]DESSIN(TP) BELARBI B415","[SP]DESSIN(TP)","BELARBI","B415","[SP]DESSIN(TP) BELARBI B415"]
[null,"11h20                 12h 50",null,null,null,null,null,null,null,null,"BETON ARME(TD)","GAHER","B415","BETON ARME(TD) GAHER B415","CHARP-METALIQ(TD)","BEDAOUI","B419","CHARP-METALIQ(TD) BEDAOUI B419"]
[null,"13h 00              14h 30","MDC(TP)","X","C08","MDC(TP) X C08","MDS(TP)","BELARBI+KERFOUF","C08","MDS(TP) BELARBI+KERFOUF C08"]
[null,"14h 40              16h 10","MDS(TP)","BELARBI+KERFOUF","C08","MDS(TP) BELARBI+KERFOUF C08","MDC(TP)","X","C08","MDC(TP) X C08"]
[null,"16h 20              17h 50"]
["Samedi","8h 00                     9h 30","MECANIQUE DES SOLSII©","SANDJAK","AP4","MECANIQUE DES SOLSII© SANDJAK AP4","MECANIQUE DES SOLSII©","SANDJAK","AP4","MECANIQUE DES SOLSII© SANDJAK AP4","MECANIQUE DES SOLSII©","SANDJAK","AP4","MECANIQUE DES SOLSII© SANDJAK AP4","MECANIQUE DES SOLSII©","SANDJAK","AP4","MECANIQUE DES SOLSII© SANDJAK AP4"]
[null,"9h 40                  11h 10","M-D-S(TD)","SANDJAK","B415","M-D-S(TD) SANDJAK B415"]
[null,"11h20                 12h 50",null,null,null,null,"M-D-S(TD)","SANDJAK","B415","M-D-S(TD) SANDJAK B415"]

{"sheet":"GC MASTER12","index":5,"n_rows":36,"n_cols":18,"rows_kept":36,"cut":false,"hidden":false,"merged":[[33,0,35,0],[0,0,0,1],[3,0,8,0],[9,0,14,0],[15,0,20,0],[21,0,26,0],[27,0,32,0]]}
["Filière:génie civil",null,null,null,null,"Spécialité:",null,null,null,"structures-geotechnique"]
[{"$f":"TODAY()","v":"2017-10-05"},"Section:",null,null,null,"Master 1ème année"]
["Jour","SEANCES","MGCP17/A","Enseignant","Salle","MGCP17/A","MGCP17/B","Enseignant","Salle","MGCP17/B","MGCP17-GE","Enseignant","Salle","MGCP17-GE","MGC17-ST","Enseignant","Salle","MGC17-ST"]
["Dimanche","8h 00                     9h 30","D-D-S©","MEZAZIGH","B419","D-D-S© MEZAZIGH B419","D-D-S©","MEZAZIGH","B419","D-D-S© MEZAZIGH B419","D-D-SI©","SERIDI","B39","D-D-SI© SERIDI B39","COMP-PROGRAMMATION(TP)","X","RC9/A","COMP-PROGRAMMATION(TP) X RC9/A"]
[null,"9h 40                 11h 10",null,null,null,null,"D-D-S(TD)","MEZAZIGH","B414","D-D-S(TD) MEZAZIGH B414","FONDATION(TD)","KERFOUF","B313","FONDATION(TD) KERFOUF B313","STRUCTURES METALIQUE©","LABDAOUI","B39","STRUCTURES METALIQUE© LABDAOUI B39"]
[null,"11h20                 12h 50","CONCEPT-TECH-BAT©","DJAALALI","B419","CONCEPT-TECH-BAT© DJAALALI B419","CONCEPT-TECH-BAT©","DJAALALI","B419","CONCEPT-TECH-BAT© DJAALALI B419","ESSAI GEOTHECNIQUES(TP)","KERFOUF","C05","ESSAI GEOTHECNIQUES(TP) KERFOUF C05"]
[null,"13h 00              14h 30",null,null,null,null,null,null,null,null,null,null,null,null,"STRUCTURES EN B-A©","DJAALALI","B35","STRUCTURES EN B-A© DJAALALI B35"]
[null,"14h 40              16h 10",null,null,null,null,null,null,null,null,null,null,null,null,"STRUCTURES METALIQUE(TD)","LABDAOUI","B35","STRUCTURES METALIQUE(TD) LABDAOUI B35"]
[null,"16h 20              17h 50"]
["Lundi","8h 00                    9h 30","ELASTICITE©","MAHTOUT","B417","ELASTICITE© MAHTOUT B417","ELASTICITE©","MAHTOUT","B417","ELASTICITE© MAHTOUT B417"]
[null,"9h 40                  11h 10","ELASTICITE©","MAHTOUT","B417","ELASTICITE© MAHTOUT B417","ELASTICITE©","MAHTOUT","B417","ELASTICITE© MAHTOUT B417","D-D-SI(TD)","SERIDI","B415","D-D-SI(TD) SERIDI B415"]
[null,"11h20                12h 50"]
[null,"13h 00              14h 30","ELASTICITE(TD)","MAHTOUT","B419","ELASTICITE(TD) MAHTOUT B419",null,null,null,null,"GEOTECH ROUTIERE©","SANDJAK","B49","GEOTECH ROUTIERE© SANDJAK B49","BATIMENT©","BEDDIAR","B31","BATIMENT© BEDDIAR B31"]
[null,"14h 40              16h 10",null,null,null,null,"ELASTICITE(TD)","MAHTOUT","B419","ELASTICITE(TD) MAHTOUT B419","TECH-ROUTIERE(TP)","SANDJAK","X","TECH-ROUTIERE(TP) SANDJAK X","BATIMENT©","BEDDIAR","B31","BATIMENT© BEDDIAR B31"]
[null,"16h 20              17h 50"]
["Mardi","8h 00                    9h 30","M-D-S©","TOUKAL","B37","M-D-S© TOUKAL B37","M-D-S©","TOUKAL","B37","M-D-S© TOUKAL B37","M-M-C©","MAHTOUT","B310","M-M-C© MAHTOUT B310","METH EXPRIMENTAL(TP)","X","B419","METH EXPRIMENTAL(TP) X B419"]
[null,"9h 40                 11h 10","M-D-S-II©","KECHOUANE","B37","M-D-S-II© KECHOUANE B37","M-D-S-II©","KECHOUANE","B37","M-D-S-II© KECHOUANE B37","M-M-C©","MAHTOUT","B310","M-M-C© MAHTOUT B310","STRUCT METTALIQUE©","LABDAOUI","B419","STRUCT METTALIQUE© LABDAOUI B419"]
[null,"11h20                12h 50",null,null,null,null,"M-D-S(TD)","TOUKAL","B37","M-D-S(TD) TOUKAL B37","ALEA ET RISQUE GEOT©","KECHOUANE","B32","ALEA ET RISQUE GEOT© KECHOUANE B32"]
[null,"13h 00              14h 30","M-D-S(TD)","TOUKAL","B32","M-D-S(TD) TOUKAL B32",null,null,null,null,null,null,null,null,"D-D-S©","MEZAZIGH","B310","D-D-S© MEZAZIGH B310"]
[null,"14h 40              16h 10","M-D-S-II(TD)","KECHOUANE","B32","M-D-S-II(TD) KECHOUANE B32",null,null,null,null,"M-M-C(TD)","RAHLI","B35","M-M-C(TD) RAHLI B35","D-D-S(TD)","MEZAZIGH","B310","D-D-S(TD) MEZAZIGH B310"]
[null,"16h 20              17h 50"]
["Mercredi","8h 00                    9h 30","M-D-S©","TOUKAL","AP4","M-D-S© TOUKAL AP4","M-D-S©","TOUKAL","AP4","M-D-S© TOUKAL AP4"]
[null,"9h 40                 11h 10","M-D-S-II©","KECHOUANE","AP4","M-D-S-II© KECHOUANE AP4","M-D-S-II©","KECHOUANE","AP4","M-D-S-II© KECHOUANE AP4","HYDROLOGIES©","BENMOUHOUB","B38","HYDROLOGIES© BENMOUHOUB B38","M-D-S©","TOUKAL","B48","M-D-S© TOUKAL B48"]
[null,"11h20                12h 50",null,null,null,null,null,null,null,null,"TALLS ET SOUTENEMENT©","HAMZA","B38","TALLS ET SOUTENEMENT© HAMZA B38","MEC DES STRUCTURE(TD)","RAHLI","B35","MEC DES STRUCTURE(TD) RAHLI B35"]
[null,"13h 00              14h 30","D-D-S©","MEZAZIGH","B418","D-D-S© MEZAZIGH B418","D-D-S©","MEZAZIGH","B418","D-D-S© MEZAZIGH B418"]
[null,"14h 40              16h 10","D-D-S(TD)","MEZAZIGH","B415","D-D-S(TD) MEZAZIGH B415","M-D-S-II(TD)","KECHOUANE","B414","M-D-S-II(TD) KECHOUANE B414","TALLS ET SOUTENEMENT(TD)","HAMZA","B38","TALLS ET SOUTENEMENT(TD) HAMZA B38","COMP-PROGRAMMATION(TD)","X","B37","COMP-PROGRAMMATION(TD) X B37"]
[null,"16h 20              17h 50"]
["Jeudi","8h 00                     9h 30","GESTION PROJET©","GAHER","AP6","GESTION PROJET© GAHER AP6","GESTION PROJET©","GAHER","AP6","GESTION PROJET© GAHER AP6","METH DES DIFF FINIS(TP)","ROUABHI","RC9/B","METH DES DIFF FINIS(TP) ROUABHI RC9/B","MATERIAUX INNOVANTES©","GHERNOUTI-H","B213","MATERIAUX INNOVANTES© GHERNOUTI-H B213"]
[null,"9h 40                  11h 10","CONCEPT-TECH-BAT©","DJAALALI","AP6","CONCEPT-TECH-BAT© DJAALALI AP6","CONCEPT-TECH-BAT©","DJAALALI","AP6","CONCEPT-TECH-BAT© DJAALALI AP6","METH-DIFF-FINIF©","ROUABHI","C412","METH-DIFF-FINIF© ROUABHI C412","MATERIAUX INNOVANTES(TP)","GHERNOUTI-H","B213","MATERIAUX INNOVANTES(TP) GHERNOUTI-H B213"]
[null,"11h20                 12h 50",null,null,null,null,null,null,null,null,"FONDATION©","KERFOUF","C412","FONDATION© KERFOUF C412","STRUCTURES EN B-A(TD)","DJAALALI","B213","STRUCTURES EN B-A(TD) DJAALALI B213"]
[null,"13h 00              14h 30",null,null,null,null,null,null,null,null,null,null,null,null,"ANGLAIS©","X","B214","ANGLAIS© X B214"]
[null,"14h 40              16h 10",null,null,null,null,null,null,null,null,"ANGLAIS©","X","B37","ANGLAIS© X B37"]
[null,"16h 20              17h 50"]
["Samedi","8h 00                     9h 30"]
[null,"9h 40                  11h 10"]
[null,"11h20                 12h 50"]

{"sheet":"EAI LICENCE10","index":6,"n_rows":36,"n_cols":14,"rows_kept":36,"cut":false,"hidden":false,"merged":[[0,0,0,1],[3,0,8,0],[33,0,35,0],[27,0,32,0],[21,0,26,0],[15,0,20,0],[9,0,14,0]]}
[null,null,null,null,null,null,null,null,null,"Filière:electrotech-auto-electron",null,null,null,"Spécialite:electrotech-auto-electron"]
[{"$f":"TODAY()","v":"2017-10-05"},"Section:",null,null,null,"Licence 3ème année"]
["Jour","SEANCES","LELEC N-15","Enseignant","Salle","LELECN-15","LAUT-15","Enseignant","Salle","LAUT-15","LELECT-15","Enseignant","Salle","LELECT-15"]
["Dimanche","8h 00                     9h 30","SIGNAL (TP)","MASSOUT","B210","SIGNAL (TP) MASSOUT B210","NORMES ET CERTIFICATION©","KORSO","C42","NORMES ET CERTIFICATION© KORSO C42","THEORIE DE CHAMP©","HAMEL","B312","THEORIE DE CHAMP© HAMEL B312"]
[null,"9h 40                 11h 10","SIGNAL (TP)","MASSOUT","B210","SIGNAL (TP) MASSOUT B210","ANGLAIS©","YAHIAOUI","C42","ANGLAIS© YAHIAOUI C42","THEORIE DE CHAMP(TD)","HAMEL","B312","THEORIE DE CHAMP(TD) HAMEL B312"]
[null,"11h20                 12h 50",null,null,null,null,null,null,null,null,"SCHEMAS ET APPARILLAGE©","BOUDOUDA","B312","SCHEMAS ET APPARILLAGE© BOUDOUDA B312"]
[null,"13h 00              14h 30","TRAIT DE SIGNAL©","MASSOUT","B41","TRAIT DE SIGNAL© MASSOUT B41","COMMANDES SYST LINEAIRE©","HAMDAOUI","A24","COMMANDES SYST LINEAIRE© HAMDAOUI A24"]
[null,"14h 40              16h 10","TRAIT DE SIGNAL(TD) ","MASSOUT","B41","TRAIT DE SIGNAL(TD)  MASSOUT B41","COMMANDES SYST LINEAIRE(TD)","HAMDAOUI","A24","COMMANDES SYST LINEAIRE(TD) HAMDAOUI A24","SCHEMAS ET APPARILLAGE(TP)","BOUDOUDA","EEA2","SCHEMAS ET APPARILLAGE(TP) BOUDOUDA EEA2"]
[null,"16h 20              17h 50"]
["Lundi","8h 00                    9h 30",null,null,null,null,"ELECTRONIQUE DE PUISSANCES©","AHRICHE","A22","ELECTRONIQUE DE PUISSANCES© AHRICHE A22","ELECTRONIQUE DE PUISSANCES©","AHRICHE","A22","ELECTRONIQUE DE PUISSANCES© AHRICHE A22"]
[null,"9h 40                  11h 10",null,null,null,null,"ELECTRONIQUE DE PUISSANCES(TD)","AHRICHE","A22","ELECTRONIQUE DE PUISSANCES(TD) AHRICHE A22","RESEAUX ELECTRIQUE©","KOUBA","B35","RESEAUX ELECTRIQUE© KOUBA B35"]
[null,"11h20                12h 50","SYST A MICROPROCESSEURS©","MAHDI","B31","SYST A MICROPROCESSEURS© MAHDI B31"]
[null,"13h 00              14h 30","SYST A MICROPROCESSEURS(TP);FONCTION D'ELECTRONIQUE(TP)","MAHDI;BOURKACHE","B211;AT11","SYST A MICROPROCESSEURS(TP) MAHDI B211\nFONCTION D'ELECTRONIQUE(TP) BOURKACHE AT11","COMMANDES SYST LINEAIRE(TP);PROGRAMMATION EN C++(TP)","HAMDAOUI;IKHLEF","B210;AB12","COMMANDES SYST LINEAIRE(TP) HAMDAOUI B210\nPROGRAMMATION EN C++(TP) IKHLEF AB12","CONCEPTION DES SYST ELECTRONIQUE©","LARABI","B35","CONCEPTION DES SYST ELECTRONIQUE© LARABI B35"]
[null,"14h 40              16h 10","SYST A MICROPROCESSEURS(TP);FONCTION D'ELECTRONIQUE(TP)","MAHDI;BOURKACHE","B211;AT11","SYST A MICROPROCESSEURS(TP) MAHDI B211\nFONCTION D'ELECTRONIQUE(TP) BOURKACHE AT11","COMMANDES SYST LINEAIRE(TP);PROGRAMMATION EN C++(TP)","HAMDAOUI;IKHLEF","B210;AB12","COMMANDES SYST LINEAIRE(TP) HAMDAOUI B210\nPROGRAMMATION EN C++(TP) IKHLEF AB12","ELECTRONIQUE DE PUISSANCES(TD)","AHRICHE","B35","ELECTRONIQUE DE PUISSANCES(TD) AHRICHE B35"]
[null,"16h 20              17h 50"]
["Mardi","8h 00                    9h 30","PHYS DES SEMI CONDUCTEURS©","KHALFI","A22","PHYS DES SEMI CONDUCTEURS© KHALFI A22","ELECTRONIQUE DE PUISSANCES(TP)","AHRICHE","B211","ELECTRONIQUE DE PUISSANCES(TP) AHRICHE B211","SEYST ASSERVIS©","HAMDAOUI","B312","SEYST ASSERVIS© HAMDAOUI B312"]
[null,"9h 40                 11h 10","PROPAGATION D'ONDES©","KHALFI","A22","PROPAGATION D'ONDES© KHALFI A22","ELECTRONIQUE DE PUISSANCES(TP)","AHRICHE","B211","ELECTRONIQUE DE PUISSANCES(TP) AHRICHE B211","SEYST ASSERVIS(TD)","HAMDAOUI","B311","SEYST ASSERVIS(TD) HAMDAOUI B311"]
[null,"11h20                12h 50","TECH COMPOSANTES ELECTRII©","KHALFI","A22","TECH COMPOSANTES ELECTRII© KHALFI A22"]
[null,"13h 00              14h 30","FONCTION D'ELECTRONIQUE©","BOURKACHE","B419","FONCTION D'ELECTRONIQUE© BOURKACHE B419","MODEL ET IDENTIFICATION DES SYST©","BENABDALLAH","B35","MODEL ET IDENTIFICATION DES SYST© BENABDALLAH B35","ELECTRONIQUE DE PUISSANCES(TP)","AHRICHE","B211","ELECTRONIQUE DE PUISSANCES(TP) AHRICHE B211"]
[null,"14h 40              16h 10","FONCTION D'ELECTRONIQUE(TD) ","BOURKACHE","B419","FONCTION D'ELECTRONIQUE(TD)  BOURKACHE B419",null,null,null,null,"ELECTRONIQUE DE PUISSANCES(TP)","AHRICHE","B211","ELECTRONIQUE DE PUISSANCES(TP) AHRICHE B211"]
[null,"16h 20              17h 50"]
["Mercredi","8h 00                    9h 30","SYST A MICROPROCESSEURS©","MAHDI","B46","SYST A MICROPROCESSEURS© MAHDI B46","MICRO PROCESSEUR ET MICRO CONTROL©","SMAANI","A21","MICRO PROCESSEUR ET MICRO CONTROL© SMAANI A21","RESEAUX ELECTRIQUE©","KOUBA","B419","RESEAUX ELECTRIQUE© KOUBA B419"]
[null,"9h 40                 11h 10","SYST A MICROPROCESSEURS(TD) ","MAHDI","B46","SYST A MICROPROCESSEURS(TD)  MAHDI B46","PROGRAMMATION EN C++©","NEKAA","A21","PROGRAMMATION EN C++© NEKAA A21","RESEAUX ELECTRIQUE(TD)","KOUBA","B419","RESEAUX ELECTRIQUE(TD) KOUBA B419"]
[null,"11h20                12h 50",null,null,null,null,null,null,null,null,"RESEAUX ELECTRIQUE(TP)","KOUBA","RC9/B","RESEAUX ELECTRIQUE(TP) KOUBA RC9/B"]
[null,"13h 00              14h 30","RESAUX INFORMATIQUES©","RIAHLA","B36","RESAUX INFORMATIQUES© RIAHLA B36","MODEL ET IDENTIFICATION DES SYST(TP);MICRO PROCESSEUR ET MICRO CONTROL(TP)","BENABDALLAH;SMAANI","B210;B211","MODEL ET IDENTIFICATION DES SYST(TP) BENABDALLAH B210\nMICRO PROCESSEUR ET MICRO CONTROL(TP) SMAANI B211","RESEAUX ELECTRIQUE(TP)","KOUBA","RC9/B","RESEAUX ELECTRIQUE(TP) KOUBA RC9/B"]
[null,"14h 40              16h 10","RESAUX INFORMATIQUES(TD)","RIAHLA","B36","RESAUX INFORMATIQUES(TD) RIAHLA B36","MODEL ET IDENTIFICATION DES SYST(TP);MICRO PROCESSEUR ET MICRO CONTROL(TP)","BENABDALLAH;SMAANI","B210;B211","MODEL ET IDENTIFICATION DES SYST(TP) BENABDALLAH B210\nMICRO PROCESSEUR ET MICRO CONTROL(TP) SMAANI B211"]
[null,"16h 20              17h 50"]
["Jeudi","8h 00                     9h 30",null,null,null,null,"MICRO PROCESSEUR ET MICRO CONTROL©","SMAANI","A23","MICRO PROCESSEUR ET MICRO CONTROL© SMAANI A23","SEYST ASSERVIS (TP)","HAMDAOUI","AB12","SEYST ASSERVIS (TP) HAMDAOUI AB12"]
[null,"9h 40                  11h 10",null,null,null,null,"MICRO PROCESSEUR ET MICRO CONTROL(TD)","SMAANI","A22","MICRO PROCESSEUR ET MICRO CONTROL(TD) SMAANI A22","SEYST ASSERVIS (TP)","HAMDAOUI","AB12","SEYST ASSERVIS (TP) HAMDAOUI AB12"]
[null,"11h20                 12h 50","TRAVAUX AVANT PROJET©","AKROUM","B42","TRAVAUX AVANT PROJET© AKROUM B42",null,null,null,null,"LOGICIEL DE SIMULATION©","LARABI","A12","LOGICIEL DE SIMULATION© LARABI A12"]
[null,"13h 00              14h 30","TRAVAUX AVANT PROJET(TP)","AKROUM","B211","TRAVAUX AVANT PROJET(TP) AKROUM B211","ENNERGIE RENOUVELABLES©","LARABI","A14","ENNERGIE RENOUVELABLES© LARABI A14","CAPTEURS(TP)","BOUMEDINE","B417","CAPTEURS(TP) BOUMEDINE B417"]
[null,"14h 40              16h 10",null,null,null,null,null,null,null,null,"CAPTEURS ET INSTRIMENTATION©","BOUMEDINE","B417","CAPTEURS ET INSTRIMENTATION© BOUMEDINE B417"]
[null,"16h 20              17h 50"]
["Samedi","8h 00                     9h 30"]
[null,"9h 40                  11h 10"]
[null,"11h20                 12h 50"]

{"sheet":"EAI MASTER12","index":7,"n_rows":36,"n_cols":14,"rows_kept":36,"cut":false,"hidden":false,"merged":[[33,0,35,0],[0,0,0,1],[3,0,8,0],[9,0,14,0],[15,0,20,0],[21,0,26,0],[27,0,32,0]]}
["Filière:Automatique",null,null,null,null,"Filière:electronique-electrotechnique",null,null,null,"Spécialité:Automatique et informatique-",null,null,null,"Spécialité:machines electriques"]
[{"$f":"TODAY()","v":"2017-10-05"},"Section:",null,null,null,"Master 1ère année",null,null,null,"Spécialité:electronique systemes embarques"]
["Jour","SEANCES","MAI-I7","Enseignant","Salle","MAI-I7","MESE17","Enseignant","Salle","MESE17","MME17","Enseignant","Salle","MME17"]
["Dimanche","8h 00                     9h 30","SYST LINEAIRES MULTI©","KHELOUAT","B47","SYST LINEAIRES MULTI© KHELOUAT B47","SYST ASSERVISSEMENT NUMERIQUES©","IDIR","B42","SYST ASSERVISSEMENT NUMERIQUES© IDIR B42","RES-TRANS-DIS-EN-ELECT©","AIBECHE","A11","RES-TRANS-DIS-EN-ELECT© AIBECHE A11"]
[null,"9h 40                 11h 10","SYST LINEAIRES MULTI(TD) ","KHELOUAT","B47","SYST LINEAIRES MULTI(TD)  KHELOUAT B47","SYST ASSERVISSEMENT NUMERIQUES(TD)","IDIR","B42","SYST ASSERVISSEMENT NUMERIQUES(TD) IDIR B42","RES-TRANS-DIS-EN-ELECT(TD) ","AIBECHE","A11","RES-TRANS-DIS-EN-ELECT(TD)  AIBECHE A11"]
[null,"11h20                 12h 50",null,null,null,null,"PROGRAMMATION ORIENTE OBJET ©","NEKAA","A22","PROGRAMMATION ORIENTE OBJET © NEKAA A22"]
[null,"13h 00              14h 30","OPTIMISATION©","IDIR","B39","OPTIMISATION© IDIR B39","PROGRAMMATION ORIENTE OBJET (TP) ","NEKAA","A27","PROGRAMMATION ORIENTE OBJET (TP)  NEKAA A27","U-PROCESS ET U-CONTROLEURS(TP)","HOCINE","AB12","U-PROCESS ET U-CONTROLEURS(TP) HOCINE AB12"]
[null,"14h 40              16h 10","OPTIMISATION(TD) ","IDIR","B39","OPTIMISATION(TD)  IDIR B39","PROGRAMMATION ORIENTE OBJET (TP) ","NEKAA","A27","PROGRAMMATION ORIENTE OBJET (TP)  NEKAA A27","U-PROCESS ET U-CONTROLEURS(TP)","HOCINE","AB12","U-PROCESS ET U-CONTROLEURS(TP) HOCINE AB12"]
[null,"16h 20              17h 50"]
["Lundi","8h 00                    9h 30","OPTIMISATION(TP) ","IDIR","AB12","OPTIMISATION(TP)  IDIR AB12","COM-WIFI©","BOURKACHE","A24","COM-WIFI© BOURKACHE A24","ELECT-PUISS-AVAC©","BOUDOUDA","B47","ELECT-PUISS-AVAC© BOUDOUDA B47"]
[null,"9h 40                  11h 10","OPTIMISATION(TP) ","IDIR","AB12","OPTIMISATION(TP)  IDIR AB12","ELECTRONIQUE NUMERIQUE AVANCEES FGPA(TP)","HANTABLI","A27","ELECTRONIQUE NUMERIQUE AVANCEES FGPA(TP) HANTABLI A27","ELECT-PUISS-AVAC(TD) ","BOUDOUDA","B47","ELECT-PUISS-AVAC(TD)  BOUDOUDA B47"]
[null,"11h20                12h 50",null,null,null,null,"ELECTRONIQUE NUMERIQUE AVANCEES FGPA(TP)","HANTABLI","A27","ELECTRONIQUE NUMERIQUE AVANCEES FGPA(TP) HANTABLI A27"]
[null,"13h 00              14h 30","RESEAUX ET PROTOCOLES-COMM©","RIAHLA","A16","RESEAUX ET PROTOCOLES-COMM© RIAHLA A16","[SI]TRAIT SIGNAL AVANCEE(TP);[SP]SYST ASSERVISSEMENT NUMERIQUES AVANCEE (TP) ","GUERBAI;IDIR","A27;A27","[SI]TRAIT SIGNAL AVANCEE(TP) GUERBAI A27\n[SP]SYST ASSERVISSEMENT NUMERIQUES AVANCEE (TP)  IDIR A27","METH-NUM-APPL-OPT©","ACHELI","B416","METH-NUM-APPL-OPT© ACHELI B416"]
[null,"14h 40              16h 10","RESEAUX ET PROTOCOLES-COMM(TP) ","RIAHLA","A16","RESEAUX ET PROTOCOLES-COMM(TP)  RIAHLA A16","[SI]TRAIT SIGNAL AVANCEE(TP);[SP]SYST ASSERVISSEMENT NUMERIQUES AVANCEE (TP) ","GUERBAI;IDIR","A27;A27","[SI]TRAIT SIGNAL AVANCEE(TP) GUERBAI A27\n[SP]SYST ASSERVISSEMENT NUMERIQUES AVANCEE (TP)  IDIR A27","METH-NUM-APPL-OPT(TD) ","ACHELI","B416","METH-NUM-APPL-OPT(TD)  ACHELI B416"]
[null,"16h 20              17h 50"]
["Mardi","8h 00                    9h 30","ASSO-CONV-MACH©","ABDESLAME","B41","ASSO-CONV-MACH© ABDESLAME B41","CONCEPT SYSTEM A MICROPROCESSEUR©","SAADSOUD","B417","CONCEPT SYSTEM A MICROPROCESSEUR© SAADSOUD B417","METH-NUM-APPL-OPT(TP);RES-TRANS-DIS-EN-ELECT(TP)","IKHLEF;AIBECHE","RC9/A;B210","METH-NUM-APPL-OPT(TP) IKHLEF RC9/A\nRES-TRANS-DIS-EN-ELECT(TP) AIBECHE B210"]
[null,"9h 40                 11h 10","ASSO-CONV-MACH(TD) ","ABDESLAME","B41","ASSO-CONV-MACH(TD)  ABDESLAME B41","CONCEPT SYSTEM A MICROPROCESSEUR(TD)","SAADSOUD","B413","CONCEPT SYSTEM A MICROPROCESSEUR(TD) SAADSOUD B413","METH-NUM-APPL-OPT(TP);RES-TRANS-DIS-EN-ELECT(TP)","IKHLEF;AIBECHE","RC9/A;B210","METH-NUM-APPL-OPT(TP) IKHLEF RC9/A\nRES-TRANS-DIS-EN-ELECT(TP) AIBECHE B210"]
[null,"11h20                12h 50"]
[null,"13h 00              14h 30","SYST LINEAIRES MULTI(TP) ;ASSOC-CONV-MACH(TP) ","KHELOUAT;ABDESLAME","A27;AB12","SYST LINEAIRES MULTI(TP)  KHELOUAT A27\nASSOC-CONV-MACH(TP)  ABDESLAME AB12","ELECTR-NUM-AVANCEE FPGA©","SMAANI","B44","ELECTR-NUM-AVANCEE FPGA© SMAANI B44","ENERGIES RENOUVLABLE©","TAZROUT","B31","ENERGIES RENOUVLABLE© TAZROUT B31"]
[null,"14h 40              16h 10","SYST LINEAIRES MULTI(TP) ;ASSOC-CONV-MACH(TP) ","KHELOUAT;ABDESLAME","A27;AB12","SYST LINEAIRES MULTI(TP)  KHELOUAT A27\nASSOC-CONV-MACH(TP)  ABDESLAME AB12","ELECTR-NUM-AVANCEE FPGA(TD)","SMAANI","B44","ELECTR-NUM-AVANCEE FPGA(TD) SMAANI B44"]
[null,"16h 20              17h 50"]
["Mercredi","8h 00                    9h 30","TRAIT SIGNAL©","MASSOUT","B39","TRAIT SIGNAL© MASSOUT B39","CONCEP A MICROPRO©","SAADSOUD","B42","CONCEP A MICROPRO© SAADSOUD B42","MACH-ELECT-APPRO©","HAMEL","A12","MACH-ELECT-APPRO© HAMEL A12"]
[null,"9h 40                 11h 10","TRAIT SIGNAL(TP) ","MASSOUT","B211","TRAIT SIGNAL(TP)  MASSOUT B211","CONCEPT SYSTEM A MICROPROCESSEUR(TP)","SAADSOUD","B42","CONCEPT SYSTEM A MICROPROCESSEUR(TP) SAADSOUD B42","MACH-ELECT-APPRO(TD) ","HAMEL","A12","MACH-ELECT-APPRO(TD)  HAMEL A12"]
[null,"11h20                12h 50","TRAIT SIGNAL(TP) ","MASSOUT","B211","TRAIT SIGNAL(TP)  MASSOUT B211"]
[null,"13h 00              14h 30",null,null,null,null,"TRAIT SIGNAL AVANCEE©","GUERBAI","B42","TRAIT SIGNAL AVANCEE© GUERBAI B42","MACH ELECT(TP)","HAMEL+BOUZIDA","EEA2","MACH ELECT(TP) HAMEL+BOUZIDA EEA2"]
[null,"14h 40              16h 10",null,null,null,null,"TRAIT SIGNAL AVANCEE(TD)","GUERBAI","B42","TRAIT SIGNAL AVANCEE(TD) GUERBAI B42","MACH ELECT(TP)","HAMEL+BOUZIDA","EEA2","MACH ELECT(TP) HAMEL+BOUZIDA EEA2"]
[null,"16h 20              17h 50"]
["Jeudi","8h 00                     9h 30","ANGLAIS TECH TERMINO©","YAHIAOUI","AP3","ANGLAIS TECH TERMINO© YAHIAOUI AP3","ANGLAIS TECH ET TERM©","YAHIAOUI","AP3","ANGLAIS TECH ET TERM© YAHIAOUI AP3","ANGLAIS TECH ET TERM©","YAHIAOUI","AP3","ANGLAIS TECH ET TERM© YAHIAOUI AP3"]
[null,"9h 40                  11h 10","ACTION-INDUSTERIELLE©","FELLAG","AP3","ACTION-INDUSTERIELLE© FELLAG AP3","ACTION-INDUSTERIELLE©","FELLAG","AP3","ACTION-INDUSTERIELLE© FELLAG AP3","ACTION-INDUSTERIELLE©","FELLAG","AP3","ACTION-INDUSTERIELLE© FELLAG AP3"]
[null,"11h20                 12h 50","GESTION DE LA MAINTENANCE©","HAMDAOUI","A14","GESTION DE LA MAINTENANCE© HAMDAOUI A14",null,null,null,null,"U-PROCESS ET U-CONTROLEURS©","HOCINE","C48","U-PROCESS ET U-CONTROLEURS© HOCINE C48"]
[null,"13h 00              14h 30","TRAIT SIGNAL(TD) ","MASSOUT","A22","TRAIT SIGNAL(TD)  MASSOUT A22",null,null,null,null,"ELECTRO-PUISS(TP) ","BOUDOUDA","A26","ELECTRO-PUISS(TP)  BOUDOUDA A26"]
[null,"14h 40              16h 10",null,null,null,null,null,null,null,null,"ELECTRO-PUISS(TP) ","BOUDOUDA","A26","ELECTRO-PUISS(TP)  BOUDOUDA A26"]
[null,"16h 20              17h 50"]
["Samedi","8h 00                     9h 30"]
[null,"9h 40                  11h 10"]
[null,"11h20                 12h 50"]

{"sheet":"EAI MASTER11","index":8,"n_rows":36,"n_cols":14,"rows_kept":36,"cut":false,"hidden":false,"merged":[[0,5,0,13],[33,0,35,0],[3,0,8,0],[9,0,14,0],[0,0,0,1],[15,0,20,0],[21,0,26,0],[27,0,32,0]]}
["Spécialite:",null,null,null,null,"Automatique  informatique-electronique  systemes embarques-machines electrique"]
["Departement:","Section:",null,null,null,"Master 2ème année",null,null,null,null,null,null,null,{"$f":"TODAY()","v":"2017-10-05"}]
["Jour","SEANCES","MAI-I6","Enseignant","Salle","MAI-I6","MESE-16","Enseignant","Salle","MESE-16","MME-16","Enseignant","Salle","MME-16"]
["Dimanche","8h 00                     9h 30","COMMAND AVANCEE©","BENABDALLAH","B31","COMMAND AVANCEE© BENABDALLAH B31","AUTOMATE PROGRAMABLLE©","NAFAA","B311","AUTOMATE PROGRAMABLLE© NAFAA B311","COMM-MACH-ELECT(TP)","ABDESLAME","A27","COMM-MACH-ELECT(TP) ABDESLAME A27"]
[null,"9h 40                 11h 10","COMMAND AVANCEE(TD)","BENABDALLAH","B31","COMMAND AVANCEE(TD) BENABDALLAH B31","AUTOMATE PROGRAMABLLE(TD)","NAFAA","B311","AUTOMATE PROGRAMABLLE(TD) NAFAA B311","COMM-MACH-ELECT(TP)","ABDESLAME","A27","COMM-MACH-ELECT(TP) ABDESLAME A27"]
[null,"11h20                 12h 50"]
[null,"13h 00              14h 30","COMMAND AVANCEE(TP);ROBOTIQUE(TP)","BENABDALLAH;NAFAA","RC9/B;A26","COMMAND AVANCEE(TP) BENABDALLAH RC9/B\nROBOTIQUE(TP) NAFAA A26","SYSTEMES TEMPS REEL©","AKROUM","B32","SYSTEMES TEMPS REEL© AKROUM B32","MACHINES ELECT-SPECIAL©","GROUNI","B44","MACHINES ELECT-SPECIAL© GROUNI B44"]
[null,"14h 40              16h 10","COMMAND AVANCEE(TP);ROBOTIQUE(TP)","BENABDALLAH;NAFAA","RC9/B;A26","COMMAND AVANCEE(TP) BENABDALLAH RC9/B\nROBOTIQUE(TP) NAFAA A26","SYSTEMES TEMPS REEL(TD)","AKROUM","B31","SYSTEMES TEMPS REEL(TD) AKROUM B31","MACHINES ELECT-SPECIAL(TD)","GROUNI","B44","MACHINES ELECT-SPECIAL(TD) GROUNI B44"]
[null,"16h 20              17h 50"]
["Lundi","8h 00                    9h 30","ROBOTIQUE©","NAFAA","C48","ROBOTIQUE© NAFAA C48","[SI]SYSTEMES TEMPS REEL(TP);[SP]SYST EMBARQUES(TP)","AKROUM;HAROUNE-F","B210;B210","[SI]SYSTEMES TEMPS REEL(TP) AKROUM B210\n[SP]SYST EMBARQUES(TP) HAROUNE-F B210","COMMAND-MACH-ELECT©","ABDESLAME","A25","COMMAND-MACH-ELECT© ABDESLAME A25"]
[null,"9h 40                  11h 10","ROBOTIQUE(TD)","NAFAA","C48","ROBOTIQUE(TD) NAFAA C48","[SI]SYSTEMES TEMPS REEL(TP);[SP]SYST EMBARQUES(TP)","AKROUM;HAROUNE-F","B210;B210","[SI]SYSTEMES TEMPS REEL(TP) AKROUM B210\n[SP]SYST EMBARQUES(TP) HAROUNE-F B210","COMMAND-MACH-ELECT(TD)","ABDESLAME","A25","COMMAND-MACH-ELECT(TD) ABDESLAME A25"]
[null,"11h20                12h 50","FPGA ET PROG VHDL(TP)","GUERBAI","B210","FPGA ET PROG VHDL(TP) GUERBAI B210"]
[null,"13h 00              14h 30",null,null,null,null,"AUTOM PROGRA(TP)","NAFAA","AT15","AUTOM PROGRA(TP) NAFAA AT15","QUALITE-ENERG©","AHRICHE","A14","QUALITE-ENERG© AHRICHE A14"]
[null,"14h 40              16h 10",null,null,null,null,"AUTOM PROGRA(TP)","NAFAA","AT15","AUTOM PROGRA(TP) NAFAA AT15"]
[null,"16h 20              17h 50"]
["Mardi","8h 00                    9h 30","SYST A EVENEMENT DISCRETS©","KHELOUAT","B47","SYST A EVENEMENT DISCRETS© KHELOUAT B47","SYSTEMES EMBARQUE©","HAROUNE-F","B38","SYSTEMES EMBARQUE© HAROUNE-F B38","CONCEP-ASSI-ORD©","BOUZIDA","B39","CONCEP-ASSI-ORD© BOUZIDA B39"]
[null,"9h 40                 11h 10","SYST A EVENEMENT DISCRETS(TD)","KHELOUAT","B47","SYST A EVENEMENT DISCRETS(TD) KHELOUAT B47","SYSTEMES EMBARQUE(TD)","HAROUNE-F","B38","SYSTEMES EMBARQUE(TD) HAROUNE-F B38","REG-TYRAN-MACH©","BOUZIDA","B39","REG-TYRAN-MACH© BOUZIDA B39"]
[null,"11h20                12h 50","COMMAND AVANCEE©","BENABDALLAH","B47","COMMAND AVANCEE© BENABDALLAH B47","ROBOTIQUE","RAHMOUNE-EL","B36","ROBOTIQUE RAHMOUNE-EL B36"]
[null,"13h 00              14h 30",null,null,null,null,null,null,null,null,"CONCEP-ASS-ORD(TP)","BOUZIDA","A26","CONCEP-ASS-ORD(TP) BOUZIDA A26"]
[null,"14h 40              16h 10",null,null,null,null,null,null,null,null,"REG-TRANS-MACH(TD)","BOUZIDA","B45","REG-TRANS-MACH(TD) BOUZIDA B45"]
[null,"16h 20              17h 50"]
["Mercredi","8h 00                    9h 30","DEV-SITE-WEB©","NEKAA","B313","DEV-SITE-WEB© NEKAA B313","LANGAGE JAVA©","HARRAR","C412","LANGAGE JAVA© HARRAR C412","REG-TRANS-MACH(TP)","BOUZIDA","B210","REG-TRANS-MACH(TP) BOUZIDA B210"]
[null,"9h 40                 11h 10","FPGA ET PROGRAMATION©","GUERBAI","B313","FPGA ET PROGRAMATION© GUERBAI B313","LANGAGE JAVA(TP)","HARRAR","RC9/B","LANGAGE JAVA(TP) HARRAR RC9/B","IDENT-DIAG-MACH©","AIBECHE","A13","IDENT-DIAG-MACH© AIBECHE A13"]
[null,"11h20                12h 50","FPGA ET PROGRAMATION(TD)","GUERBAI","B313","FPGA ET PROGRAMATION(TD) GUERBAI B313",null,null,null,null,"IDENT-DIAG-MACH-ELECT(TP)","AIBECHE","A26","IDENT-DIAG-MACH-ELECT(TP) AIBECHE A26"]
[null,"13h 00              14h 30","TRAIT-IMAGE©","HARRAR","B312","TRAIT-IMAGE© HARRAR B312","CARTE A PUCES©","RAHMOUNE-EL","B310","CARTE A PUCES© RAHMOUNE-EL B310"]
[null,"14h 40              16h 10",null,null,null,null,"VISION ARTIFICIELLE(TD)","HARRAR","B310","VISION ARTIFICIELLE(TD) HARRAR B310"]
[null,"16h 20              17h 50"]
["Jeudi","8h 00                     9h 30","RECHERCHE-DOC-CONC©","GROUNI","B37","RECHERCHE-DOC-CONC© GROUNI B37","RECHERCHE-DOC-CONC©","GROUNI","B37","RECHERCHE-DOC-CONC© GROUNI B37","RECHERCHE-DOC-CONC©","GROUNI","B37","RECHERCHE-DOC-CONC© GROUNI B37"]
[null,"9h 40                  11h 10","SUPERVISION(SCADA)©","IKHLEF","B49","SUPERVISION(SCADA)© IKHLEF B49","SYSTEMES EMBARQUE©","HAROUNE-F","B48","SYSTEMES EMBARQUE© HAROUNE-F B48","ECHAUF-REF-ACT©","GROUNI","C42","ECHAUF-REF-ACT© GROUNI C42"]
[null,"11h20                 12h 50","SUPERVISION(SCADA)(TP)","IKHLEF","AB12","SUPERVISION(SCADA)(TP) IKHLEF AB12",null,null,null,null,"ECOLOGIE-IND-DEV©","FELLAG","C42","ECOLOGIE-IND-DEV© FELLAG C42"]
[null,"13h 00              14h 30","SUPERVISION(SCADA)(TP)","IKHLEF","AB12","SUPERVISION(SCADA)(TP) IKHLEF AB12","VISION ARTIFICIELLE©","HARRAR","A23","VISION ARTIFICIELLE© HARRAR A23"]
[null,"14h 40              16h 10",null,null,null,null,"VISION ARTIFICIELLEE(TP)","HARRAR","A27","VISION ARTIFICIELLEE(TP) HARRAR A27"]
[null,"16h 20              17h 50"]
["Samedi","8h 00                     9h 30"]
[null,"9h 40                  11h 10"]
[null,"11h20                 12h 50"]

{"sheet":"MAT MASTER11","index":9,"n_rows":36,"n_cols":18,"rows_kept":36,"cut":false,"hidden":false,"merged":[[0,0,0,1],[3,0,8,0],[33,0,35,0],[27,0,32,0],[21,0,26,0],[15,0,20,0],[9,0,14,0]]}
["Departement:",null,null,null,null,"génie matérieux",{"$f":"TODAY()","v":"2017-10-05"}]
[{"$f":"TODAY()","v":"2017-10-05"},"Section:",null,null,null,"Master 2ème année"]
["Jour","SEANCES","MMGC-16","Enseignant","Salle","MMGC-16","MGM-16","Enseignant","Salle","MGM-16","XXXXX","Enseignant","Salle","X","MMCV12","Enseignant","Salle","MMCV12"]
["Dimanche","8h 00                     9h 30","MATERIAUX COMP©","SAFI","B212","MATERIAUX COMP© SAFI B212",null,null,null,null,"XXXXX","XXX","XX","XXXXX XXX XX","PROJET ET EXPERIMENTATION(TD)","XXXXX","XXXXX","PROJET ET EXPERIMENTATION(TD) XXXXX XXXXX"]
[null,"9h 40                 11h 10","MATERIAUX RECYCLE©","AYADI","B212","MATERIAUX RECYCLE© AYADI B212",null,null,null,null,"XXXXX","XXX","XX","XXXXX XXX XX","VERRES SPECIAUX©","XXXXX","XXXXX","VERRES SPECIAUX© XXXXX XXXXX"]
[null,"11h20                 12h 50","MATERIAUX RECYCLE(TD)","AYADI","B212","MATERIAUX RECYCLE(TD) AYADI B212"]
[null,"13h 00              14h 30",null,null,null,null,null,null,null,null,"XXXXX","XXX","XX","XXXXX XXX XX","CERAMIQUE-ELECTRIQUE©","XXXXX","XXXXX","CERAMIQUE-ELECTRIQUE© XXXXX XXXXX"]
[null,"14h 40              16h 10","ELEMENTS FINIS(TP)","X","RC9/A","ELEMENTS FINIS(TP) X RC9/A","PROP-PHYSIQU-MEC(TD)","X","B214","PROP-PHYSIQU-MEC(TD) X B214","XXXXX","XXX","XX","XXXXX XXX XX"]
[null,"16h 20              17h 50"]
["Lundi","8h 00                    9h 30","METH-RECHERCHE©","ZERIZER","B213","METH-RECHERCHE© ZERIZER B213","CHOIX DES MATERIAUX©","X","B31","CHOIX DES MATERIAUX© X B31","XXXXX","XXX","XX","XXXXX XXX XX","EMAUX ET VITROCERAMIQUE©","XXXXX","XXXXX","EMAUX ET VITROCERAMIQUE© XXXXX XXXXX"]
[null,"9h 40                  11h 10","ELEMENTS FINIS©","X","B213","ELEMENTS FINIS© X B213","CHOIX DES MATERIAUX(TD)","X","B31","CHOIX DES MATERIAUX(TD) X B31","XXXXX","XXX","XX","XXXXX XXX XX","ANGLAIS©","XXXXX","XXXXX","ANGLAIS© XXXXX XXXXX"]
[null,"11h20                12h 50",null,null,null,null,null,null,null,null,"XXXXX","XXX","XX","XXXXX XXX XX"]
[null,"13h 00              14h 30","DURABULITE DES MATERIAUX(TP)","RABAHI","B19","DURABULITE DES MATERIAUX(TP) RABAHI B19","CND(TP)","ZERIZER","B214","CND(TP) ZERIZER B214","XXXXX","XXX","XX","XXXXX XXX XX","EMAUX-VITROCER(TP)(1/2G); TECH-CONT-CER(TP)(1/2G)","WW;WW","WW;WW","EMAUX-VITROCER(TP)(1/2G) WW WW\n TECH-CONT-CER(TP)(1/2G) WW WW"]
[null,"14h 40              16h 10","DURABULITE DES MATERIAUX(TP)","RABAHI","B19","DURABULITE DES MATERIAUX(TP) RABAHI B19","DEFAUTS 2 ET DEFORM PLASTIQUE(TD)","X","B36","DEFAUTS 2 ET DEFORM PLASTIQUE(TD) X B36",null,null,null,null,"EMAUX-VITROCER(TP)(1/2G); TECH-CONT-CER(TP)(1/2G)","WW;WW","WW;WW","EMAUX-VITROCER(TP)(1/2G) WW WW\n TECH-CONT-CER(TP)(1/2G) WW WW"]
[null,"16h 20              17h 50"]
["Mardi","8h 00                    9h 30","DURABULITE DES MATERIAUX©","BENMOUNAH+RABAHI","B213","DURABULITE DES MATERIAUX© BENMOUNAH+RABAHI B213","CND©","ZERIZER","B214","CND© ZERIZER B214","XXXXX","XXX","XX","XXXXX XXX XX","RUP-MATER-FRAGILE©","WW","WW","RUP-MATER-FRAGILE© WW WW"]
[null,"9h 40                 11h 10","DURABULITE DES MATERIAUX©","BENMOUNAH+RABAHI","B213","DURABULITE DES MATERIAUX© BENMOUNAH+RABAHI B213","MATERIAUX AU CHOIX©","CHEMANI-F","B214","MATERIAUX AU CHOIX© CHEMANI-F B214","XXXXX","XXX","XX","XXXXX XXX XX","TECH-CONT-CER-VER©","WW","WW","TECH-CONT-CER-VER© WW WW"]
[null,"11h20                12h 50",null,null,null,null,null,null,null,null,null,null,null,null,"RUP-MATER-FRAGILE(TD)","WW","WW","RUP-MATER-FRAGILE(TD) WW WW"]
[null,"13h 00              14h 30",null,null,null,null,"FATIGUE DES MATR(TD)","BENLOKRICHI","B41","FATIGUE DES MATR(TD) BENLOKRICHI B41","XXXXX","XXX","XX","XXXXX XXX XX"]
[null,"14h 40              16h 10",null,null,null,null,null,null,null,null,"XXXXX","XXX","XX","XXXXX XXX XX"]
[null,"16h 20              17h 50"]
["Mercredi","8h 00                    9h 30","MATER-COMP(TD)","SAFI","B213","MATER-COMP(TD) SAFI B213",null,null,null,null,"XXXXX","XXX","XX","XXXXX XXX XX","CERAMIQUE-THERM-MEC©","WW","WW","CERAMIQUE-THERM-MEC© WW WW"]
[null,"9h 40                 11h 10","BETONS INNOVANTS©","CHAID+GHERNOUTI-H","B213","BETONS INNOVANTS© CHAID+GHERNOUTI-H B213",null,null,null,null,"XXXXX","XXX","XX","XXXXX XXX XX","EQUIP-INDUST-CER-VERRE©","WW","WW","EQUIP-INDUST-CER-VERRE© WW WW"]
[null,"11h20                12h 50",null,null,null,null,"MATERIAUX AU CHOIX©","CHEMANI-F","B31","MATERIAUX AU CHOIX© CHEMANI-F B31","XXXXX","XXX","XX","XXXXX XXX XX"]
[null,"13h 00              14h 30",null,null,null,null,"DEFAUTS 2 ET DEFORM PLASTIQUE©","BEZZAZI","B212","DEFAUTS 2 ET DEFORM PLASTIQUE© BEZZAZI B212","XXXXX","XXX","XX","XXXXX XXX XX","VERRES-SPECIAUX(TP)(1/2G);CERA-THERM(TP)(1/2G)","QQ;QQ","WW;WW","VERRES-SPECIAUX(TP)(1/2G) QQ WW\nCERA-THERM(TP)(1/2G) QQ WW"]
[null,"14h 40              16h 10",null,null,null,null,"DEFAUTS 2 ET DEFORM PLASTIQUE©","BEZZAZI","B212","DEFAUTS 2 ET DEFORM PLASTIQUE© BEZZAZI B212","XXXXX","XXX","XX","XXXXX XXX XX","VERRES-SPECIAUX(TP)(1/2G);CERA-THERM(TP)(1/2G)","QQ;QQ","WW;WW","VERRES-SPECIAUX(TP)(1/2G) QQ WW\nCERA-THERM(TP)(1/2G) QQ WW"]
[null,"16h 20              17h 50"]
["Jeudi","8h 00                     9h 30","RECHERCHE DOCUMENTAIRE ET CONCEP DE MEM©","HAMIANE","AP4","RECHERCHE DOCUMENTAIRE ET CONCEP DE MEM© HAMIANE AP4","RECHERCHE DOCUMENTAIRE ET CONCEP DE MEM©","HAMIANE","AP4","RECHERCHE DOCUMENTAIRE ET CONCEP DE MEM© HAMIANE AP4","XXXXX","XXX","XX","XXXXX XXX XX"]
[null,"9h 40                  11h 10","PLANS D'EXPERIENCES©","BENOTMANE","B214","PLANS D'EXPERIENCES© BENOTMANE B214","PROP-PHY-MEC-CER©","HAMIANE","B44","PROP-PHY-MEC-CER© HAMIANE B44","XXXXX","XXX","XX","XXXXX XXX XX"]
[null,"11h20                 12h 50"]
[null,"13h 00              14h 30",null,null,null,null,"FATIGUE DES MATR©","BEZZAZI","B212","FATIGUE DES MATR© BEZZAZI B212",null,null,null,null,"CERAMIQUE-USAG-ELECT(TP)","WW","WW","CERAMIQUE-USAG-ELECT(TP) WW WW"]
[null,"14h 40              16h 10",null,null,null,null,"DEGRADATION DES POLYMERS©","BEZZAZI","B212","DEGRADATION DES POLYMERS© BEZZAZI B212",null,null,null,null," CERAMIQUE-USAG-ELECT(TP)","WW","WW"," CERAMIQUE-USAG-ELECT(TP) WW WW"]
[null,"16h 20              17h 50"]
["Samedi","8h 00                     9h 30","PATHOLOGIE DES CONSTRUCTIONS©","HAMIANE+GHERNOUTI-H","B213","PATHOLOGIE DES CONSTRUCTIONS© HAMIANE+GHERNOUTI-H B213","METH-EXP-CONT-MAT©","X","B214","METH-EXP-CONT-MAT© X B214"]
[null,"9h 40                  11h 10","BETON PRECONTRIANT©","X","B213","BETON PRECONTRIANT© X B213","METH-EXP-CONT-MAT(TP)","X","B214","METH-EXP-CONT-MAT(TP) X B214"]
[null,"11h20                 12h 50","BETON PRECONTRIANT(TD)","X","B213","BETON PRECONTRIANT(TD) X B213"]

{"sheet":"MAT MASTER12","index":10,"n_rows":36,"n_cols":18,"rows_kept":36,"cut":false,"hidden":false,"merged":[[0,0,0,1],[3,0,8,0],[33,0,35,0],[27,0,32,0],[21,0,26,0],[15,0,20,0],[9,0,14,0]]}
[null,null,null,null,null,"Spécialité: matérieux gc-G Matérieaux"]
[{"$f":"TODAY()","v":"2017-10-05"},"Section:",null,null,null,"Master 1ère année"]
["Jour","SEANCES","MMGC-17","Enseignant","Salle","MMGC-17","MGM-17","Enseignant","Salle","MGM-17","MGPM-16","Enseignant","Salle","MGPM-16","MCV15","Enseignant","Salle","MCV15"]
["Dimanche","8h 00                     9h 30","TECH DES BETONS©","GHERNOUTI-H","C412","TECH DES BETONS© GHERNOUTI-H C412","ANGLAIS©","X","B37","ANGLAIS© X B37","CH-PHY-SILICATES©","XXX","XXX","CH-PHY-SILICATES© XXX XXX","XXX","XXX","XXX","XXX XXX XXX"]
[null,"9h 40                 11h 10","TECH DES BETONS(TD)","GHERNOUTI-H","C412","TECH DES BETONS(TD) GHERNOUTI-H C412","ELAB-CAR-MAT-CERAMIQUE©","BOUMCHEDDA","B37","ELAB-CAR-MAT-CERAMIQUE© BOUMCHEDDA B37","CH-PHY-SILICATES(TD)","XXX","XXX","CH-PHY-SILICATES(TD) XXX XXX","XXX","XXX","XXX","XXX XXX XXX"]
[null,"11h20                 12h 50"]
[null,"13h 00              14h 30","MAT DE CONSTRUCTION©","RABAHI","B37","MAT DE CONSTRUCTION© RABAHI B37","METHO DES ELEMENTS FINIS©","SETTET","C42","METHO DES ELEMENTS FINIS© SETTET C42","CLASS-STRUC-MAT©","XXX","XXX","CLASS-STRUC-MAT© XXX XXX","XXX","XXX","XXX","XXX XXX XXX"]
[null,"14h 40              16h 10","MAT DE CONSTRUCTION(TD)","RABAHI","B37","MAT DE CONSTRUCTION(TD) RABAHI B37","METH E-F(TD)","SETTET","C42","METH E-F(TD) SETTET C42","CLASS-STRUC-MAT(TD)","XXX","XXX","CLASS-STRUC-MAT(TD) XXX XXX"]
[null,"16h 20              17h 50"]
["Lundi","8h 00                    9h 30","ELASTICITE©","TAZROUT","C412","ELASTICITE© TAZROUT C412","THERMODYNM DIAG EQUIP©","BENOTHMANE","B418","THERMODYNM DIAG EQUIP© BENOTHMANE B418",null,null,null,null,"XXX","XXX","XXX","XXX XXX XXX"]
[null,"9h 40                  11h 10","TEHERMIQUE DE BAT©","SAIDI","C412","TEHERMIQUE DE BAT© SAIDI C412","THERMODYNM DIAG EQUIP(TD)","BENOTHMANE","B418","THERMODYNM DIAG EQUIP(TD) BENOTHMANE B418",null,null,null,null,"XXX","XXX","XXX","XXX XXX XXX"]
[null,"11h20                12h 50","ELASTICITE(TD)","TAZROUT","C412","ELASTICITE(TD) TAZROUT C412","ELEMENTS FINIS(TP)","SETTET","RC9/B","ELEMENTS FINIS(TP) SETTET RC9/B","THERMODYNAMIQUE APP©","XXX","XXX","THERMODYNAMIQUE APP© XXX XXX"]
[null,"13h 00              14h 30",null,null,null,null,null,null,null,null,"THERMODYNAMIQUE APP(TD)","XXX","XXX","THERMODYNAMIQUE APP(TD) XXX XXX","XXX","XXX","XXX","XXX XXX XXX"]
[null,"14h 40              16h 10",null,null,null,null,null,null,null,null,"THERMODYNAMIQUE APP©","XXX","XXX","THERMODYNAMIQUE APP© XXX XXX"]
[null,"16h 20              17h 50"]
["Mardi","8h 00                    9h 30","OUVRAGE EN BETON©","X","B35","OUVRAGE EN BETON© X B35","STRUCTURE CRISTALLINES DEF PONC©","BOULAHIA","B42","STRUCTURE CRISTALLINES DEF PONC© BOULAHIA B42","CND©","XXX","XXX","CND© XXX XXX","XXX","XXX","XXX","XXX XXX XXX"]
[null,"9h 40                 11h 10","TEHERMIQUE DE BAT(TD)","LIMAM","B35","TEHERMIQUE DE BAT(TD) LIMAM B35","STRUCTURE CRISTALLINES DEF PONC(TD)","BOULAHIA","B42","STRUCTURE CRISTALLINES DEF PONC(TD) BOULAHIA B42",null,null,null,null,"XXX","XXX","XXX","XXX XXX XXX"]
[null,"11h20                12h 50","ANGLAIS©","X","B35","ANGLAIS© X B35","MANAG DES RESS TECHN©","TAZROUT","B42","MANAG DES RESS TECHN© TAZROUT B42","CRISTALLOGRAPHIE©","XXX","XXX","CRISTALLOGRAPHIE© XXX XXX"]
[null,"13h 00              14h 30",null,null,null,null,null,null,null,null,"CRISTALLOGRAPHIE(TD)","XXX","XXX","CRISTALLOGRAPHIE(TD) XXX XXX","XXX","XXX","XXX","XXX XXX XXX"]
[null,"14h 40              16h 10"]
[null,"16h 20              17h 50"]
["Mercredi","8h 00                    9h 30","OUVRAGE EN BETON ARMEE©","X","B44","OUVRAGE EN BETON ARMEE© X B44","COMP-MEC-MAT-MAT©","DJEBILI","C45","COMP-MEC-MAT-MAT© DJEBILI C45","RHEOLOGIE©","XXX","XXX","RHEOLOGIE© XXX XXX"]
[null,"9h 40                 11h 10","OUVRAGE EN BETON ARMEE(TD)","X","B44","OUVRAGE EN BETON ARMEE(TD) X B44","COMP-MEC-MAT-MAT(TD)","DJEBILI","C45","COMP-MEC-MAT-MAT(TD) DJEBILI C45","CARACTERISATION DES MATR(TP)","XXX","XXX","CARACTERISATION DES MATR(TP) XXX XXX","XXX","XXX","XXX","XXX XXX XXX"]
[null,"11h20                12h 50"]
[null,"13h 00              14h 30","PHYSIQUE DES MAT(TP)","SAFI","B19","PHYSIQUE DES MAT(TP) SAFI B19","ESSAI MECANIQUE(1/2G)(TP) ","DJEBILI","X","ESSAI MECANIQUE(1/2G)(TP)  DJEBILI X"]
[null,"14h 40              16h 10","PHYSIQUE DES MAT(TP)","SAFI","B19","PHYSIQUE DES MAT(TP) SAFI B19"]
[null,"16h 20              17h 50"]
["Jeudi","8h 00                     9h 30",null,null,null,null,null,null,null,null,"INSTRUMENTATION ET REGULATION©","XXX","XXX","INSTRUMENTATION ET REGULATION© XXX XXX"]
[null,"9h 40                  11h 10","TECHN DES BETON(TP)","CHAID","RC9/B","TECHN DES BETON(TP) CHAID RC9/B","ELAB-CAR-MAT-CERAMIQUE(TP)","BOUMCHEDDA","B112","ELAB-CAR-MAT-CERAMIQUE(TP) BOUMCHEDDA B112","INSTRUMENTATION ET REGULATION(TP)","XXX","XXX","INSTRUMENTATION ET REGULATION(TP) XXX XXX","XXX","XXX","XXX","XXX XXX XXX"]
[null,"11h20                 12h 50","TECHN DES BETON(TP)","CHAID","RC9/B","TECHN DES BETON(TP) CHAID RC9/B","VALORISATION EST REGLAGE DES MATERIAUX©","KHERIBET","B49","VALORISATION EST REGLAGE DES MATERIAUX© KHERIBET B49"]
[null,"13h 00              14h 30",null,null,null,null,null,null,null,null,"METHODES ELECTROCH ANAL©","XXX","XXX","METHODES ELECTROCH ANAL© XXX XXX","XXX","XXX","XXX","XXX XXX XXX"]
[null,"14h 40              16h 10",null,null,null,null,null,null,null,null,"METHODES ELECTROCH ANAL(TP)","XXX","XXX","METHODES ELECTROCH ANAL(TP) XXX XXX","XXX","XXX","XXX","XXX XXX XXX"]
[null,"16h 20              17h 50"]
["Samedi","8h 00                     9h 30",null,null,null,null,null,null,null,null,null,null,null,null,"XXX","XXX","XXX","XXX XXX XXX"]
[null,"9h 40                  11h 10","LIANTS(TP)","CHAID","B19","LIANTS(TP) CHAID B19",null,null,null,null,null,null,null,null,"XXX","XXX","XXX","XXX XXX XXX"]
[null,"11h20                 12h 50","LIANTS(TP)","CHAID","B19","LIANTS(TP) CHAID B19"]

{"sheet":"MAT LICENCE10","index":11,"n_rows":36,"n_cols":18,"rows_kept":36,"cut":false,"hidden":false,"merged":[[0,0,0,1],[3,0,8,0],[33,0,35,0],[27,0,32,0],[21,0,26,0],[15,0,20,0],[9,0,14,0]]}
[null,null,null,null,null,"Filière:G-Mécanique",null,null,null,"Spécialité:G-matérieaux"]
[{"$f":"TODAY()","v":"2017-10-05"},"Section:",null,null,null,"licence 3ème année"]
["Jour","SEANCES","LGM-15/A","Enseignant","Salle","LGM-15/A","LGM-15/B","Enseignant","Salle","LGM-15/B","LGM-15/C","Enseignant","Salle","LGM-15/C","LSTM11","Enseignant","Salle","LSTM11"]
["Dimanche","8h 00                     9h 30",null,null,null,null,"METHO D'ANALYS ET CARACTERISATION(TP)","BOUMCHEDDA","B16","METHO D'ANALYS ET CARACTERISATION(TP) BOUMCHEDDA B16","ANGLAIS©","X","A13","ANGLAIS© X A13","METROLOGIE©","XXX","XXX","METROLOGIE© XXX XXX"]
[null,"9h 40                 11h 10","TRANSFER DE CHALEUR ET DE MASSE©","SAIDI","AP1","TRANSFER DE CHALEUR ET DE MASSE© SAIDI AP1","TRANSFER DE CHALEUR ET DE MASSE©","SAIDI","AP1","TRANSFER DE CHALEUR ET DE MASSE© SAIDI AP1","TRANSFER DE CHALEUR ET DE MASSE©","SAIDI","AP1","TRANSFER DE CHALEUR ET DE MASSE© SAIDI AP1","METAUX ET ALLIAGE©","XXX","XXX","METAUX ET ALLIAGE© XXX XXX"]
[null,"11h20                 12h 50","TRANSFER DE CHALEUR ET DE MASSE(TD)","X","RC13","TRANSFER DE CHALEUR ET DE MASSE(TD) X RC13",null,null,null,null,null,null,null,null,"MATH ASSIST PAR ORD©","XXX","XXX","MATH ASSIST PAR ORD© XXX XXX"]
[null,"13h 00              14h 30"]
[null,"14h 40              16h 10",null,null,null,null,null,null,null,null,null,null,null,null,"METAUX ET ALLIAGE(TD)","XXX","XXX","METAUX ET ALLIAGE(TD) XXX XXX"]
[null,"16h 20              17h 50"]
["Lundi","8h 00                    9h 30","CERAMIQUE ET VERRE(TD)","ABOUTALEB","B27","CERAMIQUE ET VERRE(TD) ABOUTALEB B27","METAUX ET ALLIAGE(TD)","DILMI","C49","METAUX ET ALLIAGE(TD) DILMI C49","METHO D'ANALYS ET CARACTERISATION(TP)","BOUMCHEDDA","B112","METHO D'ANALYS ET CARACTERISATION(TP) BOUMCHEDDA B112","LES LIANTS MINEREAUX©","XXX","XXX","LES LIANTS MINEREAUX© XXX XXX"]
[null,"9h 40                  11h 10","METHO D'ANALYS ET CARACTERISATION(TP)","BOUMCHEDDA","B112","METHO D'ANALYS ET CARACTERISATION(TP) BOUMCHEDDA B112","CERAMIQUE ET VERRE(TD)","ABOUTALEB","B27","CERAMIQUE ET VERRE(TD) ABOUTALEB B27","M-M-C(TD)","ZERIZER","A24","M-M-C(TD) ZERIZER A24","LES BETONS©","XXX","XXX","LES BETONS© XXX XXX"]
[null,"11h20                12h 50",null,null,null,null,null,null,null,null,null,null,null,null,"MATH ASSIST PAR ORD(TD)","XXX","XXX","MATH ASSIST PAR ORD(TD) XXX XXX"]
[null,"13h 00              14h 30","METAUX ET ALLIAGES©","DILMI","B37","METAUX ET ALLIAGES© DILMI B37","METAUX ET ALLIAGES©","DILMI","B37","METAUX ET ALLIAGES© DILMI B37","METAUX ET ALLIAGES©","DILMI","B37","METAUX ET ALLIAGES© DILMI B37"]
[null,"14h 40              16h 10","LIANTS ET BETONS©","CHAID","B37","LIANTS ET BETONS© CHAID B37","LIANTS ET BETONS©","CHAID","B37","LIANTS ET BETONS© CHAID B37","LIANTS ET BETONS©","CHAID","B37","LIANTS ET BETONS© CHAID B37"]
[null,"16h 20              17h 50"]
["Mardi","8h 00                    9h 30",null,null,null,null,null,null,null,null,"CERAMIQUE ET VERRE(TD)","ABOUTALEB","B27","CERAMIQUE ET VERRE(TD) ABOUTALEB B27","POLYMERES ET MAT COMP©","XXX","XXX","POLYMERES ET MAT COMP© XXX XXX"]
[null,"9h 40                 11h 10","MEC DES MELIEUX CONTINUS©","ZERIZER","AP1","MEC DES MELIEUX CONTINUS© ZERIZER AP1","MEC DES MELIEUX CONTINUS©","ZERIZER","AP1","MEC DES MELIEUX CONTINUS© ZERIZER AP1","MEC DES MELIEUX CONTINUS©","ZERIZER","AP1","MEC DES MELIEUX CONTINUS© ZERIZER AP1","LES LIANTS MINERAUX(TP)(1/2G);LES BETON(TP)((1/2G)","XXX;XXX","XXX;XXX","LES LIANTS MINERAUX(TP)(1/2G) XXX XXX\nLES BETON(TP)((1/2G) XXX XXX"]
[null,"11h20                12h 50","ASSEMBLAGES DES MATERIAUX©","BENLOKRICHI","AP1","ASSEMBLAGES DES MATERIAUX© BENLOKRICHI AP1","ASSEMBLAGES DES MATERIAUX©","BENLOKRICHI","AP1","ASSEMBLAGES DES MATERIAUX© BENLOKRICHI AP1","ASSEMBLAGES DES MATERIAUX©","BENLOKRICHI","AP1","ASSEMBLAGES DES MATERIAUX© BENLOKRICHI AP1","LES LIANTS MINERAUX(TP)(1/2G);LES BETON(TP)((1/2G)","XXX;XXX","XXX;XXX","LES LIANTS MINERAUX(TP)(1/2G) XXX XXX\nLES BETON(TP)((1/2G) XXX XXX"]
[null,"13h 00              14h 30"]
[null,"14h 40              16h 10","CERAMIQUE ET VERRE(TP);CERAMIQUE ET VERRE(TP)","CHEMANI-F+ABOUTALEB;SAMMAR","B27;B16","CERAMIQUE ET VERRE(TP) CHEMANI-F+ABOUTALEB B27\nCERAMIQUE ET VERRE(TP) SAMMAR B16","M-M-C(TD)","ZERIZER","A23","M-M-C(TD) ZERIZER A23","METAUX ET ALLIAGES(TP)","SITOUAH","AT-INIL","METAUX ET ALLIAGES(TP) SITOUAH AT-INIL","ANGLAIS©","XXX","XXX","ANGLAIS© XXX XXX"]
[null,"16h 20              17h 50"]
["Mercredi","8h 00                    9h 30",null,null,null,null,null,null,null,null,"TRANSFER DE CHALEUR ET DE MASSE(TP)","X","C35","TRANSFER DE CHALEUR ET DE MASSE(TP) X C35","VERRES©","XXX","XXX","VERRES© XXX XXX"]
[null,"9h 40                 11h 10","METAUX ET ALLIAGES(TP)","SITOUAH","AT-INIL","METAUX ET ALLIAGES(TP) SITOUAH AT-INIL","TRANSFER DE CHALEUR ET DE MASSE(TD)","X","B39","TRANSFER DE CHALEUR ET DE MASSE(TD) X B39","CERAMIQUE ET VERRE(TP);CERAMIQUE ET VERRE(TP)","CHEMANI-F+ABOUTALEB;SAMMAR","B27;B12","CERAMIQUE ET VERRE(TP) CHEMANI-F+ABOUTALEB B27\nCERAMIQUE ET VERRE(TP) SAMMAR B12","CERAMIQUE©","XXX","XXX","CERAMIQUE© XXX XXX"]
[null,"11h20                12h 50"]
[null,"13h 00              14h 30","CERAMIQUE ET VERRES©","ABOUTALEB","A14","CERAMIQUE ET VERRES© ABOUTALEB A14","CERAMIQUE ET VERRES©","ABOUTALEB","A14","CERAMIQUE ET VERRES© ABOUTALEB A14","CERAMIQUE ET VERRES©","ABOUTALEB","A14","CERAMIQUE ET VERRES© ABOUTALEB A14","POLYMERES ET MAT COMP©","XXX","XXX","POLYMERES ET MAT COMP© XXX XXX"]
[null,"14h 40              16h 10",null,null,null,null,"CERAMIQUE ET VERRE(TP)","CHEMANI-F+ABOUTALEB","B27","CERAMIQUE ET VERRE(TP) CHEMANI-F+ABOUTALEB B27",null,null,null,null,"POLYMERES ET MAT COMP©","XXX","XXX","POLYMERES ET MAT COMP© XXX XXX"]
[null,"16h 20              17h 50"]
["Jeudi","8h 00                     9h 30","METHO D'ANALYS ET CARACTERISATION©","BOUMCHEDDA","A24","METHO D'ANALYS ET CARACTERISATION© BOUMCHEDDA A24","METHO D'ANALYS ET CARACTERISATION©","BOUMCHEDDA","A24","METHO D'ANALYS ET CARACTERISATION© BOUMCHEDDA A24","METHO D'ANALYS ET CARACTERISATION©","BOUMCHEDDA","A24","METHO D'ANALYS ET CARACTERISATION© BOUMCHEDDA A24","CRISTALLOGRAPHIE©","XXX","XXX","CRISTALLOGRAPHIE© XXX XXX"]
[null,"9h 40                  11h 10","M-M-C(TD)","ZERIZER","A23","M-M-C(TD) ZERIZER A23","CERAMIQUE ET VERRE(TD)","ABOUTALEB","B27","CERAMIQUE ET VERRE(TD) ABOUTALEB B27","METAUX ET ALLIAGE(TD)","DILMI","A21","METAUX ET ALLIAGE(TD) DILMI A21","CERAMIQUE(TP)(1/2G);VERRES(TP)(1/2G)","XXX;XXX","XXX;XXX","CERAMIQUE(TP)(1/2G) XXX XXX\nVERRES(TP)(1/2G) XXX XXX"]
[null,"11h20                 12h 50",null,null,null,null,null,null,null,null,null,null,null,null,"CERAMIQUE(TP)(1/2G);VERRES(TP)(1/2G)","XXX;XXX","XXX;XXX","CERAMIQUE(TP)(1/2G) XXX XXX\nVERRES(TP)(1/2G) XXX XXX"]
[null,"13h 00              14h 30","METAUX ET ALLIAGE(TD)","DILMI","B35","METAUX ET ALLIAGE(TD) DILMI B35","METAUX ET ALLIAGES(TP)","SITOUAH","AT-INIL","METAUX ET ALLIAGES(TP) SITOUAH AT-INIL"]
[null,"14h 40              16h 10",null,null,null,null,null,null,null,null,null,null,null,null,"METROLOGIE(TD)","XXX","XXX","METROLOGIE(TD) XXX XXX"]
[null,"16h 20              17h 50"]
["Samedi","8h 00                     9h 30","TRANSFER DE CHALEUR ET DE MASSE(TP)","X","C35","TRANSFER DE CHALEUR ET DE MASSE(TP) X C35","ANGLAIS©","X","B31","ANGLAIS© X B31"]
[null,"9h 40                  11h 10","ANGLAIS©","X","C45","ANGLAIS© X C45","CERAMIQUE ET VERRE(TP)","SAMMAR","B12","CERAMIQUE ET VERRE(TP) SAMMAR B12","TRANSFER DE CHALEUR ET DE MASSE(TD)","X","X","TRANSFER DE CHALEUR ET DE MASSE(TD) X X"]
[null,"11h20                 12h 50","NORMALISATION©","HAMIANE","C43","NORMALISATION© HAMIANE C43","NORMALISATION©","HAMIANE","C43","NORMALISATION© HAMIANE C43","NORMALISATION©","HAMIANE","C43","NORMALISATION© HAMIANE C43"]

{"sheet":"DGPI LICENCE10","index":12,"n_rows":36,"n_cols":14,"rows_kept":36,"cut":false,"hidden":false,"merged":[[33,0,35,0],[3,0,8,0],[9,0,14,0],[0,0,0,1],[15,0,20,0],[21,0,26,0],[27,0,32,0]]}
[null,null,null,null,null,null,null,null,null,"Filière:génie des procédés",null,null,null,"Spécialite:génie des procédés"]
[{"$f":"TODAY()","v":"2017-10-05"},"Section:",null,null,null,"licence 3ème année"]
["Jour","SEANCES","LGP-15/A","Enseignant","Salle","LGP-15/A","LGP-15/B","Enseignant","Salle","LGP-15/B","LGP-15/C","Enseignant","Salle","LGP-15/C"]
["Dimanche","8h 00                     9h 30","[SP]TECH D'ANALYSE(TP)","BOUTICHE","B24","[SP]TECH D'ANALYSE(TP) BOUTICHE B24","CHIMIE PHYSIQUE5(1/2G)(TP);G.CHIMIQUE(1/2G)(TP)","MALEK;BANDOU","B26;C210","CHIMIE PHYSIQUE5(1/2G)(TP) MALEK B26\nG.CHIMIQUE(1/2G)(TP) BANDOU C210","[SI]TECH D'ANALYSE(TP)","BOUTICHE","B24","[SI]TECH D'ANALYSE(TP) BOUTICHE B24"]
[null,"9h 40                 11h 10","[SP]TECH D'ANALYSE(TP)","BOUTICHE","B24","[SP]TECH D'ANALYSE(TP) BOUTICHE B24","CHIMIE PHYSIQUE5(1/2G)(TP);G.CHIMIQUE(1/2G)(TP)","MALEK;BANDOU","B26;C210","CHIMIE PHYSIQUE5(1/2G)(TP) MALEK B26\nG.CHIMIQUE(1/2G)(TP) BANDOU C210","[SI]TECH D'ANALYSE(TP)","BOUTICHE","B24","[SI]TECH D'ANALYSE(TP) BOUTICHE B24"]
[null,"11h20                 12h 50"]
[null,"13h 00              14h 30","TECH D'ANALYSE©","GHEMATI","AP2","TECH D'ANALYSE© GHEMATI AP2","TECH D'ANALYSE©","GHEMATI","AP2","TECH D'ANALYSE© GHEMATI AP2","TECH D'ANALYSE©","GHEMATI","AP2","TECH D'ANALYSE© GHEMATI AP2"]
[null,"14h 40              16h 10","INSTRUMENTATION-CAPTEURS©","BOUAZIZ","AP2","INSTRUMENTATION-CAPTEURS© BOUAZIZ AP2","INSTRUMENTATION-CAPTEURS©","BOUAZIZ","AP2","INSTRUMENTATION-CAPTEURS© BOUAZIZ AP2","INSTRUMENTATION-CAPTEURS©","BOUAZIZ","AP2","INSTRUMENTATION-CAPTEURS© BOUAZIZ AP2"]
[null,"16h 20              17h 50"]
["Lundi","8h 00                    9h 30"]
[null,"9h 40                  11h 10","PROC DES PHARMACETIQUE©","TALANTIKIT","AP4","PROC DES PHARMACETIQUE© TALANTIKIT AP4","PROC DES PHARMACETIQUE©","TALANTIKIT","AP4","PROC DES PHARMACETIQUE© TALANTIKIT AP4","PROC DES PHARMACETIQUE©","TALANTIKIT","AP4","PROC DES PHARMACETIQUE© TALANTIKIT AP4"]
[null,"11h20                12h 50","TRANSF DE MATIERE©","ASSELAH","AP4","TRANSF DE MATIERE© ASSELAH AP4","TRANSF DE MATIERE©","ASSELAH","AP4","TRANSF DE MATIERE© ASSELAH AP4","TRANSF DE MATIERE©","ASSELAH","AP4","TRANSF DE MATIERE© ASSELAH AP4"]
[null,"13h 00              14h 30","TRANSF DE MATIERE(TD)","ASSELAH","B414","TRANSF DE MATIERE(TD) ASSELAH B414"]
[null,"14h 40              16h 10",null,null,null,null,null,null,null,null,"TRANSF DE MATIERE(TD)","ASSELAH","B415","TRANSF DE MATIERE(TD) ASSELAH B415"]
[null,"16h 20              17h 50"]
["Mardi","8h 00                    9h 30","TRANS DE QUANTITE DE MOUV©","SEKOUR","AP3","TRANS DE QUANTITE DE MOUV© SEKOUR AP3","TRANS DE QUANTITE DE MOUV©","SEKOUR","AP3","TRANS DE QUANTITE DE MOUV© SEKOUR AP3","TRANS DE QUANTITE DE MOUV©","SEKOUR","AP3","TRANS DE QUANTITE DE MOUV© SEKOUR AP3"]
[null,"9h 40                 11h 10","CINETIQUE ETCATALYSE HOMOGENE©","ASSELAH","AP3","CINETIQUE ETCATALYSE HOMOGENE© ASSELAH AP3","CINETIQUE ETCATALYSE HOMOGENE©","ASSELAH","AP3","CINETIQUE ETCATALYSE HOMOGENE© ASSELAH AP3","CINETIQUE ETCATALYSE HOMOGENE©","ASSELAH","AP3","CINETIQUE ETCATALYSE HOMOGENE© ASSELAH AP3"]
[null,"11h20                12h 50",null,null,null,null,"TRANSF DE MATIERE(TD)","ASSELAH","B415","TRANSF DE MATIERE(TD) ASSELAH B415"]
[null,"13h 00              14h 30",null,null,null,null,null,null,null,null,"CHIMIE PHYSIQUE5(1/2G)(TP);G.CHIMIQUE(1/2G)(TP)","MALEK;ZIDANI","B24;C210","CHIMIE PHYSIQUE5(1/2G)(TP) MALEK B24\nG.CHIMIQUE(1/2G)(TP) ZIDANI C210"]
[null,"14h 40              16h 10",null,null,null,null,null,null,null,null,"CHIMIE PHYSIQUE5(1/2G)(TP);G.CHIMIQUE(1/2G)(TP)","MALEK;ZIDANI","B24;C210","CHIMIE PHYSIQUE5(1/2G)(TP) MALEK B24\nG.CHIMIQUE(1/2G)(TP) ZIDANI C210"]
[null,"16h 20              17h 50"]
["Mercredi","8h 00                    9h 30","ELECTROCHIMIE©","LOUHAB","AP2","ELECTROCHIMIE© LOUHAB AP2","ELECTROCHIMIE©","LOUHAB","AP2","ELECTROCHIMIE© LOUHAB AP2","ELECTROCHIMIE©","LOUHAB","AP2","ELECTROCHIMIE© LOUHAB AP2"]
[null,"9h 40                 11h 10","POLLUTION-AIR-EAU-SOL©","BENRACHEDI","AP2","POLLUTION-AIR-EAU-SOL© BENRACHEDI AP2","POLLUTION-AIR-EAU-SOL©","BENRACHEDI","AP2","POLLUTION-AIR-EAU-SOL© BENRACHEDI AP2","POLLUTION-AIR-EAU-SOL©","BENRACHEDI","AP2","POLLUTION-AIR-EAU-SOL© BENRACHEDI AP2"]
[null,"11h20                12h 50"]
[null,"13h 00              14h 30"]
[null,"14h 40              16h 10"]
[null,"16h 20              17h 50"]
["Jeudi","8h 00                     9h 30","CHIMIE PHYSIQUE5(1/2G)(TP);G.CHIMIQUE(1/2G)(TP)","MALEK;BANDOU","B26;C210","CHIMIE PHYSIQUE5(1/2G)(TP) MALEK B26\nG.CHIMIQUE(1/2G)(TP) BANDOU C210","[SI]TECH D'ANALYSE(TP)","BOUTICHE","B24","[SI]TECH D'ANALYSE(TP) BOUTICHE B24"]
[null,"9h 40                  11h 10","CHIMIE PHYSIQUE5(1/2G)(TP);G.CHIMIQUE(1/2G)(TP)","MALEK;BANDOU","B26;C210","CHIMIE PHYSIQUE5(1/2G)(TP) MALEK B26\nG.CHIMIQUE(1/2G)(TP) BANDOU C210","[SI]TECH D'ANALYSE(TP)","BOUTICHE","B24","[SI]TECH D'ANALYSE(TP) BOUTICHE B24"]
[null,"11h20                 12h 50",null,null,null,null,null,null,null,null,"TRANSF DE CHALEUR(TD)","BOUFELLAH","B35","TRANSF DE CHALEUR(TD) BOUFELLAH B35"]
[null,"13h 00              14h 30","TRANSF DE CHALEUR©","BOUFELLAH","AP3","TRANSF DE CHALEUR© BOUFELLAH AP3","TRANSF DE CHALEUR©","BOUFELLAH","AP3","TRANSF DE CHALEUR© BOUFELLAH AP3","TRANSF DE CHALEUR©","BOUFELLAH","AP3","TRANSF DE CHALEUR© BOUFELLAH AP3"]
[null,"14h 40              16h 10","PROC AGRO ALIMENTAIRE©","BENAKMOUM","AP3","PROC AGRO ALIMENTAIRE© BENAKMOUM AP3","PROC AGRO ALIMENTAIRE©","BENAKMOUM","AP3","PROC AGRO ALIMENTAIRE© BENAKMOUM AP3","PROC AGRO ALIMENTAIRE©","BENAKMOUM","AP3","PROC AGRO ALIMENTAIRE© BENAKMOUM AP3"]
[null,"16h 20              17h 50"]
["Samedi","8h 00                     9h 30","SIMUL-PRO(TP)","BOUTICHE","A26","SIMUL-PRO(TP) BOUTICHE A26","ELECTROCHIMIE(TD)","SMAILI-TA","B212","ELECTROCHIMIE(TD) SMAILI-TA B212"]
[null,"9h 40                  11h 10","ELECTROCHIMIE(TD)","SMAILI-TA","B48","ELECTROCHIMIE(TD) SMAILI-TA B48","TRANSF DE CHALEUR(TD)","BOUFELLAH","B212","TRANSF DE CHALEUR(TD) BOUFELLAH B212","SIMUL-PRO(TP)","BOUTICHE","A26","SIMUL-PRO(TP) BOUTICHE A26"]
[null,"11h20                 12h 50","TRANSF DE CHALEUR(TD)","BOUFELLAH","B48","TRANSF DE CHALEUR(TD) BOUFELLAH B48","SIMUL-PRO(TP)","BOUTICHE","A26","SIMUL-PRO(TP) BOUTICHE A26","ELECTROCHIMIE(TD)","SMAILI-TA","B413","ELECTROCHIMIE(TD) SMAILI-TA B413"]

{"sheet":"DGPI MASTER11","index":13,"n_rows":36,"n_cols":18,"rows_kept":36,"cut":false,"hidden":false,"merged":[[0,0,0,1],[27,0,32,0],[33,0,35,0],[3,0,8,0],[9,0,14,0],[15,0,20,0],[21,0,26,0]]}
["Departement:",null,null,null,null,"génie des procédés"]
[{"$f":"TODAY()","v":"2017-10-05"},"Section:",null,null,null,"master 2ème année"]
["Jour","SEANCES","MGCH-16","Enseignant","Salle","MGCH-16","MGEV-16","Enseignant","Salle","MGEV-16","MHSI-16","Enseignant","Salle","MHSI-16","MPOLY16","Enseignant","Salle","MPOLY16"]
["Dimanche","8h 00                     9h 30","OPTIM-MOD-PROC©","X","RC14","OPTIM-MOD-PROC© X RC14","POLLUTION DU SOL©","BOUMECHHOUR","C49","POLLUTION DU SOL© BOUMECHHOUR C49"]
[null,"9h 40                 11h 10","OPTIM-MOD-PROC(TD)","X","RC14","OPTIM-MOD-PROC(TD) X RC14","POLLUTION DU SOL(TD)","BOUMECHHOUR","C49","POLLUTION DU SOL(TD) BOUMECHHOUR C49",null,null,null,null,"METH-PHYS-ANALYSES(TP)","YELLES","C32","METH-PHYS-ANALYSES(TP) YELLES C32"]
[null,"11h20                 12h 50",null,null,null,null,null,null,null,null,"MICRO-BIO-ENV©","ANNOU","B37","MICRO-BIO-ENV© ANNOU B37"]
[null,"13h 00              14h 30","CHIMIE VERTE©","HACHEMI-MS","A12","CHIMIE VERTE© HACHEMI-MS A12","REG-COM-PROC©","BOUHABILA","A22","REG-COM-PROC© BOUHABILA A22","METH-INT-ANAL-RISQUE©","ZAOUANI","B212","METH-INT-ANAL-RISQUE© ZAOUANI B212","METH-PHYS-ANALY©","HADERBACHE","B46","METH-PHYS-ANALY© HADERBACHE B46"]
[null,"14h 40              16h 10","INTENSI-PROC©","X","A12","INTENSI-PROC© X A12","REG-COM-PROC(TP)","BOUHABILA","A22","REG-COM-PROC(TP) BOUHABILA A22","METH-INT-ANAL-RISQUE(1/2G)(TP)","ZAOUANI","B212","METH-INT-ANAL-RISQUE(1/2G)(TP) ZAOUANI B212","METH-PHYS-ANALY(TD)","HADERBACHE","B46","METH-PHYS-ANALY(TD) HADERBACHE B46"]
[null,"16h 20              17h 50"]
["Lundi","8h 00                    9h 30","DISTILLATION©","ALIOUCHE","B310","DISTILLATION© ALIOUCHE B310","PROC-TRAIT-EFF-GAZ©","BALLOUL","B38","PROC-TRAIT-EFF-GAZ© BALLOUL B38","OUTILS D'AIDE DECISION©","ZAOUANI","B42","OUTILS D'AIDE DECISION© ZAOUANI B42","MEC-POLYMERS©","KOUINI","B311","MEC-POLYMERS© KOUINI B311"]
[null,"9h 40                  11h 10","DISTILLATION(TD)","ALIOUCHE","B310","DISTILLATION(TD) ALIOUCHE B310","PROC-TRAIT-EFF-GAZ(TD)","BALLOUL","B38","PROC-TRAIT-EFF-GAZ(TD) BALLOUL B38","OUTILS D'AIDE DECISION(TD)","ZAOUANI","B42","OUTILS D'AIDE DECISION(TD) ZAOUANI B42","MAT-COMP-INOOVANTES©","GHEMATI","B311","MAT-COMP-INOOVANTES© GHEMATI B311"]
[null,"11h20                12h 50",null,null,null,null,"G-ENVIRONNEMENT(TP)","BOUMECHHOUR","B38","G-ENVIRONNEMENT(TP) BOUMECHHOUR B38",null,null,null,null,"POLYMERS ENVIRONNEMENT©","GHEMATI","B311","POLYMERS ENVIRONNEMENT© GHEMATI B311"]
[null,"13h 00              14h 30","RAF-PETROCHI©","X","A12","RAF-PETROCHI© X A12",null,null,null,null,"CULTURE DE SECURITE©","ZAOUANI","B42","CULTURE DE SECURITE© ZAOUANI B42"]
[null,"14h 40              16h 10","RAF-PETROCHI(TD)","X","A12","RAF-PETROCHI(TD) X A12",null,null,null,null,"AUDIT-CERI-ACCRE©","BENCHAMA","B42","AUDIT-CERI-ACCRE© BENCHAMA B42","VEILLIS ET DEGRADATION(TD)","KOUINI","B310","VEILLIS ET DEGRADATION(TD) KOUINI B310"]
[null,"16h 20              17h 50"]
["Mardi","8h 00                    9h 30",null,null,null,null,"INSTR-ANAL-STAT©","YEDDOU","RC14","INSTR-ANAL-STAT© YEDDOU RC14",null,null,null,null,"BIO-POLYMERS©","BELLOUL","B48","BIO-POLYMERS© BELLOUL B48"]
[null,"9h 40                 11h 10",null,null,null,null,"BIOPROCEDES©","YEDDOU","RC14","BIOPROCEDES© YEDDOU RC14","SECURITE FONC(TD)","X","B46","SECURITE FONC(TD) X B46","BIO-POLYMERS(TD)","BELLOUL","B48","BIO-POLYMERS(TD) BELLOUL B48"]
[null,"11h20                12h 50","MILIEUX-PAREUX-DISPERSES©","X","AP3","MILIEUX-PAREUX-DISPERSES© X AP3","MILIEUX-PAREUX-DISPERSES©","X","AP3","MILIEUX-PAREUX-DISPERSES© X AP3","MANAGEMENT ENV©","TIRECHE","B44","MANAGEMENT ENV© TIRECHE B44"]
[null,"13h 00              14h 30","MILIEUX-PAREUX-DISPERSES(TP)","X","X","MILIEUX-PAREUX-DISPERSES(TP) X X",null,null,null,null,null,null,null,null,"PROP-POLYMERS©","BOUMERDASSI","C48","PROP-POLYMERS© BOUMERDASSI C48"]
[null,"14h 40              16h 10",null,null,null,null,null,null,null,null,null,null,null,null,"PROP-POLYMERS(TD)","BOUMERDASSI","C48","PROP-POLYMERS(TD) BOUMERDASSI C48"]
[null,"16h 20              17h 50"]
["Mercredi","8h 00                    9h 30","PLAN D'EXPERIENCE©","BOUKHIAR","B37","PLAN D'EXPERIENCE© BOUKHIAR B37","PROC-MEMB-D'ESSAI©","BENRACHEDI","B417","PROC-MEMB-D'ESSAI© BENRACHEDI B417",null,null,null,null,"APPLIC-IND©","ABDELLAOUI","B413","APPLIC-IND© ABDELLAOUI B413"]
[null,"9h 40                 11h 10","ECONCEPTIONII©","LOUHAB","B37","ECONCEPTIONII© LOUHAB B37","PROC-MEMB-D'ESSAI(TD)","BENRACHEDI","B417","PROC-MEMB-D'ESSAI(TD) BENRACHEDI B417","MAIT-STATIS-PROCESS©","X","B214","MAIT-STATIS-PROCESS© X B214","RECY-VAL-POLY©","OUSLIMANI","B413","RECY-VAL-POLY© OUSLIMANI B413"]
[null,"11h20                12h 50",null,null,null,null,null,null,null,null,"MAIT-STATIS-PROCESS(TD)","X","RC9/A","MAIT-STATIS-PROCESS(TD) X RC9/A"]
[null,"13h 00              14h 30","PLAN D'EXPERIENCE(TP)","BOUKHIAR","B47","PLAN D'EXPERIENCE(TP) BOUKHIAR B47","BIOPROCEDES©","YEDDOU","B417","BIOPROCEDES© YEDDOU B417",null,null,null,null,"VIELLIS DEGRA-POLY©","KOUINI","B413","VIELLIS DEGRA-POLY© KOUINI B413"]
[null,"14h 40              16h 10",null,null,null,null,"BIOPROCEDES(TD)","YEDDOU","B417","BIOPROCEDES(TD) YEDDOU B417","MAINT-INDUST©","SMAILI-MI","B35","MAINT-INDUST© SMAILI-MI B35","MEC-POLYMERS(TP)","KOUINI","B413","MEC-POLYMERS(TP) KOUINI B413"]
[null,"16h 20              17h 50"]
["Jeudi","8h 00                     9h 30","RECH-DOC-CON©","FERNANI","AP6","RECH-DOC-CON© FERNANI AP6","RECH-DOC-CON©","FERNANI","AP6","RECH-DOC-CON© FERNANI AP6","RECH-DOC-CON©","FERNANI","AP6","RECH-DOC-CON© FERNANI AP6","RECH-DOC-CON©","FERNANI","AP6","RECH-DOC-CON© FERNANI AP6"]
[null,"9h 40                  11h 10","RAFFINAGE PETROCHIMIE(TP)","X","X","RAFFINAGE PETROCHIMIE(TP) X X","MILIEUX-POR-DISP(TP)","X","X","MILIEUX-POR-DISP(TP) X X","SURETTE-FON-SYSII©","X","B413","SURETTE-FON-SYSII© X B413","MOD-PROC©","TRACHI","A15","MOD-PROC© TRACHI A15"]
[null,"11h20                 12h 50","DISTILLATION-RAFFINAGE-PETROCHIMIES(TP)","BOUTICHE","X","DISTILLATION-RAFFINAGE-PETROCHIMIES(TP) BOUTICHE X",null,null,null,null,"SURETTE-FON-SYSII(TD)","X","B413","SURETTE-FON-SYSII(TD) X B413","MOD-PROC(TP)","TRACHI","A15","MOD-PROC(TP) TRACHI A15"]
[null,"13h 00              14h 30",null,null,null,null,"GESTION DES ENTREPRISE©","KORSO","C412","GESTION DES ENTREPRISE© KORSO C412"]
[null,"14h 40              16h 10"]
[null,"16h 20              17h 50"]
["Samedi","8h 00                     9h 30"]
[null,"9h 40                  11h 10"]
[null,"11h20                 12h 50"]

{"sheet":"ENV MASTER12","index":14,"n_rows":36,"n_cols":18,"rows_kept":36,"cut":false,"hidden":false,"merged":[[0,0,0,1],[33,0,35,0],[3,0,8,0],[9,0,14,0],[15,0,20,0],[27,0,32,0],[21,0,26,0]]}
["Flière:G des procedes",null,null,null,null,"Spécialite:génie chimique-",null,null,null,"Spécialite:génie des procedes de l'environnement"]
[{"$f":"TODAY()","v":"2017-10-05"},"Section:",null,null,null,"master 1ère année"]
["Jour","SEANCES","MGCH-17","Enseignant","Salle","MGCH-17","MGEV-17","Enseignant","Salle","MGEV-17","MHSI-17","Enseignant","Salle","MHSI-17","MPOLY-17","Enseignant","Salle","MPOLY-17"]
["Dimanche","8h 00                     9h 30","OPERATION-UNITAIRE©","SEKOUR","A12","OPERATION-UNITAIRE© SEKOUR A12","GENIE DES REACTEURS HETROGENES©","NOURI-H","B213","GENIE DES REACTEURS HETROGENES© NOURI-H B213",null,null,null,null,"PHYSICO-CHIMIE DES MACROMOL©","X","B46","PHYSICO-CHIMIE DES MACROMOL© X B46"]
[null,"9h 40                 11h 10","OPERATION-UNITAIRE©","SEKOUR","A12","OPERATION-UNITAIRE© SEKOUR A12","CHIMIE DES MILIEUX AQUATIQUE©","HADDADOU","B213","CHIMIE DES MILIEUX AQUATIQUE© HADDADOU B213","RISQUE PYHS INDUST©","BOUGHERARA","B418","RISQUE PYHS INDUST© BOUGHERARA B418","PHYSICO-CHIMIE DES MACROMOL(TD)","X","B46","PHYSICO-CHIMIE DES MACROMOL(TD) X B46"]
[null,"11h20                 12h 50",null,null,null,null,null,null,null,null,"PREVENTION ET DETECTION DU RISQUE©","KEBBOUCHE","B213","PREVENTION ET DETECTION DU RISQUE© KEBBOUCHE B213"]
[null,"13h 00              14h 30","GENIE DE LA REACTION©","NOURI-H","B310","GENIE DE LA REACTION© NOURI-H B310","ADSORPTION TECHNIQUE©","SAHMOUNE","C32","ADSORPTION TECHNIQUE© SAHMOUNE C32","OUTILS MATH UTILISES-SURETE-FONCT©","X","B213","OUTILS MATH UTILISES-SURETE-FONCT© X B213","TRANSFERT CHALEUR ET DE MASSE©","BOUGHERARA","B414","TRANSFERT CHALEUR ET DE MASSE© BOUGHERARA B414"]
[null,"14h 40              16h 10","GENIE DE LA REACTION(1/2G)(TD)","NOURI-H","B32","GENIE DE LA REACTION(1/2G)(TD) NOURI-H B32","ADSORPTION TECHNIQUE(TP)","SAHMOUNE","C07","ADSORPTION TECHNIQUE(TP) SAHMOUNE C07",null,null,null,null,"TRANSFERT CHALEUR ET DE MASSE(TD)","BOUGHERARA","B414","TRANSFERT CHALEUR ET DE MASSE(TD) BOUGHERARA B414"]
[null,"16h 20              17h 50"]
["Lundi","8h 00                    9h 30","TRANSF-THERM-ECHANG-CHALEUR©","AISSAT","B44","TRANSF-THERM-ECHANG-CHALEUR© AISSAT B44",null,null,null,null,null,null,null,null,"CHIMIE  MACROMOLECULES©","SERRIER","B413","CHIMIE  MACROMOLECULES© SERRIER B413"]
[null,"9h 40                  11h 10","TRANSF-THERM-ECHANG-CHALEUR(TD)","AISSAT","B44","TRANSF-THERM-ECHANG-CHALEUR(TD) AISSAT B44",null,null,null,null,"DANGERS VIBR- PRESSIONS(TP)","CHETATE","B23","DANGERS VIBR- PRESSIONS(TP) CHETATE B23","THERMODYNAMIQUE ET DAIGRA©","BOUMERDASSI","B413","THERMODYNAMIQUE ET DAIGRA© BOUMERDASSI B413"]
[null,"11h20                12h 50","ANGLAIS-TECH-TERM©","REZAL","B44","ANGLAIS-TECH-TERM© REZAL B44","ASSAINISSEMENT©","AMITOUCHE","C48","ASSAINISSEMENT© AMITOUCHE C48","[SI]LAVAGE ET MANULENTION(TP)","CHETATE","B23","[SI]LAVAGE ET MANULENTION(TP) CHETATE B23","RHEOLOGIES DES POLYMERS©","BOUMERDASSI","B48","RHEOLOGIES DES POLYMERS© BOUMERDASSI B48"]
[null,"13h 00              14h 30",null,null,null,null,"ECOLOGIE APPLIQUES©","BALLOUL","C48","ECOLOGIE APPLIQUES© BALLOUL C48","ANGLAIS TECH-TER©","REZAL","B39","ANGLAIS TECH-TER© REZAL B39"]
[null,"14h 40              16h 10","THERMOD-TECH(TD)","AISSAT","B418","THERMOD-TECH(TD) AISSAT B418","ANGLAIS-TECH-TERM©","REZAL","C45","ANGLAIS-TECH-TERM© REZAL C45","DANGERS ELECTRIQUES MEC(TP)","CHETATE","B23","DANGERS ELECTRIQUES MEC(TP) CHETATE B23","[SI]RHEOLOGIES DES POLYMERS(TP)","BOUMERDASSI","B23","[SI]RHEOLOGIES DES POLYMERS(TP) BOUMERDASSI B23"]
[null,"16h 20              17h 50"]
["Mardi","8h 00                    9h 30","GENIE DE LA REACTION(1/2G)(TD)","NOURI-H","B311","GENIE DE LA REACTION(1/2G)(TD) NOURI-H B311","CHIMIE DES EAUX©","BENRACHEDI","A25","CHIMIE DES EAUX© BENRACHEDI A25","PROGRAMMATION MATLAB©","BENZAID","B36","PROGRAMMATION MATLAB© BENZAID B36","SURFACE ET INTERFACE©","ALIOUCHE","B49","SURFACE ET INTERFACE© ALIOUCHE B49"]
[null,"9h 40                 11h 10","OPERATION-UNITAIRE(TD)","SEKOUR","B417","OPERATION-UNITAIRE(TD) SEKOUR B417","GENIE DES REACTEURS HETEROGENES(TD)","NOURI-H","A25","GENIE DES REACTEURS HETEROGENES(TD) NOURI-H A25","RISQUE MAJEURS©","TIRECHE","B36","RISQUE MAJEURS© TIRECHE B36"]
[null,"11h20                12h 50",null,null,null,null,null,null,null,null,null,null,null,null,"THERMODYNAMIQUE ET DAIGRA(TD)","BOUMERDASSI","B49","THERMODYNAMIQUE ET DAIGRA(TD) BOUMERDASSI B49"]
[null,"13h 00              14h 30","TRANSF-THERM-ECHANG-CHALEUR(TP);THERMODY(TP)","BOUFELLAH;AISSAT","B26;X","TRANSF-THERM-ECHANG-CHALEUR(TP) BOUFELLAH B26\nTHERMODY(TP) AISSAT X","BIOCHIMIE©","FERNANI","B418","BIOCHIMIE© FERNANI B418","METHONUME-MATRIC-ANALY-RISQ©","HARFOUCHE","B313","METHONUME-MATRIC-ANALY-RISQ© HARFOUCHE B313","ANGLAIS-TECH-TER©","REZAL","B49","ANGLAIS-TECH-TER© REZAL B49"]
[null,"14h 40              16h 10","TRANSF-THERM-ECHANG-CHALEUR(TP);THERMODY(TP)","BOUFELLAH;AISSAT","B26;X","TRANSF-THERM-ECHANG-CHALEUR(TP) BOUFELLAH B26\nTHERMODY(TP) AISSAT X","BIOCHIMIE(TD)","FERNANI","B418","BIOCHIMIE(TD) FERNANI B418"]
[null,"16h 20              17h 50"]
["Mercredi","8h 00                    9h 30","TECHNOL-PROC-PROPRES©","OUSLIMANI","RC14","TECHNOL-PROC-PROPRES© OUSLIMANI RC14",null,null,null,null,"MESURE ET MAITRISE DU RISQUE©","MEGDOUD","B41","MESURE ET MAITRISE DU RISQUE© MEGDOUD B41"]
[null,"9h 40                 11h 10","OPERATION-UNITAIRE(TP);GENIE DE REACTION(TP)","SEKOUR;NOURI-H","B24;B11","OPERATION-UNITAIRE(TP) SEKOUR B24\nGENIE DE REACTION(TP) NOURI-H B11","TRAITEMENT DES EAUX POTABLE©","BOUREGHDA","B31","TRAITEMENT DES EAUX POTABLE© BOUREGHDA B31","MESURE ET MAITRISE DU RISQUE(TD)","MEGDOUD","C42","MESURE ET MAITRISE DU RISQUE(TD) MEGDOUD C42"]
[null,"11h20                12h 50","OPERATION-UNITAIRE(TP);GENIE DE REACTION(TP)","SEKOUR;NOURI-H","B24;B11","OPERATION-UNITAIRE(TP) SEKOUR B24\nGENIE DE REACTION(TP) NOURI-H B11","CHIMIE DES MILIEUX AQUATIQUE(TD)","HADDADOU","B212","CHIMIE DES MILIEUX AQUATIQUE(TD) HADDADOU B212","PROGRAMMATION MATLAB(TD)","BENZAID","B210","PROGRAMMATION MATLAB(TD) BENZAID B210","SYNTHESE ET FORMES POLY©","BELLOUL","B49","SYNTHESE ET FORMES POLY© BELLOUL B49"]
[null,"13h 00              14h 30",null,null,null,null,null,null,null,null,"METHONUME-MATRIC-ANALY-RISQ(TD)","HARFOUCHE","B31","METHONUME-MATRIC-ANALY-RISQ(TD) HARFOUCHE B31","CHIMIE  MACROMOLECULES(TD)","SERRIER","B49","CHIMIE  MACROMOLECULES(TD) SERRIER B49"]
[null,"14h 40              16h 10",null,null,null,null,"TRAITEMENT DES EAUX POTABLE(TD)","BOUREGHDA","B214","TRAITEMENT DES EAUX POTABLE(TD) BOUREGHDA B214",null,null,null,null,"SYNTHESE ET FORMES POLYTD)","BELLOUL","B49","SYNTHESE ET FORMES POLYTD) BELLOUL B49"]
[null,"16h 20              17h 50"]
["Jeudi","8h 00                     9h 30","MANAG DE L'ENVIRONNEMENT©","LOUHAB","B418","MANAG DE L'ENVIRONNEMENT© LOUHAB B418",null,null,null,null,"RISQUE PYHS INDUST©","BOUGHERARA","B31","RISQUE PYHS INDUST© BOUGHERARA B31"]
[null,"9h 40                  11h 10","THERMOD-TECH©","AISSAT","B418","THERMOD-TECH© AISSAT B418","TRAIT DES EAUX POTABLES©","BOUREGHDA","B47","TRAIT DES EAUX POTABLES© BOUREGHDA B47","RISQUE PHYS INDUST(TD)","BOUGHERARA","B31","RISQUE PHYS INDUST(TD) BOUGHERARA B31","ELECTROCHIMIE©","LOUHAB","B46","ELECTROCHIMIE© LOUHAB B46"]
[null,"11h20                 12h 50",null,null,null,null,null,null,null,null,"OUTILS MATH UTILISES-SURETE-FONCT(TD)","X","B310","OUTILS MATH UTILISES-SURETE-FONCT(TD) X B310","SYNTHESE ET FORMES POLY(TP)","BELLOUL","B48","SYNTHESE ET FORMES POLY(TP) BELLOUL B48"]
[null,"13h 00              14h 30","SIMUL EN GDP©","BENYAKHLEF","C48","SIMUL EN GDP© BENYAKHLEF C48","GENIE DE L'ENVIRONNEMENT(TP)","TALANTIKIT","C07","GENIE DE L'ENVIRONNEMENT(TP) TALANTIKIT C07",null,null,null,null,"CLASSES MAT POLYM©","BELLOUL","B48","CLASSES MAT POLYM© BELLOUL B48"]
[null,"14h 40              16h 10","SIM-GDP(TP)","BENYAKHLEF","C210","SIM-GDP(TP) BENYAKHLEF C210","GENIE DE L'ENVIRONNEMENT(TP)","TALANTIKIT","C07","GENIE DE L'ENVIRONNEMENT(TP) TALANTIKIT C07"]
[null,"16h 20              17h 50"]
["Samedi","8h 00                     9h 30"]
[null,"9h 40                  11h 10"]
[null,"11h20                 12h 50"]

{"sheet":"MI LICENCE","index":15,"n_rows":36,"n_cols":22,"rows_kept":36,"cut":false,"hidden":false,"merged":[[0,21,0,22],[0,18,0,19],[0,0,0,1],[21,0,26,0],[15,0,20,0],[9,0,14,0],[3,0,8,0],[0,9,0,10],[35,10,36,10],[35,11,36,11],[35,12,36,12],[27,0,32,0],[33,0,36,0],[35,1,36,1],[35,2,36,2],[35,3,36,3],[35,4,36,4],[35,14,36,14],[35,15,36,15],[35,16,36,16],[35,17,36,17],[35,13,36,13],[35,22,36,22],[35,23,36,23],[35,24,36,24],[35,25,36,25],[35,18,36,18],[35,19,36,19],[35,20,36,20],[35,21,36,21]]}
[null,null,null,null,null,"Filière:electromecanique",null,null,null,"Spécialite:electromecanique",null,null,null,"Maint indust-Génie indust",null,null,null,null,null,null,null,"Spécialite:Maint indust"]
[{"$f":"TODAY()","v":"2017-10-05"},"Section:",null,null,null,"licence3ème année"]
["Jour","SEANCES","LEM-15/A","Enseignant","Salle","LEM-15/A","LEM-15/B","Enseignant","Salle","LEM-15/B","LMI-15","Enseignant","Salle","LMI-15","LGI-15","Enseignant","Salle","LGI-15"]
["Dimanche","8h 00                     9h 30","TRANSPHERT THERMIQUE©","SETTET","C43","TRANSPHERT THERMIQUE© SETTET C43","TRANSPHERT THERMIQUE©","SETTET","C43","TRANSPHERT THERMIQUE© SETTET C43","ELECTRONIQUE(TP) ","X","AT11","ELECTRONIQUE(TP)  X AT11","OPTIMISATION-MES©","OURARI","B49","OPTIMISATION-MES© OURARI B49"]
[null,"9h 40                 11h 10","ELECTRONIQUE DE PUISSANCE©","MERAINANI","AP2","ELECTRONIQUE DE PUISSANCE© MERAINANI AP2","ELECTRONIQUE DE PUISSANCE©","MERAINANI","AP2","ELECTRONIQUE DE PUISSANCE© MERAINANI AP2","CAPTEURS ET INSTRUMENTATION©","GUERRACHE","B419","CAPTEURS ET INSTRUMENTATION© GUERRACHE B419","OPTIMISATION-MES(TD)","OURARI","B49","OPTIMISATION-MES(TD) OURARI B49"]
[null,"11h20                 12h 50",null,null,null,null,null,null,null,null,null,null,null,null,"CONCEPT-ASSIST-ORD©","BOUHABILA","C310","CONCEPT-ASSIST-ORD© BOUHABILA C310"]
[null,"13h 00              14h 30","SYSTEMES ASSERVISSEMENT©","DOUDAH","AP1","SYSTEMES ASSERVISSEMENT© DOUDAH AP1","SYSTEMES ASSERVISSEMENT©","DOUDAH","AP1","SYSTEMES ASSERVISSEMENT© DOUDAH AP1","ELEMENTS DE MACHINES©","AGUIB","B313","ELEMENTS DE MACHINES© AGUIB B313"]
[null,"14h 40              16h 10","MATERIEAUX ELECTROTECH©","GUERRACHE","AP1","MATERIEAUX ELECTROTECH© GUERRACHE AP1","MATERIEAUX ELECTROTECH©","GUERRACHE","AP1","MATERIEAUX ELECTROTECH© GUERRACHE AP1","TRANSPHERT THERMIQUE©","GRINE","B313","TRANSPHERT THERMIQUE© GRINE B313"]
[null,"16h 20              17h 50"]
["Lundi","8h 00                    9h 30","ELECTRO-PUISSANCE(TP)","MERAINANI","A26","ELECTRO-PUISSANCE(TP) MERAINANI A26","TRANSPHERT THERMIQUE(TD)","SETTET","B36","TRANSPHERT THERMIQUE(TD) SETTET B36",null,null,null,null,"ANGLAIS©","DAOUALI","B46","ANGLAIS© DAOUALI B46"]
[null,"9h 40                  11h 10","TRANSPHERT THERMIQUE(TD)","SETTET","B36","TRANSPHERT THERMIQUE(TD) SETTET B36","ELECTRO-PUISSANCE(TP)","MERAINANI","A26","ELECTRO-PUISSANCE(TP) MERAINANI A26","ELECTROTECHNIQUE(TP) ","LARBANI","EEA1","ELECTROTECHNIQUE(TP)  LARBANI EEA1","CONCEPT-ASSIST-ORD(TP)","BOUHABILA","C310","CONCEPT-ASSIST-ORD(TP) BOUHABILA C310"]
[null,"11h20                12h 50",null,null,null,null,null,null,null,null,null,null,null,null,"MAIN-SUR-FON(TD)","BENAMMAR","B49","MAIN-SUR-FON(TD) BENAMMAR B49"]
[null,"13h 00              14h 30","MACHIN ELECTRIQUE©","ALEM","AP2","MACHIN ELECTRIQUE© ALEM AP2","MACHIN ELECTRIQUE©","ALEM","AP2","MACHIN ELECTRIQUE© ALEM AP2","ORG TE METH DE LA MAINT©","ADJERID","C412","ORG TE METH DE LA MAINT© ADJERID C412"]
[null,"14h 40              16h 10","SCHEMAS ET APPARILLAGE©","LARBANI","AP2","SCHEMAS ET APPARILLAGE© LARBANI AP2","SCHEMAS ET APPARILLAGE©","LARBANI","AP2","SCHEMAS ET APPARILLAGE© LARBANI AP2","ELECTROTECH FONDII(TD) ","RAHMOUNE","C412","ELECTROTECH FONDII(TD)  RAHMOUNE C412"]
[null,"16h 20              17h 50"]
["Mardi","8h 00                    9h 30","MACHIN ELECTRIQUE(TP)","LARBANI","EEA2","MACHIN ELECTRIQUE(TP) LARBANI EEA2",null,null,null,null,"METROLOGIE ET ASSEMBLABLE(TP) ","ATMANI","ATFMS","METROLOGIE ET ASSEMBLABLE(TP)  ATMANI ATFMS","AUTOMATIQUE IND©","KANTAS","B415","AUTOMATIQUE IND© KANTAS B415"]
[null,"9h 40                 11h 10","SCHEMAS ET APPARILLAGE(TP)","LARBANI","EEA1","SCHEMAS ET APPARILLAGE(TP) LARBANI EEA1",null,null,null,null,"METROLOGIE ET ASSEMBLABLE(TP) ","ATMANI","ATFMS","METROLOGIE ET ASSEMBLABLE(TP)  ATMANI ATFMS","MAIN-SUR-FON©","BENAMMAR","B414","MAIN-SUR-FON© BENAMMAR B414"]
[null,"11h20                12h 50",null,null,null,null,"SYSTEMES  ASSERVISSEMENT(TP)","GOUGAM","A26","SYSTEMES  ASSERVISSEMENT(TP) GOUGAM A26"]
[null,"13h 00              14h 30","SYSTEMES ASSERVISSEMENT(TP)","GOUGAM","RC9/B","SYSTEMES ASSERVISSEMENT(TP) GOUGAM RC9/B","SCHEMAS ET APPARILLAGE(TP)","LARBANI","EEA2","SCHEMAS ET APPARILLAGE(TP) LARBANI EEA2","ELECTRONIQUE FONDII©","MELLAL","B37","ELECTRONIQUE FONDII© MELLAL B37","MODELISATION-ENTR©","OURARI","B414","MODELISATION-ENTR© OURARI B414"]
[null,"14h 40              16h 10",null,null,null,null,"MACHIN ELECTRIQUE(TP)","LARBANI","EEA1","MACHIN ELECTRIQUE(TP) LARBANI EEA1","ELECTRONIQUE FONDII(TD) ","MELLAL","B37","ELECTRONIQUE FONDII(TD)  MELLAL B37","OPTIMISATION-MES(TP)","OURARI","B414","OPTIMISATION-MES(TP) OURARI B414"]
[null,"16h 20              17h 50"]
["Mercredi","8h 00                    9h 30","MACHIN ELECTRIQUE(TD)","ALEM","B414","MACHIN ELECTRIQUE(TD) ALEM B414","SYSTEMES ASSERVISSEMENT(TD)","DOUDAH","B415","SYSTEMES ASSERVISSEMENT(TD) DOUDAH B415","GMAO(TP) ","ATMANI","C43","GMAO(TP)  ATMANI C43","PROCED-ELAB-FON©","X","B49","PROCED-ELAB-FON© X B49"]
[null,"9h 40                 11h 10","SYSTEMES ASSERVISSEMENT(TD)","DOUDAH","B41","SYSTEMES ASSERVISSEMENT(TD) DOUDAH B41","MACHIN ELECTRIQUE(TD)","ALEM","B415","MACHIN ELECTRIQUE(TD) ALEM B415","GMAO(TP) ","ATMANI","C43","GMAO(TP)  ATMANI C43","PROCED-ELAB-FON(TD)","X","B49","PROCED-ELAB-FON(TD) X B49"]
[null,"11h20                12h 50",null,null,null,null,null,null,null,null,"ELECTRONIQUEII©","RAHMOUNE","C43","ELECTRONIQUEII© RAHMOUNE C43"]
[null,"13h 00              14h 30","CONSTR MEC©","AKNOUCHE","AP4","CONSTR MEC© AKNOUCHE AP4","CONSTR MEC©","AKNOUCHE","AP4","CONSTR MEC© AKNOUCHE AP4",null,null,null,null,"AUTOMATIQUE IND©","KANTAS","B46","AUTOMATIQUE IND© KANTAS B46"]
[null,"14h 40              16h 10","DESSIN TECHNIQUE©","BOUDIEB","AP4","DESSIN TECHNIQUE© BOUDIEB AP4","DESSIN TECHNIQUE©","BOUDIEB","AP4","DESSIN TECHNIQUE© BOUDIEB AP4","ELEMENTS DE MACHINES(TD) ","AGUIB","C32","ELEMENTS DE MACHINES(TD)  AGUIB C32","AUTOMATIQUE IND(TD)","KANTAS","B46","AUTOMATIQUE IND(TD) KANTAS B46"]
[null,"16h 20              17h 50"]
["Jeudi","8h 00                     9h 30",null,null,null,null,null,null,null,null,"ORG TE METH DE LA MAINT©","ADJERID","B212","ORG TE METH DE LA MAINT© ADJERID B212","INTRODUCTION-SYST-D'INF©","X","B414","INTRODUCTION-SYST-D'INF© X B414"]
[null,"9h 40                  11h 10","PROD D'ENERGIE ELECTRIQUE©","BAHLOUL","AP2","PROD D'ENERGIE ELECTRIQUE© BAHLOUL AP2","PROD D'ENERGIE ELECTRIQUE©","BAHLOUL","AP2","PROD D'ENERGIE ELECTRIQUE© BAHLOUL AP2","ORG-META-MACH(TD) ","ADJERID","B212","ORG-META-MACH(TD)  ADJERID B212","AUTOMATIQUE IND(TP)","KANTAS","X","AUTOMATIQUE IND(TP) KANTAS X"]
[null,"11h20                 12h 50","ELECTRONIQUE DE PUISSANCE(TD)","MERAINANI","A16","ELECTRONIQUE DE PUISSANCE(TD) MERAINANI A16",null,null,null,null,"ENV ET DEVELOPPEMENT DURABLE©","BAHLOUL","B212","ENV ET DEVELOPPEMENT DURABLE© BAHLOUL B212","MAIN-SUR-FON(TP)","CHEBOUBA","X","MAIN-SUR-FON(TP) CHEBOUBA X"]
[null,"13h 00              14h 30",null,null,null,null,"ELECTRONIQUE DE PUISSANCE(TD)","MERAINANI","A16","ELECTRONIQUE DE PUISSANCE(TD) MERAINANI A16"]
[null,"14h 40              16h 10"]
[null,"16h 20              17h 50"]
["Samedi","8h 00                     9h 30"]
[null,"9h 40                  11h 10"]
[null,"11h20                 12h 50"]

{"sheet":"TA MASTER12","index":16,"n_rows":36,"n_cols":14,"rows_kept":36,"cut":false,"hidden":false,"merged":[[0,0,0,1],[21,0,26,0],[27,0,32,0],[33,0,35,0],[3,0,8,0],[9,0,14,0],[15,0,20,0]]}
["Departement:",null,null,null,null,"TECN        ALIMENTAIRE"]
[{"$f":"TODAY()","v":"2017-10-05"},"Section:"]
["Jour","SEANCES","MGA17","Enseignant","Salle","MGA17","MGIA16","Enseignant","Salle","MGIA16","IECM09","Enseignant","Salle","IECM09"]
["Dimanche","8h 00                     9h 30","BIOCH-INSTRIMENTAL(TP)(1/2G);ANALY-ALIM(TP)(1/2G)","BENMALEK;ZIDANI","B18;B15","BIOCH-INSTRIMENTAL(TP)(1/2G) BENMALEK B18\nANALY-ALIM(TP)(1/2G) ZIDANI B15",null,null,null,null,"MEC DE REP©","XXXX","XXXX","MEC DE REP© XXXX XXXX"]
[null,"9h 40                 11h 10","BIOCH-INSTRIMENTAL(TP)(1/2G);ANALY-ALIM(TP)(1/2G)","BENMALEK;ZIDANI","B18;B15","BIOCH-INSTRIMENTAL(TP)(1/2G) BENMALEK B18\nANALY-ALIM(TP)(1/2G) ZIDANI B15","CONSERVAT DES ALIMENTS©","X","X","CONSERVAT DES ALIMENTS© X X"]
[null,"11h20                 12h 50",null,null,null,null,"TECN DES CEREAL ET DERIVES©","X","X","TECN DES CEREAL ET DERIVES© X X","MDR(TD)","XXXX","XXXX","MDR(TD) XXXX XXXX"]
[null,"13h 00              14h 30"]
[null,"14h 40              16h 10",null,null,null,null,"ECO-GESTION©","X","X","ECO-GESTION© X X"]
[null,"16h 20              17h 50"]
["Lundi","8h 00                    9h 30",null,null,null,null,null,null,null,null,"METHODES FMS©","XXXX","XXXX","METHODES FMS© XXXX XXXX"]
[null,"9h 40                  11h 10","BIOCHIMIE  DES ALIMENTS ET CHMIE©","NOUANI","A15","BIOCHIMIE  DES ALIMENTS ET CHMIE© NOUANI A15","BIOCH-ALIM(TP)(1/4G);ANALY-DES CERALTP)(1/4G)","XX;XX","XX;XX","BIOCH-ALIM(TP)(1/4G) XX XX\nANALY-DES CERALTP)(1/4G) XX XX","METHODES FMS(TD)","XXXX","XXXX","METHODES FMS(TD) XXXX XXXX"]
[null,"11h20                12h 50","BIOCHIMIE  DES ALIMENTS ET CHMIE©","NOUANI","A16","BIOCHIMIE  DES ALIMENTS ET CHMIE© NOUANI A16","BIOCH-ALIM(TP)(1/4G);ANALY-DES CERALTP)(1/4G)","XX;XX","XX;XX","BIOCH-ALIM(TP)(1/4G) XX XX\nANALY-DES CERALTP)(1/4G) XX XX","CND©","XXXX","XXXX","CND© XXXX XXXX"]
[null,"13h 00              14h 30"]
[null,"14h 40              16h 10",null,null,null,null,"TECN DES CEREAL ET DERIVES©","X","X","TECN DES CEREAL ET DERIVES© X X"]
[null,"16h 20              17h 50"]
["Mardi","8h 00                    9h 30",null,null,null,null,"OPER-UNIT-IAA1©","X","X","OPER-UNIT-IAA1© X X"]
[null,"9h 40                 11h 10","OPER-UNIT-DU GENIE ALIMENTAIRE1©","BELARBI-TA","C43","OPER-UNIT-DU GENIE ALIMENTAIRE1© BELARBI-TA C43","OPER-UNIT-IAA1©","X","X","OPER-UNIT-IAA1© X X","METHODES FMS©","XXXX","XXXX","METHODES FMS© XXXX XXXX"]
[null,"11h20                12h 50",null,null,null,null,"TRAIT DES EAUX©","X","X","TRAIT DES EAUX© X X"]
[null,"13h 00              14h 30","RHEOLOGIE DES SYSTEMES ALIMENTAIRES©","BENAMARA-TA","AP2","RHEOLOGIE DES SYSTEMES ALIMENTAIRES© BENAMARA-TA AP2",null,null,null,null,"CONCEP-METALIQ©","XXXX","XXXX","CONCEP-METALIQ© XXXX XXXX"]
[null,"14h 40              16h 10","RHEOLOGE DES SYSTEMES ALIMENTAIRES©","BENAMARA-TA","AP2","RHEOLOGE DES SYSTEMES ALIMENTAIRES© BENAMARA-TA AP2",null,null,null,null,"CONCEP-METALIQ(TD)","XXXX","XXXX","CONCEP-METALIQ(TD) XXXX XXXX"]
[null,"16h 20              17h 50"]
["Mercredi","8h 00                    9h 30",null,null,null,null,"ANGLAIS©","X","X","ANGLAIS© X X","TECH-SP©","XXXX","XXXX","TECH-SP© XXXX XXXX"]
[null,"9h 40                 11h 10","PROCESS DE-TRANSF DES ALIMENTS©","NOUANI","C412","PROCESS DE-TRANSF DES ALIMENTS© NOUANI C412","BIOCHIMIE ALIMENT©","X","X","BIOCHIMIE ALIMENT© X X","TECH-SP(TD)","XXXX","XXXX","TECH-SP(TD) XXXX XXXX"]
[null,"11h20                12h 50","PROCESS DE-TRANSF-DES ALIMENTS(TD)","NOUANI","C412","PROCESS DE-TRANSF-DES ALIMENTS(TD) NOUANI C412","BIOCHIMIE ALIMENT©","X","X","BIOCHIMIE ALIMENT© X X","MANAGEMENT©","XXXX","XXXX","MANAGEMENT© XXXX XXXX"]
[null,"13h 00              14h 30","OPER-UNIT-DU GENIE ALIMENTAIRE1©","BELARBI-TA","C49","OPER-UNIT-DU GENIE ALIMENTAIRE1© BELARBI-TA C49"]
[null,"14h 40              16h 10",null,null,null,null,null,null,null,null,"RECHERCHE OPERATIONNEL(TD)","XXXX","XXXX","RECHERCHE OPERATIONNEL(TD) XXXX XXXX"]
[null,"16h 20              17h 50"]
["Jeudi","8h 00                     9h 30","TECHNIQUE ET TERMINOLOGIE©","X","C43","TECHNIQUE ET TERMINOLOGIE© X C43","METHODOLOGIE RECHERCHE©","X","X","METHODOLOGIE RECHERCHE© X X","RECHERCHE OPERATIONNEL©","XXXX","XXXX","RECHERCHE OPERATIONNEL© XXXX XXXX"]
[null,"9h 40                  11h 10","SECURITE SANITAIRE DES ALIMENTS©","MEGDOUD","C43","SECURITE SANITAIRE DES ALIMENTS© MEGDOUD C43","METHODOLOGIE RECHERCHE©","X","X","METHODOLOGIE RECHERCHE© X X","CND©","XXXX","XXXX","CND© XXXX XXXX"]
[null,"11h20                 12h 50","SECURITE SANITAIRE DES ALIMENTS(TD)","MEGDOUD","C43","SECURITE SANITAIRE DES ALIMENTS(TD) MEGDOUD C43",null,null,null,null,"MANAGEMENT(TD)","XXXX","XXXX","MANAGEMENT(TD) XXXX XXXX"]
[null,"13h 00              14h 30","STATISTIQUES APPLIQUE©","LECHEB-TA","B36","STATISTIQUES APPLIQUE© LECHEB-TA B36"]
[null,"14h 40              16h 10"]
[null,"16h 20              17h 50"]
["Samedi","8h 00                     9h 30"]
[null,"9h 40                  11h 10"]
[null,"11h20                 12h 50"]

{"sheet":"TA MASTER11","index":17,"n_rows":36,"n_cols":14,"rows_kept":36,"cut":false,"hidden":false,"merged":[[0,0,0,1],[3,0,8,0],[33,0,35,0],[27,0,32,0],[21,0,26,0],[15,0,20,0],[9,0,14,0]]}
["Departement:",null,null,null,null,"technologie alimentaire"]
[{"$f":"TODAY()","v":"2017-10-05"},"Section:",null,null,null,"Master 2ème année"]
["Jour","SEANCES","MGA16","Enseignant","Salle","MGA16","MSBLA15","Enseignant","Salle","MSBLA15","MGIA15","Enseignant","Salle","MGIA15"]
["Dimanche","8h 00                     9h 30","COND-PROD-IND-AGRO©","ABDELLAOUI","B41","COND-PROD-IND-AGRO© ABDELLAOUI B41",null,null,null,null,"MICROBIOLOGIE INDUSTR ET BIOTECHNOLOGIE©","XX","XX","MICROBIOLOGIE INDUSTR ET BIOTECHNOLOGIE© XX XX"]
[null,"9h 40                 11h 10","COND-PROD-IND-AGRO(TD) ","ABDELLAOUI","B41","COND-PROD-IND-AGRO(TD)  ABDELLAOUI B41","PRODUITS LAITIERES©","XX","XX","PRODUITS LAITIERES© XX XX","NUTRITION ET TOXICOLOGIE©","XX","XX","NUTRITION ET TOXICOLOGIE© XX XX"]
[null,"11h20                 12h 50",null,null,null,null,"ANGLAIS©","XX","XX","ANGLAIS© XX XX","NUTRITION ET TXICOLOGIE©","XX","XX","NUTRITION ET TXICOLOGIE© XX XX"]
[null,"13h 00              14h 30","PROCEDES-CONSERV-ALIM©","TRACHI","B417","PROCEDES-CONSERV-ALIM© TRACHI B417","MICROBIOLOGIE DU LAIT©","XX","XX","MICROBIOLOGIE DU LAIT© XX XX"]
[null,"14h 40              16h 10","PROC-CONSER-ALIM(TD) ","TRACHI","B417","PROC-CONSER-ALIM(TD)  TRACHI B417","CHIMIE DU LAIT©","XX","XX","CHIMIE DU LAIT© XX XX","ANGLAIS©","XX","XX","ANGLAIS© XX XX"]
[null,"16h 20              17h 50"]
["Lundi","8h 00                    9h 30","TRAIT-EAUX-DECHETS-VALO©","ZIDANI","AP2","TRAIT-EAUX-DECHETS-VALO© ZIDANI AP2",null,null,null,null,"ALIM-FONC-PROD-NOUVEAUX©","XX","XX","ALIM-FONC-PROD-NOUVEAUX© XX XX"]
[null,"9h 40                  11h 10","INTER-ATMOSPH-EMB-ALIM©","IDIR-TA","AP2","INTER-ATMOSPH-EMB-ALIM© IDIR-TA AP2","CHIMIE DE LAIT©","XX","XX","CHIMIE DE LAIT© XX XX","ALIM-FONC-PROD-NOUVEAUX©","XX","XX","ALIM-FONC-PROD-NOUVEAUX© XX XX"]
[null,"11h20                12h 50","INTER-ATMOSPH-EMB-ALIM(TD) ","IDIR-TA","AP2","INTER-ATMOSPH-EMB-ALIM(TD)  IDIR-TA AP2","S-H-L©","XX","XX","S-H-L© XX XX"]
[null,"13h 00              14h 30",null,null,null,null,null,null,null,null,"XX","XX","XX","XX XX XX"]
[null,"14h 40              16h 10",null,null,null,null,null,null,null,null,"XX","XX","XX","XX XX XX"]
[null,"16h 20              17h 50"]
["Mardi","8h 00                    9h 30","PHYSICO-CHIMIE DES ALIM(TP) ","LARID+YELLES","C28","PHYSICO-CHIMIE DES ALIM(TP)  LARID+YELLES C28","TECHN ET BIOTRANSFORMATION DE LAIT(TP)","XX","XX","TECHN ET BIOTRANSFORMATION DE LAIT(TP) XX XX","CONDITIONNEMENT-EMBALLAGE©","XX","XX","CONDITIONNEMENT-EMBALLAGE© XX XX"]
[null,"9h 40                 11h 10","PHYSICO-CHIMIE DES ALIM(TP) ","LARID+YELLES","C212","PHYSICO-CHIMIE DES ALIM(TP)  LARID+YELLES C212","TECHN ET BIOTRANSFORMATION DE LAIT(TP)","XX","XX","TECHN ET BIOTRANSFORMATION DE LAIT(TP) XX XX","TECH DES CORPS GRAS©","XX","XX","TECH DES CORPS GRAS© XX XX"]
[null,"11h20                12h 50",null,null,null,null,"EQUIP DU LAITIERES©","XX","XX","EQUIP DU LAITIERES© XX XX","COND-EMB©","XX","XX","COND-EMB© XX XX"]
[null,"13h 00              14h 30","PLANTS D'EXPERIENCES©","BOUKHIAR","B212","PLANTS D'EXPERIENCES© BOUKHIAR B212"]
[null,"14h 40              16h 10","PLANTS D'EXPERIENCES(TD)","BOUKHIAR","B212","PLANTS D'EXPERIENCES(TD) BOUKHIAR B212",null,null,null,null,"TECH DES CORPS GRAS©","XX","XX","TECH DES CORPS GRAS© XX XX"]
[null,"16h 20              17h 50"]
["Mercredi","8h 00                    9h 30","PHYSICO-CHIMIE DES ALIM(TP) ","LARID+YELLES","C28","PHYSICO-CHIMIE DES ALIM(TP)  LARID+YELLES C28","EQUIP  LAITIERE©","XX","XX","EQUIP  LAITIERE© XX XX","TECH DE LAIT ET DERIVES©","XX","XX","TECH DE LAIT ET DERIVES© XX XX"]
[null,"9h 40                 11h 10","PHYSICO-CHIMIE DES ALIM(TP) ","LARID+YELLES","C212","PHYSICO-CHIMIE DES ALIM(TP)  LARID+YELLES C212","PRODUIT LAITIERS©","XX","XX","PRODUIT LAITIERS© XX XX","TECH DE LAIT ET DERIVES©","XX","XX","TECH DE LAIT ET DERIVES© XX XX"]
[null,"11h20                12h 50",null,null,null,null,"SECURITE ET HYGIEN DE LAIT©","XX","XX","SECURITE ET HYGIEN DE LAIT© XX XX"]
[null,"13h 00              14h 30","APLICATION-PROJET-COURS©","HADERBACHE","B213","APLICATION-PROJET-COURS© HADERBACHE B213",null,null,null,null,"QUAL SANI ALIM TRACAB©","XX","XX","QUAL SANI ALIM TRACAB© XX XX"]
[null,"14h 40              16h 10","APLICATION-PROJET-COURS(TP) ","HADERBACHE","B213","APLICATION-PROJET-COURS(TP)  HADERBACHE B213",null,null,null,null,"QUAL SANI ALIM TRACAB©","XX","XX","QUAL SANI ALIM TRACAB© XX XX"]
[null,"16h 20              17h 50"]
["Jeudi","8h 00                     9h 30","RECH-DOC-CONCEP-MEM©","FERNANI","AP6","RECH-DOC-CONCEP-MEM© FERNANI AP6","CHIMIE DE LAIT(TP)","XX","XX","CHIMIE DE LAIT(TP) XX XX","MICROBIOLOGIE INDUSTR ET BIOTECHNOLOGIE©","XX","XX","MICROBIOLOGIE INDUSTR ET BIOTECHNOLOGIE© XX XX"]
[null,"9h 40                  11h 10","PLANIFI-POLITIQUE-ALIM©","BENAKMOUM","AP4","PLANIFI-POLITIQUE-ALIM© BENAKMOUM AP4","CHIMIE DE LAIT(TP)","XX","XX","CHIMIE DE LAIT(TP) XX XX","XX","XX","XX","XX XX XX"]
[null,"11h20                 12h 50","ALIM-FON-PRO-NOUV©","BENAMARA-TA","AP4","ALIM-FON-PRO-NOUV© BENAMARA-TA AP4","MICROBIOLOGIE DU LAIT©","XX","XX","MICROBIOLOGIE DU LAIT© XX XX","XX","XX","XX","XX XX XX"]
[null,"13h 00              14h 30"]
[null,"14h 40              16h 10"]
[null,"16h 20              17h 50"]
["Samedi","8h 00                     9h 30"]
[null,"9h 40                  11h 10"]
[null,"11h20                 12h 50"]

{"sheet":"ENV LICENCE10","index":18,"n_rows":36,"n_cols":14,"rows_kept":36,"cut":false,"hidden":false,"merged":[[0,0,0,1],[27,0,32,0],[33,0,35,0],[3,0,8,0],[9,0,14,0],[15,0,20,0],[21,0,26,0]]}
[null,null,null,null,null,"Filière:Hygiène et securite industrielle",null,null,null,null,null,null,null,"Spécialité:Hygiène et securite industrielle"]
[{"$f":"TODAY()","v":"2017-10-05"},"Section:",null,null,null,"licence 3ème année"]
["Jour","SEANCES","LHSI-15","Enseignant","Salle","LHSI-15","LHSI-15/B","Enseignant","Salle","LHSI-15/B","LHSI-14/C","Enseignant","Salle","LHSI-14/C"]
["Dimanche","8h 00                     9h 30",null,null,null,null,"SECURITE INCEDIE©","XXX","XXX","SECURITE INCEDIE© XXX XXX"]
[null,"9h 40                 11h 10","SECURITE INCEDIE©","KEBBOUCHE","B36","SECURITE INCEDIE© KEBBOUCHE B36","TOXICOLOGIE INDUST©","XXX","XXX","TOXICOLOGIE INDUST© XXX XXX","SECURITE INCEDIE(TD) ","XX","XX","SECURITE INCEDIE(TD)  XX XX"]
[null,"11h20                 12h 50",null,null,null,null,"SECURITE INST EQUIP INDUST©","XXX","XXX","SECURITE INST EQUIP INDUST© XXX XXX"]
[null,"13h 00              14h 30","TOXICOLOGIE INDUST©","ANNOU","RC14","TOXICOLOGIE INDUST© ANNOU RC14",null,null,null,null,"SECURITE INST EQUIP INDUST©","XX","XX","SECURITE INST EQUIP INDUST© XX XX"]
[null,"14h 40              16h 10","TOXICOLOGIE INDUST(TD) ","ANNOU","RC14","TOXICOLOGIE INDUST(TD)  ANNOU RC14","SECURITE INCEDIE(TD) ","XXX","XXX","SECURITE INCEDIE(TD)  XXX XXX","TOXICOLOGIE INDUST©","XX","XX","TOXICOLOGIE INDUST© XX XX"]
[null,"16h 20              17h 50"]
["Lundi","8h 00                    9h 30","SECURITE INCEDIE© ","KEBBOUCHE","RC14","SECURITE INCEDIE©  KEBBOUCHE RC14","TOXICOLOGIE INDUST(TD) ","XXX","XXX","TOXICOLOGIE INDUST(TD)  XXX XXX","SECURITE INCEDIE©","XX","XX","SECURITE INCEDIE© XX XX"]
[null,"9h 40                  11h 10","SECURITE INCEDIE(TD) ","KEBBOUCHE","RC14","SECURITE INCEDIE(TD)  KEBBOUCHE RC14","SECURITE INCEDIE©","XXX","XXX","SECURITE INCEDIE© XXX XXX","SECURITE INCEDIE©","XX","XX","SECURITE INCEDIE© XX XX"]
[null,"11h20                12h 50","ACAUSTIQUE INDUST©","BENKABOU","RC14","ACAUSTIQUE INDUST© BENKABOU RC14"]
[null,"13h 00              14h 30",null,null,null,null,"SYST MANAGEMENT©","XXX","XXX","SYST MANAGEMENT© XXX XXX","SYST MANAGEMENT©","XX","XX","SYST MANAGEMENT© XX XX"]
[null,"14h 40              16h 10",null,null,null,null,"NOTION D'ECOLOGIES©","XXX","XXX","NOTION D'ECOLOGIES© XXX XXX","TOXICOLOGIE INDUST(TD) ","XX","XX","TOXICOLOGIE INDUST(TD)  XX XX"]
[null,"16h 20              17h 50"]
["Mardi","8h 00                    9h 30","ANALYS DES DONNEES OUTILS STAT©","LECHEB-TA","C43","ANALYS DES DONNEES OUTILS STAT© LECHEB-TA C43",null,null,null,null,"SECURITE INST EQUIP INDUST(TD) ","XX","XX","SECURITE INST EQUIP INDUST(TD)  XX XX"]
[null,"9h 40                 11h 10","ETUDE DE CAS EN HSI©","BALLOUL","AP4","ETUDE DE CAS EN HSI© BALLOUL AP4","ETUDE DE CAS EN HSI©","XXX","XXX","ETUDE DE CAS EN HSI© XXX XXX","ACAUSTIQUE INDUST©","XX","XX","ACAUSTIQUE INDUST© XX XX"]
[null,"11h20                12h 50","NOTION D'ECOLOGIES©","BALLOUL","AP4","NOTION D'ECOLOGIES© BALLOUL AP4","PROTECTION ENVIRONNEMENT©","XXX","XXX","PROTECTION ENVIRONNEMENT© XXX XXX","PROTECTION ENVIRONNEMENT©","XX","XX","PROTECTION ENVIRONNEMENT© XX XX"]
[null,"13h 00              14h 30"]
[null,"14h 40              16h 10","DEVELOPPEMENT DURABLE©","BALLOUL","C43","DEVELOPPEMENT DURABLE© BALLOUL C43","SECURITE INST EQUIP INDUST©","XXX","XXX","SECURITE INST EQUIP INDUST© XXX XXX","NOTION D'ECOLOGIES©","XX","XX","NOTION D'ECOLOGIES© XX XX"]
[null,"16h 20              17h 50"]
["Mercredi","8h 00                    9h 30","METHO QUALIT D'ANALYS©","TIRECHE","B311","METHO QUALIT D'ANALYS© TIRECHE B311","SECURITE INST EQUIP INDUST(TD) ","XXX","XXX","SECURITE INST EQUIP INDUST(TD)  XXX XXX"]
[null,"9h 40                 11h 10","[SI]METHO QUALIT D'ANALYS(TD)","TIRECHE","B312","[SI]METHO QUALIT D'ANALYS(TD) TIRECHE B312","METHO QUALIT D'ANALYS© ","XXX","XXX","METHO QUALIT D'ANALYS©  XXX XXX"]
[null,"11h20                12h 50","PROTECTION ENVIRONNEMENT©","ABDELLAOUI","B312","PROTECTION ENVIRONNEMENT© ABDELLAOUI B312","METHO QUALIT D'ANALYS(TD)","XXX","XXX","METHO QUALIT D'ANALYS(TD) XXX XXX"]
[null,"13h 00              14h 30",null,null,null,null,null,null,null,null,"SECURITE INST EQUIP INDUST©","XX","XX","SECURITE INST EQUIP INDUST© XX XX"]
[null,"14h 40              16h 10","SYST MANAGEMENT©","HADDADOU","A12","SYST MANAGEMENT© HADDADOU A12",null,null,null,null,"METHO QUALIT D'ANALYS(TD) ","XX","XX","METHO QUALIT D'ANALYS(TD)  XX XX"]
[null,"16h 20              17h 50"]
["Jeudi","8h 00                     9h 30",null,null,null,null,"DEVELOPPEMENT DURABLE©","XXX","XXX","DEVELOPPEMENT DURABLE© XXX XXX","METHO QUALIT D'ANALYS©","XX","XX","METHO QUALIT D'ANALYS© XX XX"]
[null,"9h 40                  11h 10",null,null,null,null,"ACAUSTIQUE INDUST©","XXX","XXX","ACAUSTIQUE INDUST© XXX XXX","ETUDE DE CAS EN HSI©","XX","XX","ETUDE DE CAS EN HSI© XX XX"]
[null,"11h20                 12h 50",null,null,null,null,"ANALYS DES DONNEES OUTILS STAT©","XXX","XXX","ANALYS DES DONNEES OUTILS STAT© XXX XXX"]
[null,"13h 00              14h 30",null,null,null,null,null,null,null,null,"ANALYS DES DONNEES OUTILS STAT©","XX","XX","ANALYS DES DONNEES OUTILS STAT© XX XX"]
[null,"14h 40              16h 10",null,null,null,null,null,null,null,null,"DEVELOPPEMENT DURABLE©","XX","XX","DEVELOPPEMENT DURABLE© XX XX"]
[null,"16h 20              17h 50"]
["Samedi","8h 00                     9h 30","SECURITE INST EQUIP INDUST©","BENYAKHLEF","B37","SECURITE INST EQUIP INDUST© BENYAKHLEF B37"]
[null,"9h 40                  11h 10","SECURITE INST EQUIP INDUST©","BENYAKHLEF","B37","SECURITE INST EQUIP INDUST© BENYAKHLEF B37"]
[null,"11h20                 12h 50","SECURITE INST EQUIP INDUST(TD) ","BENYAKHLEF","B37","SECURITE INST EQUIP INDUST(TD)  BENYAKHLEF B37"]

{"sheet":"MI MASTER11","index":19,"n_rows":36,"n_cols":14,"rows_kept":36,"cut":false,"hidden":false,"merged":[[1,9,1,13],[0,0,0,1],[3,0,8,0],[33,0,35,0],[27,0,32,0],[21,0,26,0],[15,0,20,0],[9,0,14,0]]}
["Departement:",null,null,null,null,"G-MECANIQUE"]
[{"$f":"TODAY()","v":"2017-10-05"},"Section:",null,null,null,"Master 2ème année",null,null,null,"Filière:electromécanique-mécatronique-maint  indust"]
["Jour","SEANCES","MEM16","Enseignant","Salle","MEM16","MMTR16","Enseignant","Salle","MMTR16","MMI16(s3)","Enseignant","Salle","MMI16(s3)"]
["Dimanche","8h 00                     9h 30","MICROP-API©","X","A16","MICROP-API© X A16",null,null,null,null,"ACOUSTIQUE-APP©","NOUR","RC13","ACOUSTIQUE-APP© NOUR RC13"]
[null,"9h 40                 11h 10","MICROP-API(TD)","X","A16","MICROP-API(TD) X A16","CONCEPT-FAB-ASSI-PAR-ORD CFAO(TP)","BOUHABILA","C37","CONCEPT-FAB-ASSI-PAR-ORD CFAO(TP) BOUHABILA C37","ACOUSTIQUE-APP","NOUR","RC13","ACOUSTIQUE-APP NOUR RC13"]
[null,"11h20                 12h 50","MOD-SIM-ASSO-CON-MACH(TD)","RAHMOUNE","A16","MOD-SIM-ASSO-CON-MACH(TD) RAHMOUNE A16","SYSTEMES EMBARQUES©","TOUATI","B417","SYSTEMES EMBARQUES© TOUATI B417"]
[null,"13h 00              14h 30","TECH-COMM-REG(TP)","DAHOU","B210","TECH-COMM-REG(TP) DAHOU B210","PROGRAMMATION(TP)","X","RC9/A","PROGRAMMATION(TP) X RC9/A"]
[null,"14h 40              16h 10","TECH-COMM-REG(TP)","DAHOU","B210","TECH-COMM-REG(TP) DAHOU B210"]
[null,"16h 20              17h 50"]
["Lundi","8h 00                    9h 30","TECH-COMM-REG©","MELLAL","A14","TECH-COMM-REG© MELLAL A14","MOD-DIAG-SYS-MEC©","BENAZOUZ","B312","MOD-DIAG-SYS-MEC© BENAZOUZ B312","TRIBO-LUB-SYST-MEC©","ATMANI","RC13","TRIBO-LUB-SYST-MEC© ATMANI RC13"]
[null,"9h 40                  11h 10","TECH-COMM-REG(TD)","MELLAL","A14","TECH-COMM-REG(TD) MELLAL A14","MOD-DIAG-SYS-MEC©","BENAZOUZ","B312","MOD-DIAG-SYS-MEC© BENAZOUZ B312","TRIBO-LUB-SYST-MEC©","ATMANI","RC13","TRIBO-LUB-SYST-MEC© ATMANI RC13"]
[null,"11h20                12h 50","MOD-SIM-ASSO-CON-MACH©","RAHMOUNE","A14","MOD-SIM-ASSO-CON-MACH© RAHMOUNE A14"]
[null,"13h 00              14h 30",null,null,null,null,"REGULATION-INDUST©","MELLAL","B44","REGULATION-INDUST© MELLAL B44","TECH-DET-DEFAI©","CHEMANI-H","RC13","TECH-DET-DEFAI© CHEMANI-H RC13"]
[null,"14h 40              16h 10",null,null,null,null,"SYSTEMES EMBARQUES(TD)","TOUATI","B44","SYSTEMES EMBARQUES(TD) TOUATI B44","TECH-DET-DEFAI(TD)","CHEMANI-H","RC13","TECH-DET-DEFAI(TD) CHEMANI-H RC13"]
[null,"16h 20              17h 50"]
["Mardi","8h 00                    9h 30","CONCEPT-FAB©","MECHAKRA","ATFM","CONCEPT-FAB© MECHAKRA ATFM","PROGRAMMATION©","X","B44","PROGRAMMATION© X B44","MEC-RUP-ENDO©","LECHEB","A16","MEC-RUP-ENDO© LECHEB A16"]
[null,"9h 40                 11h 10","CONCEPT-FAB(TP)","MECHAKRA","ATFM","CONCEPT-FAB(TP) MECHAKRA ATFM","REGULATION-INDUST(TD)","MELLAL","B44","REGULATION-INDUST(TD) MELLAL B44","MEC-RUP-ENDO(TD)","LECHEB","A16","MEC-RUP-ENDO(TD) LECHEB A16"]
[null,"11h20                12h 50","CONCEPT-FAB(TP)","MECHAKRA","ATFM","CONCEPT-FAB(TP) MECHAKRA ATFM","SYSTEMES EMBARQUES(TP)","BOUNAB","AT11","SYSTEMES EMBARQUES(TP) BOUNAB AT11"]
[null,"13h 00              14h 30",null,null,null,null,null,null,null,null,"TRIBO-LUB-SYST-MEC(TD)","ATMANI","A12","TRIBO-LUB-SYST-MEC(TD) ATMANI A12"]
[null,"14h 40              16h 10",null,null,null,null,null,null,null,null,"P-AU-CHOIX©","X","A12","P-AU-CHOIX© X A12"]
[null,"16h 20              17h 50"]
["Mercredi","8h 00                    9h 30","ORG-GEST-MAINT©","SMAILI-MI","A14","ORG-GEST-MAINT© SMAILI-MI A14","CONCEPT-FAB-ASSI-PAR-ORD CFAO©","BELAIDI-I","CFAO","CONCEPT-FAB-ASSI-PAR-ORD CFAO© BELAIDI-I CFAO","AUTOMATISMES©","GAHLOUZ","A11","AUTOMATISMES© GAHLOUZ A11"]
[null,"9h 40                 11h 10","ORG-GEST-MAINT(TD)","SMAILI-MI","A14","ORG-GEST-MAINT(TD) SMAILI-MI A14","TECH-FOND-ELEM-MEC©","GAHLOUZ","B32","TECH-FOND-ELEM-MEC© GAHLOUZ B32","DIAGNO-VIBRAT©","CHELLIL","A11","DIAGNO-VIBRAT© CHELLIL A11"]
[null,"11h20                12h 50",null,null,null,null,"TECH-FOND-ELEM-MEC(TD)","GAHLOUZ","B32","TECH-FOND-ELEM-MEC(TD) GAHLOUZ B32"]
[null,"13h 00              14h 30","MICROP-API(TP);MOD-SIM-ASSO-CON(TP)","DAHOU;X","AT15;AB12","MICROP-API(TP) DAHOU AT15\nMOD-SIM-ASSO-CON(TP) X AB12","MOD-DIAG-SYS-MEC(TD)","BENAZOUZ","B44","MOD-DIAG-SYS-MEC(TD) BENAZOUZ B44","DAIGNO-VIBRAT(TP) ;TECH-DET-DEFAI(TP) ","CHELLIL;X","AT12;A15","DAIGNO-VIBRAT(TP)  CHELLIL AT12\nTECH-DET-DEFAI(TP)  X A15"]
[null,"14h 40              16h 10","MICROP-API(TP);MOD-SIM-ASSO-CON(TP)","DAHOU;X","AT15;AB12","MICROP-API(TP) DAHOU AT15\nMOD-SIM-ASSO-CON(TP) X AB12",null,null,null,null,"DIAGNO-VIBRAT(TP) ;TECH-DET-DEFAI(TP) ","CHELLIL;X","AT12;A15","DIAGNO-VIBRAT(TP)  CHELLIL AT12\nTECH-DET-DEFAI(TP)  X A15"]
[null,"16h 20              17h 50"]
["Jeudi","8h 00                     9h 30","RECH-DOC-CONC-MEM©","ALEM","A22","RECH-DOC-CONC-MEM© ALEM A22","METHOD-RECHERCHE©","ALEM","A22","METHOD-RECHERCHE© ALEM A22","RECH-DOC-CONCEPT-MEM©","ALEM","A22","RECH-DOC-CONCEPT-MEM© ALEM A22"]
[null,"9h 40                  11h 10","P AU COIX©","X","A11","P AU COIX© X A11","P-AU-CHOIX©","X","X","P-AU-CHOIX© X X","P-AU-CHOIX©","AKNOUCHE","C48","P-AU-CHOIX© AKNOUCHE C48"]
[null,"11h20                 12h 50","P AU COIX©","BENAMMAR","A11","P AU COIX© BENAMMAR A11","SURETE DE FONCTIONNEL©","ADJERID","B46","SURETE DE FONCTIONNEL© ADJERID B46","AUTOMATISMES(TP) ","GAHLOUZ","AT15","AUTOMATISMES(TP)  GAHLOUZ AT15"]
[null,"13h 00              14h 30"]
[null,"14h 40              16h 10"]
[null,"16h 20              17h 50"]
["Samedi","8h 00                     9h 30"]
[null,"9h 40                  11h 10"]
[null,"11h20                 12h 50"]

{"sheet":"MI MASTER12","index":20,"n_rows":36,"n_cols":18,"rows_kept":36,"cut":false,"hidden":false,"merged":[[0,5,0,9],[0,0,0,1],[21,0,26,0],[27,0,32,0],[33,0,35,0],[3,0,8,0],[9,0,14,0],[15,0,20,0]]}
["Filière:electromécanique",null,null,null,null,"Spécialite:electromeca-mecatron-maint industr"]
[{"$f":"TODAY()","v":"2017-10-05"},"Section:",null,null,null,"Master 1ère année"]
["Jour","SEANCES","MEM-17","Enseignant","Salle","MEM-17","MMTR-17","Enseignant","Salle","MMTR-17","MMI-17","Enseignant","Salle","MMI-17","MRISK14","Enseignant","Salle","MRISK14"]
["Dimanche","8h 00                     9h 30","MOD-SIM-MACH-ELEC©","RAHMOUNE","B44","MOD-SIM-MACH-ELEC© RAHMOUNE B44","ELECT-APP©","BENAZOUZ","A14","ELECT-APP© BENAZOUZ A14","STRATEGIES-MAINT©","SMAILI-MI","B416","STRATEGIES-MAINT© SMAILI-MI B416","S-D-F©","X","X","S-D-F© X X"]
[null,"9h 40                 11h 10","MOD-SIM-MACH-ELEC(TD)","RAHMOUNE","B44","MOD-SIM-MACH-ELEC(TD) RAHMOUNE B44","ELECTRO-APP(TD)","BENAZOUZ","A14","ELECTRO-APP(TD) BENAZOUZ A14","STRATEGIES-MAINT(TD)","SMAILI-MI","B416","STRATEGIES-MAINT(TD) SMAILI-MI B416","S-D-F(TD)","X","X","S-D-F(TD) X X"]
[null,"11h20                 12h 50",null,null,null,null,"ELEC-APP(TP)","BENAZOUZ","AT11","ELEC-APP(TP) BENAZOUZ AT11",null,null,null,null,"STAT-MAINT©","X","X","STAT-MAINT© X X"]
[null,"13h 00              14h 30","ELECTRO-PUISSANCE-IND©","TOUATI","B418","ELECTRO-PUISSANCE-IND© TOUATI B418",null,null,null,null,"THERMODY-APP©","BOUSHAKI","B416","THERMODY-APP© BOUSHAKI B416"]
[null,"14h 40              16h 10","ELECTRO-PUISSANCE-IND(TD)","TOUATI","B418","ELECTRO-PUISSANCE-IND(TD) TOUATI B418","CONCEP-MEC©","BELAIDI-I","B310","CONCEP-MEC© BELAIDI-I B310","THERMODY-APP(TD)","BOUSHAKI","B416","THERMODY-APP(TD) BOUSHAKI B416"]
[null,"16h 20              17h 50"]
["Lundi","8h 00                    9h 30","MOD-SIMUL-MACH(TP)","X","A27","MOD-SIMUL-MACH(TP) X A27","PRO-FAB-MOCN©","BOUHABILA","AP1","PRO-FAB-MOCN© BOUHABILA AP1","DYNAM-STRUCT©","CHELLIL","A12","DYNAM-STRUCT© CHELLIL A12","METH-NUM©","X","X","METH-NUM© X X"]
[null,"9h 40                  11h 10","MACH-HYD-PNEMA(TP)","GUEDIFA","RC7","MACH-HYD-PNEMA(TP) GUEDIFA RC7","ANGLAIS©","ZINE","A16","ANGLAIS© ZINE A16","DYNAM-STRUCT©","CHELLIL","A12","DYNAM-STRUCT© CHELLIL A12","METH-NUM(TD)","X","X","METH-NUM(TD) X X"]
[null,"11h20                12h 50"]
[null,"13h 00              14h 30","MACH-HYD-PNEMAT©","GUEDIFA","B312","MACH-HYD-PNEMAT© GUEDIFA B312","CAPTEURS ACTIONN©","TOUATI","B313","CAPTEURS ACTIONN© TOUATI B313","DYNAM-STRUCT(TP)","CHELLIL","AT12","DYNAM-STRUCT(TP) CHELLIL AT12","ANGLAIS©","X","X","ANGLAIS© X X"]
[null,"14h 40              16h 10","MACH-HYD-PNEMAT(TD)","GUEDIFA","B312","MACH-HYD-PNEMAT(TD) GUEDIFA B312","TRIBOLOGIE©","ATMANI","B313","TRIBOLOGIE© ATMANI B313","DYNAM-STRUCT(TP)","CHELLIL","AT12","DYNAM-STRUCT(TP) CHELLIL AT12"]
[null,"16h 20              17h 50"]
["Mardi","8h 00                    9h 30","MEC-INDUST-TRANS-PUISS©","AGUIB","A24","MEC-INDUST-TRANS-PUISS© AGUIB A24","CONCEP-MEC(TP)","GUEDIFA","RC9/B","CONCEP-MEC(TP) GUEDIFA RC9/B",null,null,null,null,"SURET DE FONCTION©","X","X","SURET DE FONCTION© X X"]
[null,"9h 40                 11h 10","RESEAUX-ELECT-INDUST©","BOUMEDINE","A24","RESEAUX-ELECT-INDUST© BOUMEDINE A24","CONCEP-MEC(TP)","GUEDIFA","RC9/B","CONCEP-MEC(TP) GUEDIFA RC9/B","MATERIAUX©","AITSAADA","B416","MATERIAUX© AITSAADA B416","SURET DE FONCTION(TD)","X","X","SURET DE FONCTION(TD) X X"]
[null,"11h20                12h 50","MEC-INDUST-TRANS-PUISS(TD)","AGUIB","A24","MEC-INDUST-TRANS-PUISS(TD) AGUIB A24",null,null,null,null,null,null,null,null,"C-D-CH©","X","X","C-D-CH© X X"]
[null,"13h 00              14h 30",null,null,null,null,"CAPTEURS ACTIONN(TD)","TOUATI","A22","CAPTEURS ACTIONN(TD) TOUATI A22","MEC-MILIEU-CONT©","BENDERADJI","B417","MEC-MILIEU-CONT© BENDERADJI B417"]
[null,"14h 40              16h 10","MACH-HYD-PNEV(TP)","GUEDIFA","RC7","MACH-HYD-PNEV(TP) GUEDIFA RC7","CAPT-ACTIONN(TP)","TOUATI","AT15","CAPT-ACTIONN(TP) TOUATI AT15","MEC-MILIEU-CONT(TD)","BENDERADJI","B417","MEC-MILIEU-CONT(TD) BENDERADJI B417"]
[null,"16h 20              17h 50"]
["Mercredi","8h 00                    9h 30","ELECTRO-PUISSANCE-IND(TP)","DAHOU","RC9/A","ELECTRO-PUISSANCE-IND(TP) DAHOU RC9/A","TRAIT SIGNAL©","DJEDDID","A16","TRAIT SIGNAL© DJEDDID A16","MATERIAUX(TD)","AITSAADA","B416","MATERIAUX(TD) AITSAADA B416"]
[null,"9h 40                 11h 10","MEC-IND-TRAS(TP)","AGUIB","MER","MEC-IND-TRAS(TP) AGUIB MER","ELEC-APP(TP);AUTOMATISMES(TP)","BENAZOUZ;BOUNAB","AT21;AT15","ELEC-APP(TP) BENAZOUZ AT21\nAUTOMATISMES(TP) BOUNAB AT15","TRAIT-SIGNAL©","DJEDDID","B416","TRAIT-SIGNAL© DJEDDID B416","METH-NUM(TP)","X","X","METH-NUM(TP) X X"]
[null,"11h20                12h 50",null,null,null,null,"AUTOMATISMES(TP)","BOUNAB","AT15","AUTOMATISMES(TP) BOUNAB AT15","MEC-TRANSF-MOUV-GAM©","X","B416","MEC-TRANSF-MOUV-GAM© X B416","STAT-MAINT(TD)","X","X","STAT-MAINT(TD) X X"]
[null,"13h 00              14h 30","CAPTEUR-INSTRUMENT©","BOUMEDINE","A24","CAPTEUR-INSTRUMENT© BOUMEDINE A24"]
[null,"14h 40              16h 10",null,null,null,null,"TRAIT-SIGNAL(TD)","DJEDDID","A22","TRAIT-SIGNAL(TD) DJEDDID A22",null,null,null,null,"INFO-AVANCE(TP)","X","X","INFO-AVANCE(TP) X X"]
[null,"16h 20              17h 50"]
["Jeudi","8h 00                     9h 30","ANGLAIS©","ZINE","A16","ANGLAIS© ZINE A16","AUTOMATISMES©","GAHLOUZ","RC14","AUTOMATISMES© GAHLOUZ RC14","TRAIT-SIGN(TP)","DJEDDID","A27","TRAIT-SIGN(TP) DJEDDID A27"]
[null,"9h 40                  11h 10","RES-ELEC(TP)","CHEBOUBA","A16","RES-ELEC(TP) CHEBOUBA A16","AUTOMATISMES(TD)","GAHLOUZ","RC14","AUTOMATISMES(TD) GAHLOUZ RC14","RISQUES-IND-TECH©","MELLAL","B312","RISQUES-IND-TECH© MELLAL B312","C-D-CH©","X","X","C-D-CH© X X"]
[null,"11h20                 12h 50",null,null,null,null,"TRAIT SIGNAL(TP)","DJEDDID","AT21","TRAIT SIGNAL(TP) DJEDDID AT21","ANGLAIS©","ZINE","B36","ANGLAIS© ZINE B36","INFO-AVANCE©","X","X","INFO-AVANCE© X X"]
[null,"13h 00              14h 30","FROID-COND-AIR©","BAHLOUL","A12","FROID-COND-AIR© BAHLOUL A12",null,null,null,null,"METHO-STAT©","ADICHE","B416","METHO-STAT© ADICHE B416"]
[null,"14h 40              16h 10"]
[null,"16h 20              17h 50"]
["Samedi","8h 00                     9h 30"]
[null,"9h 40                  11h 10"]
[null,"11h20                 12h 50"]

{"sheet":"EN LICENCE10","index":21,"n_rows":36,"n_cols":18,"rows_kept":36,"cut":false,"hidden":false,"merged":[[27,0,32,0],[33,0,35,0],[0,0,0,1],[3,0,8,0],[9,0,14,0],[15,0,20,0],[21,0,26,0]]}
["Departement:",null,null,null,null,null,null,null,null,"Filière:G-mec",null,null,null,"Spécialite:energetique"]
[{"$f":"TODAY()","v":"2017-10-05"},"Section:",null,null,null,"LICENCE 3ème année"]
["Jour","SEANCES","LEN-15/A","Enseignant","Salle","LEN-15/A","LEN-15/B","Enseignant","Salle","LEN-15/B","LEN-15/C","Enseignant","Salle","LEN-15/C","LMF13-B","Enseignant","Salle","LMF13-B"]
["Dimanche","8h 00                     9h 30","REGULATION ASSERV©","DOUDAH","A24","REGULATION ASSERV© DOUDAH A24","REGULATION ASSERV©","DOUDAH","A24","REGULATION ASSERV© DOUDAH A24","REGULATION ASSERV©","DOUDAH","A24","REGULATION ASSERV© DOUDAH A24"]
[null,"9h 40                 11h 10","MEC DES FLUIDES©","MANSOURI-K","A24","MEC DES FLUIDES© MANSOURI-K A24","MEC DES FLUIDES©","MANSOURI-K","A24","MEC DES FLUIDES© MANSOURI-K A24","MEC DES FLUIDES©","MANSOURI-K","A24","MEC DES FLUIDES© MANSOURI-K A24"]
[null,"11h20                 12h 50",null,null,null,null,"CONVERSION D'ENERGIE(TD)","MANSOURI-L","A25","CONVERSION D'ENERGIE(TD) MANSOURI-L A25"]
[null,"13h 00              14h 30","TURBOMACHINES(TD)","BRACHEMI","A25","TURBOMACHINES(TD) BRACHEMI A25",null,null,null,null,"TRANSF DE CHALEUR(TD)","HIMRANE","A23","TRANSF DE CHALEUR(TD) HIMRANE A23","THERMODYNAMIQUE©","XX","XX","THERMODYNAMIQUE© XX XX"]
[null,"14h 40              16h 10","CONVERSION D'ENERGIE(TD)","MANSOURI-L","A25","CONVERSION D'ENERGIE(TD) MANSOURI-L A25","TURBOMACHINES(TD)","BRACHEMI","A21","TURBOMACHINES(TD) BRACHEMI A21","MEC DES FLUIDES(TD)","GUEMMADI","A23","MEC DES FLUIDES(TD) GUEMMADI A23","MDF©","XX","XX","MDF© XX XX"]
[null,"16h 20              17h 50"]
["Lundi","8h 00                    9h 30","MEC DES FLUIDES(TD)","GUEMMADI","B211","MEC DES FLUIDES(TD) GUEMMADI B211","TRANSF DE CHALEUR(TD)","HIMRANE","A11","TRANSF DE CHALEUR(TD) HIMRANE A11","TURBOMACHINES(TD)","BRACHEMI","B39","TURBOMACHINES(TD) BRACHEMI B39","THERMIQUE©","XX","XX","THERMIQUE© XX XX"]
[null,"9h 40                  11h 10","ELEM DE MACHINES©","AKNOUCHE","AP1","ELEM DE MACHINES© AKNOUCHE AP1","ELEM DE MACHINES©","AKNOUCHE","AP1","ELEM DE MACHINES© AKNOUCHE AP1","ELEM DE MACHINES©","AKNOUCHE","AP1","ELEM DE MACHINES© AKNOUCHE AP1","DESSIN-TECH(TP)","XX","XX","DESSIN-TECH(TP) XX XX"]
[null,"11h20                12h 50",null,null,null,null,"MEC DES FLUIDES(TD)","GUEMMADI","A15","MEC DES FLUIDES(TD) GUEMMADI A15"]
[null,"13h 00              14h 30","MESURES ET INSTR©","LADJANI","A24","MESURES ET INSTR© LADJANI A24","MESURES ET INSTR©","LADJANI","A24","MESURES ET INSTR© LADJANI A24","MESURES ET INSTR©","LADJANI","A24","MESURES ET INSTR© LADJANI A24","THERMIQUE(TP)","XX","XX","THERMIQUE(TP) XX XX"]
[null,"14h 40              16h 10","TRANSF DE CHALEUR(TD)","HIMRANE","A11","TRANSF DE CHALEUR(TD) HIMRANE A11",null,null,null,null,"CONVERSION D'ENERGIE(TD)","MANSOURI-L","A21","CONVERSION D'ENERGIE(TD) MANSOURI-L A21","THERMIQUE(TP)","XX","XX","THERMIQUE(TP) XX XX"]
[null,"16h 20              17h 50"]
["Mardi","8h 00                    9h 30","[SI]CONVERSION D'ENERGIE(TP)","OUCHIKH","RC5","[SI]CONVERSION D'ENERGIE(TP) OUCHIKH RC5","TRANSF DE CHALEUR(TP)","DAHMANI","C35","TRANSF DE CHALEUR(TP) DAHMANI C35","[SP]TURBOMACHINES(TP)","DOUMANE","RC5","[SP]TURBOMACHINES(TP) DOUMANE RC5","THERMIQUE©","XX","XX","THERMIQUE© XX XX"]
[null,"9h 40                 11h 10","[SI]CONVERSION D'ENERGIE(TP)","OUCHIKH","RC5","[SI]CONVERSION D'ENERGIE(TP) OUCHIKH RC5","TRANSF DE CHALEUR(TP)","DAHMANI","C35","TRANSF DE CHALEUR(TP) DAHMANI C35","[SP]TURBOMACHINES(TP)","DOUMANE","RC5","[SP]TURBOMACHINES(TP) DOUMANE RC5","THERMIQUE(TD)","XX","XX","THERMIQUE(TD) XX XX"]
[null,"11h20                12h 50"]
[null,"13h 00              14h 30","ENV ET DEVELOPPENT©","BAHLOUL","A24","ENV ET DEVELOPPENT© BAHLOUL A24","ENV ET DEVELOPPENT©","BAHLOUL","A24","ENV ET DEVELOPPENT© BAHLOUL A24","ENV ET DEVELOPPENT©","BAHLOUL","A24","ENV ET DEVELOPPENT© BAHLOUL A24","THERMODYNAMIQUE(TP)","XX","XX","THERMODYNAMIQUE(TP) XX XX"]
[null,"14h 40              16h 10","TRANSF DE CHALEUR©","HIMRANE","A24","TRANSF DE CHALEUR© HIMRANE A24","TRANSF DE CHALEUR©","HIMRANE","A24","TRANSF DE CHALEUR© HIMRANE A24","TRANSF DE CHALEUR©","HIMRANE","A24","TRANSF DE CHALEUR© HIMRANE A24","THERMODYNAMIQUE(TP)","XX","XX","THERMODYNAMIQUE(TP) XX XX"]
[null,"16h 20              17h 50"]
["Mercredi","8h 00                    9h 30","TURBOMACHINES©","AKKOUCHE","A24","TURBOMACHINES© AKKOUCHE A24","TURBOMACHINES©","AKKOUCHE","A24","TURBOMACHINES© AKKOUCHE A24","TURBOMACHINES©","AKKOUCHE","A24","TURBOMACHINES© AKKOUCHE A24","MANAGEMENT©","XX","XX","MANAGEMENT© XX XX"]
[null,"9h 40                 11h 10","MEC DES FLUIDES©","MANSOURI-K","A24","MEC DES FLUIDES© MANSOURI-K A24","MEC DES FLUIDES©","MANSOURI-K","A24","MEC DES FLUIDES© MANSOURI-K A24","MEC DES FLUIDES©","MANSOURI-K","A24","MEC DES FLUIDES© MANSOURI-K A24","THERMODYNAMIQUE©","XX","XX","THERMODYNAMIQUE© XX XX"]
[null,"11h20                12h 50",null,null,null,null,null,null,null,null,null,null,null,null,"THERMODYNAMIQUE(TD)","XX","XX","THERMODYNAMIQUE(TD) XX XX"]
[null,"13h 00              14h 30","[SP]TURBOMACHINES(TP);[SI]MESURES ET INSTR(TP)","DOUMANE;LADJANI","RC5;RC5","[SP]TURBOMACHINES(TP) DOUMANE RC5\n[SI]MESURES ET INSTR(TP) LADJANI RC5","[SI]TURBOMACHINES(TP);[SP]MESURES ET INSTR(TP)","DOUMANE;LADJANI","RC5;RC5","[SI]TURBOMACHINES(TP) DOUMANE RC5\n[SP]MESURES ET INSTR(TP) LADJANI RC5","TRANSF DE CHALEUR(TP);MESURES ET INSTR(TP)","DAHMANI;LADJANI","C35;RC5","TRANSF DE CHALEUR(TP) DAHMANI C35\nMESURES ET INSTR(TP) LADJANI RC5"]
[null,"14h 40              16h 10","[SP]TURBOMACHINES(TP);[SI]MESURES ET INSTR(TP)","DOUMANE;LADJANI","RC5;RC5","[SP]TURBOMACHINES(TP) DOUMANE RC5\n[SI]MESURES ET INSTR(TP) LADJANI RC5","[SI]TURBOMACHINES(TP);[SP]MESURES ET INSTR(TP)","DOUMANE;LADJANI","RC5;RC5","[SI]TURBOMACHINES(TP) DOUMANE RC5\n[SP]MESURES ET INSTR(TP) LADJANI RC5","TRANSF DE CHALEUR(TP);MESURES ET INSTR(TP)","DAHMANI;LADJANI","C35;RC5","TRANSF DE CHALEUR(TP) DAHMANI C35\nMESURES ET INSTR(TP) LADJANI RC5","RDM(TD)","XX","XX","RDM(TD) XX XX"]
[null,"16h 20              17h 50"]
["Jeudi","8h 00                     9h 30",null,null,null,null,null,null,null,null,null,null,null,null,"RDM©","XX","XX","RDM© XX XX"]
[null,"9h 40                  11h 10","TRANSF DE CHALEUR(TP)","DAHMANI","C35","TRANSF DE CHALEUR(TP) DAHMANI C35","[SP]CONVERSION D'ENERGIE(TP)","OUCHIKH","RC5","[SP]CONVERSION D'ENERGIE(TP) OUCHIKH RC5","[SI]CONVERSION D'ENERGIE(TP)","OUCHIKH","RC5","[SI]CONVERSION D'ENERGIE(TP) OUCHIKH RC5","MDF©","XX","XX","MDF© XX XX"]
[null,"11h20                 12h 50","TRANSF DE CHALEUR(TP)","DAHMANI","C35","TRANSF DE CHALEUR(TP) DAHMANI C35","[SP]CONVERSION D'ENERGIE(TP)","OUCHIKH","RC5","[SP]CONVERSION D'ENERGIE(TP) OUCHIKH RC5","[SI]CONVERSION D'ENERGIE(TP)","OUCHIKH","RC5","[SI]CONVERSION D'ENERGIE(TP) OUCHIKH RC5"]
[null,"13h 00              14h 30","CONVERSION D'ENERGIE©","BOUSHAKI","AP1","CONVERSION D'ENERGIE© BOUSHAKI AP1","CONVERSION D'ENERGIE©","BOUSHAKI","AP1","CONVERSION D'ENERGIE© BOUSHAKI AP1","CONVERSION D'ENERGIE©","BOUSHAKI","AP1","CONVERSION D'ENERGIE© BOUSHAKI AP1","MDF(TD)","XX","XX","MDF(TD) XX XX"]
[null,"14h 40              16h 10"]
[null,"16h 20              17h 50"]
["Samedi","8h 00                     9h 30"]
[null,"9h 40                  11h 10",null,null,null,null,null,null,null,null,null,null,null,null,"MANAGEMENT©","XX","XX","MANAGEMENT© XX XX"]
[null,"11h20                 12h 50",null,null,null,null,null,null,null,null,null,null,null,null,"THERMODYNAMIQUE©","XX","XX","THERMODYNAMIQUE© XX XX"]

{"sheet":"EN MASTER11","index":22,"n_rows":36,"n_cols":18,"rows_kept":36,"cut":false,"hidden":false,"merged":[[0,3,0,9],[0,0,0,1],[21,0,26,0],[27,0,32,0],[33,0,35,0],[3,0,8,0],[9,0,14,0],[15,0,20,0]]}
["Departement:Mécanique",null,"G.Mécanique","Spécialité:Energie ren-instal-energ-turb-energetique"]
[{"$f":"TODAY()","v":"2017-10-05"},"Section:",null,null,null,"Master 2ème année"]
["Jour","SEANCES","MER16","Enseignant","Salle","MER16","MIE16","Enseignant","Salle","MIE16","MEN16","Enseignant","Salle","MEN16","xxxx","Enseignant","Salle","xxxx"]
["Dimanche","8h 00                     9h 30","EFFI-ENERG-THER-B©","KHALDI","A23","EFFI-ENERG-THER-B© KHALDI A23","MOTEURS A COMBUSTION©","LOUNICI","A22","MOTEURS A COMBUSTION© LOUNICI A22","MOTEURS A COMBUSTION©","LOUNICI","A22","MOTEURS A COMBUSTION© LOUNICI A22","DEVEL-DURA-GEST-ENV©","xxxx","xxx","DEVEL-DURA-GEST-ENV© xxxx xxx"]
[null,"9h 40                 11h 10","SOL-PHOTO-APPLIC©","DOUMANE","A23","SOL-PHOTO-APPLIC© DOUMANE A23","MEC DE PROPULSION(TD)","BRAHIMI","A17","MEC DE PROPULSION(TD) BRAHIMI A17","OPTIMISATION(TP)","NADIR","A21","OPTIMISATION(TP) NADIR A21","DEVEL-DURA-GEST-ENV©","xxx","xxx","DEVEL-DURA-GEST-ENV© xxx xxx"]
[null,"11h20                 12h 50"]
[null,"13h 00              14h 30","FROID-CLIM-SOLAIRE(TP)","MANSOURI-L","RC5","FROID-CLIM-SOLAIRE(TP) MANSOURI-L RC5","OPTIMISATION(TP)","NADIR","A11","OPTIMISATION(TP) NADIR A11","MOTEURS-COMB-INT-APP(TD)","LOUNICI","A16","MOTEURS-COMB-INT-APP(TD) LOUNICI A16","MACH-FRIGO(TP)(1/2G)","xxx","xxx","MACH-FRIGO(TP)(1/2G) xxx xxx"]
[null,"14h 40              16h 10",null,null,null,null,null,null,null,null,null,null,null,null,"MACH-FRIGO(TP)(1/2G)","xxx","xxx","MACH-FRIGO(TP)(1/2G) xxx xxx"]
[null,"16h 20              17h 50"]
["Lundi","8h 00                    9h 30","MAIN-SYST-ENERG-REN©","HEDEILI-F","A23","MAIN-SYST-ENERG-REN© HEDEILI-F A23","RHEOLOGIE©","YAHIAOUI-GM","B49","RHEOLOGIE© YAHIAOUI-GM B49","CRYOGENIE©","MANSOURI-L","A21","CRYOGENIE© MANSOURI-L A21"]
[null,"9h 40                  11h 10","F-T-M-D-S©","GUERRACHE","A23","F-T-M-D-S© GUERRACHE A23","AERODYNAMIQUE(TP)","BRACHEMI","RC5","AERODYNAMIQUE(TP) BRACHEMI RC5","CRYOGENIE(TD)","MANSOURI-L","A21","CRYOGENIE(TD) MANSOURI-L A21","MANAG-COND-PROC-INDUST(TD)","xxx","xxx","MANAG-COND-PROC-INDUST(TD) xxx xxx"]
[null,"11h20                12h 50",null,null,null,null,null,null,null,null,null,null,null,null,"MOD-SYS-ENERG(TP)","xxx","xxx","MOD-SYS-ENERG(TP) xxx xxx"]
[null,"13h 00              14h 30","EFFI-ENERG-THER-B(TD)","KHALDI","A25","EFFI-ENERG-THER-B(TD) KHALDI A25","CFD  ET LOGICIELES(TP)","HACHEMI","RC5","CFD  ET LOGICIELES(TP) HACHEMI RC5","CFD ET LOGICIELES(TP)","GUEMMADI","A26","CFD ET LOGICIELES(TP) GUEMMADI A26"]
[null,"14h 40              16h 10","ECHANGEURS DE CHALEUR©","X","A25","ECHANGEURS DE CHALEUR© X A25","CFD  ET LOGICIELES(TP)","HACHEMI","RC5","CFD  ET LOGICIELES(TP) HACHEMI RC5","CFD ET LOGICIELES(TP)","GUEMMADI","A26","CFD ET LOGICIELES(TP) GUEMMADI A26"]
[null,"16h 20              17h 50"]
["Mardi","8h 00                    9h 30",null,null,null,null,"HERODYNAMIQUE©","BRACHEMI","A15","HERODYNAMIQUE© BRACHEMI A15","ECHANGEUR DE CHALEUR©","HIMRANE","A11","ECHANGEUR DE CHALEUR© HIMRANE A11"]
[null,"9h 40                 11h 10",null,null,null,null,"HERODYNAMIQUE(TD)","BRACHEMI","A15","HERODYNAMIQUE(TD) BRACHEMI A15","ECHANGEUR DE CHALEUR(TD)","HIMRANE","A11","ECHANGEUR DE CHALEUR(TD) HIMRANE A11","SYSTEMES ENERGETIQUE AVANCEE©","xxx","xxx","SYSTEMES ENERGETIQUE AVANCEE© xxx xxx"]
[null,"11h20                12h 50","PILES-COMPROD-HYD(TD)","OUALI","A16","PILES-COMPROD-HYD(TD) OUALI A16",null,null,null,null,"ECHANGEUR DE CHALEUR(TP)","HIMRANE","RC5","ECHANGEUR DE CHALEUR(TP) HIMRANE RC5","VAL-DECH-TRAIT-EFFLU©","xxx","xxx","VAL-DECH-TRAIT-EFFLU© xxx xxx"]
[null,"13h 00              14h 30","ETUDE-TECH-ECO©","MOHAMMEDI","C49","ETUDE-TECH-ECO© MOHAMMEDI C49","MOTEURS-COMB-INT-APP©","LOUNICI","A14","MOTEURS-COMB-INT-APP© LOUNICI A14","MOTEURS-COMB-INT-APP©","LOUNICI","A14","MOTEURS-COMB-INT-APP© LOUNICI A14"]
[null,"14h 40              16h 10","ETUDE-TECH-ECO(TP)","MOHAMMEDI","RC9/B","ETUDE-TECH-ECO(TP) MOHAMMEDI RC9/B","MOTEURS-COMB-INT-APP(TD)","LOUNICI","A21","MOTEURS-COMB-INT-APP(TD) LOUNICI A21"]
[null,"16h 20              17h 50"]
["Mercredi","8h 00                    9h 30","SOL-PHOTO-APPLIC(TD)","DOUMANE","A23","SOL-PHOTO-APPLIC(TD) DOUMANE A23","MEC DE PROPULSION©","BRAHIMI","A22","MEC DE PROPULSION© BRAHIMI A22","MEC DE PROPULSION©","BRAHIMI","A22","MEC DE PROPULSION© BRAHIMI A22","SYSTEMES ENERGETIQUE AVANCEE©","xxx","xxx","SYSTEMES ENERGETIQUE AVANCEE© xxx xxx"]
[null,"9h 40                 11h 10","MANAG-PROJET-ENERG©","AKKOUCHE","A22","MANAG-PROJET-ENERG© AKKOUCHE A22","MANAG-PROJET-ENERG©","AKKOUCHE","A22","MANAG-PROJET-ENERG© AKKOUCHE A22","MANAG-PROJET-ENERG©","AKKOUCHE","A22","MANAG-PROJET-ENERG© AKKOUCHE A22","VAL-DECH-TRAIT-EFFLU©","xxx","xxx","VAL-DECH-TRAIT-EFFLU© xxx xxx"]
[null,"11h20                12h 50","RECHERCHE-DOC-CONCEP-MÉMOIRE©","ALEM","A22","RECHERCHE-DOC-CONCEP-MÉMOIRE© ALEM A22","RECHERCHE-DOC-CONCEP-MÉMOIRE©","ALEM","A22","RECHERCHE-DOC-CONCEP-MÉMOIRE© ALEM A22","RECHERCHE-DOC-CONCEP-MÉMOIRE©","ALEM","A22","RECHERCHE-DOC-CONCEP-MÉMOIRE© ALEM A22","MOD-SYS-ENERG(TD)","xxx","xxx","MOD-SYS-ENERG(TD) xxx xxx"]
[null,"13h 00              14h 30"]
[null,"14h 40              16h 10",null,null,null,null,null,null,null,null,"MEC-PROPULSION(TD)","BRAHIMI","A11","MEC-PROPULSION(TD) BRAHIMI A11"]
[null,"16h 20              17h 50"]
["Jeudi","8h 00                     9h 30","PILES-COMB-PROD-HYD©","OUALI","A21","PILES-COMB-PROD-HYD© OUALI A21","FIABILITE©","BENAMMAR","A15","FIABILITE© BENAMMAR A15"]
[null,"9h 40                  11h 10","LOG-SIM-ENERG-REN(TP)","HACHEMI","A27","LOG-SIM-ENERG-REN(TP) HACHEMI A27","OPTIMISATION©","NADIR","A14","OPTIMISATION© NADIR A14","OPTIMISATION©","NADIR","A14","OPTIMISATION© NADIR A14","MOD-SYS-ENERG©","xxx","xxx","MOD-SYS-ENERG© xxx xxx"]
[null,"11h20                 12h 50",null,null,null,null,"RHEOLOGIE(TD)","YAHIAOUI-GM","A21","RHEOLOGIE(TD) YAHIAOUI-GM A21",null,null,null,null,"ELECTRI-ELECTRO-AUTOMATIQUE©","xxx","xxx","ELECTRI-ELECTRO-AUTOMATIQUE© xxx xxx"]
[null,"13h 00              14h 30","F-T-M-D-S(TD)","GUERRACHE","A24","F-T-M-D-S(TD) GUERRACHE A24",null,null,null,null,"PANIER AUX CHOIX©","X","A24","PANIER AUX CHOIX© X A24","MANAG-COND-PROC-INDUST(TD)","xxx","xxx","MANAG-COND-PROC-INDUST(TD) xxx xxx"]
[null,"14h 40              16h 10","PANIER AUX CHOIX©","X","A25","PANIER AUX CHOIX© X A25"]
[null,"16h 20              17h 50"]
["Samedi","8h 00                     9h 30"]
[null,"9h 40                  11h 10"]
[null,"11h20                 12h 50"]

{"sheet":"EN MASTER12","index":23,"n_rows":36,"n_cols":18,"rows_kept":36,"cut":false,"hidden":false,"merged":[[33,0,35,0],[0,0,0,1],[3,0,8,0],[9,0,14,0],[15,0,20,0],[21,0,26,0],[27,0,32,0]]}
["Filère:G Mécanique",null,null,null,null,"Spécialitè:Enérgie renouvlable en mec",null,null,null,"Instalation énergétique et turbomachine",null,null,null,"énergétique"]
[{"$f":"TODAY()","v":"2017-10-05"},"Section:",null,null,null,"master 1ère année"]
["Jour","SEANCES","MER17","Enseignant","Salle","MER17","MIE17","Enseignant","Salle","MIE17","MEN17","Enseignant","Salle","MEN17","MTC16","Enseignant","Salle","MTC16"]
["Dimanche","8h 00                     9h 30",null,null,null,null,"M-D-F APP©","MANSOURI-K","AP1","M-D-F APP© MANSOURI-K AP1","M-D-F APP©","MANSOURI-K","AP1","M-D-F APP© MANSOURI-K AP1","THERMIQUE(TD)","XX","XX","THERMIQUE(TD) XX XX"]
[null,"9h 40                 11h 10","REGLEMENT-NORMES©","KORSO","A13","REGLEMENT-NORMES© KORSO A13","INSTA-ENERG(TP);METH NUM(TP)","OUALI;GUEMMADI","RC5;RC9/A","INSTA-ENERG(TP) OUALI RC5\nMETH NUM(TP) GUEMMADI RC9/A","M-D-F APP(TD)","KHALDI","A25","M-D-F APP(TD) KHALDI A25","METHODES NUMERIQUE©","XX","XX","METHODES NUMERIQUE© XX XX"]
[null,"11h20                 12h 50",null,null,null,null,"INSTA-ENERG(TP);METH NUM(TP)","OUALI;GUEMMADI","RC5;RC9/A","INSTA-ENERG(TP) OUALI RC5\nMETH NUM(TP) GUEMMADI RC9/A","METH NUM(TD)","HACHEMI","A14","METH NUM(TD) HACHEMI A14"]
[null,"13h 00              14h 30","ENERGIE-RENOUV-ENJ-EN©","DOUMANE","A13","ENERGIE-RENOUV-ENJ-EN© DOUMANE A13",null,null,null,null,null,null,null,null,"PROGRAMMATION(TP)","XX","XX","PROGRAMMATION(TP) XX XX"]
[null,"14h 40              16h 10","METHOD NUM©","NADIR","A13","METHOD NUM© NADIR A13","MDF(TD)","KHALDI","A11","MDF(TD) KHALDI A11",null,null,null,null,"PROGRAMMATION(TP)","XX","XX","PROGRAMMATION(TP) XX XX"]
[null,"16h 20              17h 50"]
["Lundi","8h 00                    9h 30","M D F©","DAIMALLAH","A15","M D F© DAIMALLAH A15","INSTALLATION ENERG I©","BRAHIMI","B416","INSTALLATION ENERG I© BRAHIMI B416","MACHINES THERM©","LOUNICI","A13","MACHINES THERM© LOUNICI A13"]
[null,"9h 40                  11h 10",null,null,null,null,"INSTALLATION ENERG I(TD)","BRAHIMI","B416","INSTALLATION ENERG I(TD) BRAHIMI B416","MACHINES THERM(TD)","LOUNICI","A13","MACHINES THERM(TD) LOUNICI A13","M-D-F©","XX","XX","M-D-F© XX XX"]
[null,"11h20                12h 50","THERMODYNAMIQUE APP©","BOUSHAKI","A23","THERMODYNAMIQUE APP© BOUSHAKI A23","M D F©","MANSOURI-K","AP1","M D F© MANSOURI-K AP1","M D F©","MANSOURI-K","AP1","M D F© MANSOURI-K AP1"]
[null,"13h 00              14h 30","NOTIONS D'AERODY-TURB©","BRAHIMI","A23","NOTIONS D'AERODY-TURB© BRAHIMI A23",null,null,null,null,null,null,null,null,"AEROTHERMOCHIMIE-COMBUTION(TD)","XX","XX","AEROTHERMOCHIMIE-COMBUTION(TD) XX XX"]
[null,"14h 40              16h 10",null,null,null,null,"INSTRUMENTATION ET MESURES©","LADJANI","A24","INSTRUMENTATION ET MESURES© LADJANI A24","INSTRUMENTATION ET MESURES©","LADJANI","A24","INSTRUMENTATION ET MESURES© LADJANI A24","AEROTHERMOCHIMIE-COMBUTION©","XX","XX","AEROTHERMOCHIMIE-COMBUTION© XX XX"]
[null,"16h 20              17h 50"]
["Mardi","8h 00                    9h 30","M-D-F APP©","DAIMALLAH","A13","M-D-F APP© DAIMALLAH A13","TRANSF-CHALEUR-MASSE©©","GRINE","B418","TRANSF-CHALEUR-MASSE©© GRINE B418","TRANSF-CHALEUR-MASSE©","GRINE","B418","TRANSF-CHALEUR-MASSE© GRINE B418","M-D-F(TD)","XX","XX","M-D-F(TD) XX XX"]
[null,"9h 40                 11h 10","M-D-F (TD)","DAIMALLAH","A13","M-D-F (TD) DAIMALLAH A13","TRANSF-CHALEUR-MASSE(TD)","GRINE","A23","TRANSF-CHALEUR-MASSE(TD) GRINE A23",null,null,null,null,"THERMIQUE©","XX","XX","THERMIQUE© XX XX"]
[null,"11h20                12h 50",null,null,null,null,null,null,null,null,"TRANSF-CHALEUR-MASSE(TD) ","GRINE","A23","TRANSF-CHALEUR-MASSE(TD)  GRINE A23","ANGLAIS E-E-O(TD)","XX","XX","ANGLAIS E-E-O(TD) XX XX"]
[null,"13h 00              14h 30","GIS  RENOUV METEO©","DAHMANI","A23","GIS  RENOUV METEO© DAHMANI A23","[SP]INSTRUMENTATION ET MESURES(TP)","LADJANI","C35","[SP]INSTRUMENTATION ET MESURES(TP) LADJANI C35","[SI]INSTRUMENTATION ET MESURES(TP)","LADJANI","C35","[SI]INSTRUMENTATION ET MESURES(TP) LADJANI C35"]
[null,"14h 40              16h 10","GIS  RENOUV METEO(TD)","DAHMANI","A23","GIS  RENOUV METEO(TD) DAHMANI A23","[SP]INSTRUMENTATION ET MESURES(TP)","LADJANI","C35","[SP]INSTRUMENTATION ET MESURES(TP) LADJANI C35","[SI]INSTRUMENTATION ET MESURES(TP)","LADJANI","C35","[SI]INSTRUMENTATION ET MESURES(TP) LADJANI C35"]
[null,"16h 20              17h 50"]
["Mercredi","8h 00                    9h 30",null,null,null,null,"METHO-NUM(TD)","HACHEMI","A15","METHO-NUM(TD) HACHEMI A15","METH NUMERIQUE(TP) ;MACHINES THERMIQUE(TP)","GUEMMADI;OUALI","A26;RC5","METH NUMERIQUE(TP)  GUEMMADI A26\nMACHINES THERMIQUE(TP) OUALI RC5"]
[null,"9h 40                 11h 10","NOTION DE METE-GIS-REND©","DAHMANI","RC14","NOTION DE METE-GIS-REND© DAHMANI RC14",null,null,null,null,"METH NUMERIQUE(TP) ;MACHINES THERMIQUE(TP)","GUEMMADI;OUALI","A26;RC5","METH NUMERIQUE(TP)  GUEMMADI A26\nMACHINES THERMIQUE(TP) OUALI RC5","THERMODYNAMIQUE©","XX","XX","THERMODYNAMIQUE© XX XX"]
[null,"11h20                12h 50","ANGLAIS©","LAZAZI","A12","ANGLAIS© LAZAZI A12","ANGLAIS©","LAZAZI","A12","ANGLAIS© LAZAZI A12","ANGLAIS©","LAZAZI","A12","ANGLAIS© LAZAZI A12","ANGLAIS E-E-O©","XX","XX","ANGLAIS E-E-O© XX XX"]
[null,"13h 00              14h 30",null,null,null,null,"METHOD NUM©","HACHEMI","A12","METHOD NUM© HACHEMI A12","METHOD NUM©","HACHEMI","A12","METHOD NUM© HACHEMI A12"]
[null,"14h 40              16h 10",null,null,null,null,null,null,null,null,null,null,null,null,"THERMODYNAMIQUE(TD)","XX","XX","THERMODYNAMIQUE(TD) XX XX"]
[null,"16h 20              17h 50"]
["Jeudi","8h 00                     9h 30","METHOD NUM(TD)","NADIR","A25","METHOD NUM(TD) NADIR A25","ELECTROTECHNIQUE©","X","B417","ELECTROTECHNIQUE© X B417","ELECTROTECHNIQUE©","X","B417","ELECTROTECHNIQUE© X B417","METHODES NUMERIQUE(TD)","XX","XX","METHODES NUMERIQUE(TD) XX XX"]
[null,"9h 40                  11h 10","THERMODYNAMIQUE APP(TD)","BOUSHAKI","A25","THERMODYNAMIQUE APP(TD) BOUSHAKI A25","ELECTRONIQUE©","X","B417","ELECTRONIQUE© X B417","ELECTRONIQUE©","X","B417","ELECTRONIQUE© X B417","ENERGIES RENOUVLABLES©","XX","XX","ENERGIES RENOUVLABLES© XX XX"]
[null,"11h20                 12h 50"]
[null,"13h 00              14h 30","METHOD NUM(TP);GIS  RENOUV METEO(TP)","GUEMMADI;DAHMANI","B210;RC5","METHOD NUM(TP) GUEMMADI B210\nGIS  RENOUV METEO(TP) DAHMANI RC5","[SI]MDF(TP)","KHALDI","RC7","[SI]MDF(TP) KHALDI RC7","[SP]MDF(TP)","KHALDI","RC7","[SP]MDF(TP) KHALDI RC7","ENERGIES RENOUVLABLES(TD)","XX","xx","ENERGIES RENOUVLABLES(TD) XX xx"]
[null,"14h 40              16h 10","METHOD NUM(TP);GIS  RENOUV METEO(TP)","GUEMMADI;DAHMANI","B210;RC5","METHOD NUM(TP) GUEMMADI B210\nGIS  RENOUV METEO(TP) DAHMANI RC5","[SI]MDF(TP)","KHALDI","RC7","[SI]MDF(TP) KHALDI RC7","[SP]MDF(TP)","KHALDI","RC7","[SP]MDF(TP) KHALDI RC7"]
[null,"16h 20              17h 50"]
["Samedi","8h 00                     9h 30"]
[null,"9h 40                  11h 10"]
[null,"11h20                 12h 50"]

{"sheet":"TC S31","index":24,"n_rows":36,"n_cols":18,"rows_kept":36,"cut":false,"hidden":false,"merged":[[27,0,32,0],[33,0,35,0],[0,0,0,1],[1,0,1,1],[3,0,8,0],[9,0,14,0],[15,0,20,0],[21,0,26,0]]}
["Filière:",null,null,null,null,"electronique",null,null,null,"automatique",null,null,null,"electrotechnique",null,null,null,{"$f":"TODAY()","v":"2017-10-05"}]
["Section:",null,null,null,null,"Licence 2ème année"]
["Jour","SEANCES","LELN-16","Enseignant","Salle","LELN-16","LAUTO-16","Enseignant","Salle","LAUTO-16","LELET-16/A","Enseignant","Salle","LELET-16/A","LELET-16/B","Enseignant","Salle","LELET-16/B"]
["Dimanche","8h 00                     9h 30","ANGLAIS©","YAHIAOUI","AP2","ANGLAIS© YAHIAOUI AP2","ANGLAIS©","YAHIAOUI","AP2","ANGLAIS© YAHIAOUI AP2","ANGLAIS©","YAHIAOUI","AP2","ANGLAIS© YAHIAOUI AP2","ANGLAIS©","YAHIAOUI","AP2","ANGLAIS© YAHIAOUI AP2"]
[null,"9h 40                 11h 10","ENERGIE ET ENVIRONNEMENT©","BOUMERIDJA","AP4","ENERGIE ET ENVIRONNEMENT© BOUMERIDJA AP4","ENERGIE ET ENVIRONNEMENT©","BOUMERIDJA","AP4","ENERGIE ET ENVIRONNEMENT© BOUMERIDJA AP4","ENERGIE ET ENVIRONNEMENT©","BOUMERIDJA","AP4","ENERGIE ET ENVIRONNEMENT© BOUMERIDJA AP4","ENERGIE ET ENVIRONNEMENT©","BOUMERIDJA","AP4","ENERGIE ET ENVIRONNEMENT© BOUMERIDJA AP4"]
[null,"11h20                 12h 50","ELECTRONIQUE FOND©","MOUATSI","AP4","ELECTRONIQUE FOND© MOUATSI AP4","ELECTRONIQUE FOND©","MOUATSI","AP4","ELECTRONIQUE FOND© MOUATSI AP4","ELECTRONIQUE FOND©","MOUATSI","AP4","ELECTRONIQUE FOND© MOUATSI AP4","ELECTRONIQUE FOND©","MOUATSI","AP4","ELECTRONIQUE FOND© MOUATSI AP4"]
[null,"13h 00              14h 30",null,null,null,null,"ELECTROTECH(TP);ELECTRNOIQUE(TP)","HAMEL;X","C315;B211","ELECTROTECH(TP) HAMEL C315\nELECTRNOIQUE(TP) X B211",null,null,null,null,"ELECTRONIQUE(TD)","MOUATSI","C48","ELECTRONIQUE(TD) MOUATSI C48"]
[null,"14h 40              16h 10","ELECTRONIQUE(TD)","MOUATSI","C48","ELECTRONIQUE(TD) MOUATSI C48","ELECTROTECH(TP);ELECTRNOIQUE(TP)","HAMEL;X","C315;B211","ELECTROTECH(TP) HAMEL C315\nELECTRNOIQUE(TP) X B211","PROBAT-STAT(TD)","X","C45","PROBAT-STAT(TD) X C45"]
[null,"16h 20              17h 50"]
["Lundi","8h 00                    9h 30","ELECTROTECH(TP);ELECTRNOIQUE(TP)","HAMEL;MOUATSI","C315;B211","ELECTROTECH(TP) HAMEL C315\nELECTRNOIQUE(TP) MOUATSI B211",null,null,null,null,null,null,null,null,"ELECTROTECH-FOND(TD)","MZIOU","C42","ELECTROTECH-FOND(TD) MZIOU C42"]
[null,"9h 40                  11h 10","ELECTROTECH(TP);ELECTRNOIQUE(TP)","HAMEL;MOUATSI","C315;B211","ELECTROTECH(TP) HAMEL C315\nELECTRNOIQUE(TP) MOUATSI B211",null,null,null,null,"ELECTROTECH-FOND(TD)","MZIOU","B37","ELECTROTECH-FOND(TD) MZIOU B37"]
[null,"11h20                12h 50",null,null,null,null,"ELECTRONIQUE(TD)","MOUATSI","C32","ELECTRONIQUE(TD) MOUATSI C32",null,null,null,null,"ONDES ET VIBR(TD)","X","C45","ONDES ET VIBR(TD) X C45"]
[null,"13h 00              14h 30","PROBAT ET STAT©","KABRI","AP6","PROBAT ET STAT© KABRI AP6","PROBAT ET STAT©","KABRI","AP6","PROBAT ET STAT© KABRI AP6","PROBAT ET STAT©","KABRI","AP6","PROBAT ET STAT© KABRI AP6","PROBAT ET STAT©","KABRI","AP6","PROBAT ET STAT© KABRI AP6"]
[null,"14h 40              16h 10","ETAT DE  L'ART  DE G-ELECT©","SAADSOUD","AP6","ETAT DE  L'ART  DE G-ELECT© SAADSOUD AP6","ETAT DE  L'ART  DE G-ELECT©","SAADSOUD","AP6","ETAT DE  L'ART  DE G-ELECT© SAADSOUD AP6","ETAT DE  L'ART  DE G-ELECT©","SAADSOUD","AP6","ETAT DE  L'ART  DE G-ELECT© SAADSOUD AP6","ETAT DE  L'ART  DE G-ELECT©","SAADSOUD","AP6","ETAT DE  L'ART  DE G-ELECT© SAADSOUD AP6"]
[null,"16h 20              17h 50"]
["Mardi","8h 00                    9h 30","INFORMATIQUE(TP)","BELHABCHIA","A26","INFORMATIQUE(TP) BELHABCHIA A26",null,null,null,null,"ELECTRONIQUE(TD)","MOUATSI","B32","ELECTRONIQUE(TD) MOUATSI B32"]
[null,"9h 40                 11h 10",null,null,null,null,"INFORMATIQUE(TP)","BELHABCHIA","A26","INFORMATIQUE(TP) BELHABCHIA A26","ONDES ET VIBR(TD)","X","B32","ONDES ET VIBR(TD) X B32","ONDES ET VIBR(TP)","X","B49","ONDES ET VIBR(TP) X B49"]
[null,"11h20                12h 50","MATHEMATIQUE(TD)","X","B39","MATHEMATIQUE(TD) X B39"]
[null,"13h 00              14h 30","MATHEMATIQUE©","AZZAL","AP4","MATHEMATIQUE© AZZAL AP4","MATHEMATIQUE©","AZZAL","AP4","MATHEMATIQUE© AZZAL AP4","MATHEMATIQUE©","AZZAL","AP4","MATHEMATIQUE© AZZAL AP4","MATHEMATIQUE©","AZZAL","AP4","MATHEMATIQUE© AZZAL AP4"]
[null,"14h 40              16h 10",null,null,null,null,"MATHEMATIQUE(TD)","X","B31","MATHEMATIQUE(TD) X B31","OND ET VIB(TP)","X","X","OND ET VIB(TP) X X"]
[null,"16h 20              17h 50"]
["Mercredi","8h 00                    9h 30","ELEC-TECH-FOND©","MZIOU","AP3","ELEC-TECH-FOND© MZIOU AP3","ELEC-TECH-FOND©","MZIOU","AP3","ELEC-TECH-FOND© MZIOU AP3","ELEC-TECH-FOND©","MZIOU","AP3","ELEC-TECH-FOND© MZIOU AP3","ELEC-TECH-FOND©","MZIOU","AP3","ELEC-TECH-FOND© MZIOU AP3"]
[null,"9h 40                 11h 10","ONDES ET VIBR©","RAHMOUNE","AP3","ONDES ET VIBR© RAHMOUNE AP3","ONDES ET VIBR©","RAHMOUNE","AP3","ONDES ET VIBR© RAHMOUNE AP3","ONDES ET VIBR©","RAHMOUNE","AP3","ONDES ET VIBR© RAHMOUNE AP3","ONDES ET VIBR©","RAHMOUNE","AP3","ONDES ET VIBR© RAHMOUNE AP3"]
[null,"11h20                12h 50","ELECTROTECH-FOND(TD)","LARABI","C42","ELECTROTECH-FOND(TD) LARABI C42","ONDES ET VIBR(TD)","X","C45","ONDES ET VIBR(TD) X C45"]
[null,"13h 00              14h 30",null,null,null,null,null,null,null,null,"INFORMATIQUE(TP)","BELHABCHIA","RC9/A","INFORMATIQUE(TP) BELHABCHIA RC9/A","PROBAT-STAT(TD)","X","B32","PROBAT-STAT(TD) X B32"]
[null,"14h 40              16h 10","ONDES ET VIBR(TD)","X","B311","ONDES ET VIBR(TD) X B311","ELECTROTECH-FOND(TD)","LARABI","B31","ELECTROTECH-FOND(TD) LARABI B31","MATHEMATIQUE(TD)","X","A14","MATHEMATIQUE(TD) X A14","INFORMATIQUE(TP)","BELHABCHIA","A27","INFORMATIQUE(TP) BELHABCHIA A27"]
[null,"16h 20              17h 50"]
["Jeudi","8h 00                     9h 30","MATHEMATIQUE©","AZZAL","AP4","MATHEMATIQUE© AZZAL AP4","MATHEMATIQUE©","AZZAL","AP4","MATHEMATIQUE© AZZAL AP4","MATHEMATIQUE©","AZZAL","AP4","MATHEMATIQUE© AZZAL AP4","MATHEMATIQUE©","AZZAL","AP4","MATHEMATIQUE© AZZAL AP4"]
[null,"9h 40                  11h 10","PROBAT-STAT(TD)","X","B38","PROBAT-STAT(TD) X B38","OND ET VIB(TP)","X","X","OND ET VIB(TP) X X","ELECTROTECH(TP);ELECTRNOIQUE(TP)","HAMEL;HAROUNE","C315;B211","ELECTROTECH(TP) HAMEL C315\nELECTRNOIQUE(TP) HAROUNE B211","MATHEMATIQUE(TD)","X","B419","MATHEMATIQUE(TD) X B419"]
[null,"11h20                 12h 50","OND ET VIB(TP)","X","B38","OND ET VIB(TP) X B38","PROBAT-STAT(TD)","X","B31","PROBAT-STAT(TD) X B31","ELECTROTECH(TP);ELECTRNOIQUE(TP)","HAMEL;HAROUNE","C315;B211","ELECTROTECH(TP) HAMEL C315\nELECTRNOIQUE(TP) HAROUNE B211"]
[null,"13h 00              14h 30",null,null,null,null,null,null,null,null,null,null,null,null,"ELECTROTECH(TP);ELECTRNOIQUE(TP)","HAMEL;X","C315;B211","ELECTROTECH(TP) HAMEL C315\nELECTRNOIQUE(TP) X B211"]
[null,"14h 40              16h 10",null,null,null,null,null,null,null,null,null,null,null,null,"ELECTROTECH(TP);ELECTRNOIQUE(TP)","HAMEL;X","C315;B211","ELECTROTECH(TP) HAMEL C315\nELECTRNOIQUE(TP) X B211"]
[null,"16h 20              17h 50"]
["Samedi","8h 00                     9h 30"]
[null,"9h 40                  11h 10"]
[null,"11h20                 12h 50"]

{"sheet":"TC S32","index":25,"n_rows":36,"n_cols":18,"rows_kept":36,"cut":false,"hidden":false,"merged":[[27,0,32,0],[33,0,35,0],[0,0,0,1],[1,0,1,1],[3,0,8,0],[9,0,14,0],[15,0,20,0],[21,0,26,0]]}
["Filière:Génie civil",null,null,null,null,null,null,null,null,null,null,null,null,{"$f":"TODAY()","v":"2017-10-05"}]
["Section:",null,null,null,null,"Licence 2ème année"]
["Jour","SEANCES","LGC-16/A","Enseignant","Salle","LGC-16/A","LGC-16/B","Enseignant","Salle","LGC-16/B","LGC-16/C","Enseignant","Salle","LGC-16/C","LGC-16/D","Enseignant","Salle","LGC-16/D"]
["Dimanche","8h 00                     9h 30","MEC DES FLUIDES©","GHERNAOUAT","AP5","MEC DES FLUIDES© GHERNAOUAT AP5","MEC DES FLUIDES©","GHERNAOUAT","AP5","MEC DES FLUIDES© GHERNAOUAT AP5","MEC DES FLUIDES©","GHERNAOUAT","AP5","MEC DES FLUIDES© GHERNAOUAT AP5","MEC DES FLUIDES©","GHERNAOUAT","AP5","MEC DES FLUIDES© GHERNAOUAT AP5"]
[null,"9h 40                 11h 10","M-D-F(TD)","GHERNAOUAT","C43","M-D-F(TD) GHERNAOUAT C43","PROBAT STAT(TD)","KABRI","B415","PROBAT STAT(TD) KABRI B415"]
[null,"11h20                 12h 50","PROBAT STAT©","KABRI","AP5","PROBAT STAT© KABRI AP5","PROBAT STAT©","KABRI","AP5","PROBAT STAT© KABRI AP5","PROBAT STAT©","KABRI","AP5","PROBAT STAT© KABRI AP5","PROBAT STAT©","KABRI","AP5","PROBAT STAT© KABRI AP5"]
[null,"13h 00              14h 30",null,null,null,null,null,null,null,null,null,null,null,null,"M-D-F(TD)","GHERNAOUAT","C45","M-D-F(TD) GHERNAOUAT C45"]
[null,"14h 40              16h 10","METROLOGIE©","TOURAB","AP5","METROLOGIE© TOURAB AP5","METROLOGIE©","TOURAB","AP5","METROLOGIE© TOURAB AP5","METROLOGIE©","TOURAB","AP5","METROLOGIE© TOURAB AP5","METROLOGIE©","TOURAB","AP5","METROLOGIE© TOURAB AP5"]
[null,"16h 20              17h 50"]
["Lundi","8h 00                    9h 30","DESSIN(TP)","DERBAH","AT23","DESSIN(TP) DERBAH AT23","M-D-F(TD)","GHERNAOUAT","B414","M-D-F(TD) GHERNAOUAT B414","INFORMATIQUE(TP)","CHELAOUAOU","RC9/A","INFORMATIQUE(TP) CHELAOUAOU RC9/A"]
[null,"9h 40                  11h 10","DESSIN(TP)","DERBAH","AT23","DESSIN(TP) DERBAH AT23","INFORMATIQUE(TP)","CHELAOUAOU","RC9/A","INFORMATIQUE(TP) CHELAOUAOU RC9/A","M-D-F(TD)","GHERNAOUAT","B419","M-D-F(TD) GHERNAOUAT B419"]
[null,"11h20                12h 50","INFORMATIQUE(TP)","CHELAOUAOU","RC9/A","INFORMATIQUE(TP) CHELAOUAOU RC9/A"]
[null,"13h 00              14h 30",null,null,null,null,"DESSIN(TP)","DERBAH","AT23","DESSIN(TP) DERBAH AT23","ANGLAIS©","X","B310","ANGLAIS© X B310"]
[null,"14h 40              16h 10","ANGLAIS©","X","A14","ANGLAIS© X A14","DESSIN(TP)","DERBAH","AT23","DESSIN(TP) DERBAH AT23"]
[null,"16h 20              17h 50"]
["Mardi","8h 00                    9h 30","TECH DE BASE©","DILMI","AP2","TECH DE BASE© DILMI AP2","TECH DE BASE©","DILMI","AP2","TECH DE BASE© DILMI AP2","TECH DE BASE©","DILMI","AP2","TECH DE BASE© DILMI AP2","TECH DE BASE©","DILMI","AP2","TECH DE BASE© DILMI AP2"]
[null,"9h 40                 11h 10",null,null,null,null,null,null,null,null,"MATHEMATIQUE(TD)","MESSAOUDI","B415","MATHEMATIQUE(TD) MESSAOUDI B415","MEC RATIONNEL(TD)","X","X","MEC RATIONNEL(TD) X X"]
[null,"11h20                12h 50","MATHEMATIQUE(TD)","MESSAOUDI","B48","MATHEMATIQUE(TD) MESSAOUDI B48",null,null,null,null,"MEC RATIONNEL(TD)","X","B414","MEC RATIONNEL(TD) X B414","INFORMATIQUE(TP)","CHELAOUAOU","RC9/A","INFORMATIQUE(TP) CHELAOUAOU RC9/A"]
[null,"13h 00              14h 30","MEC RATIONNEL©","X","AP5","MEC RATIONNEL© X AP5","MEC RATIONNEL©","X","AP5","MEC RATIONNEL© X AP5","MEC RATIONNEL©","X","AP5","MEC RATIONNEL© X AP5","MEC RATIONNEL©","X","AP5","MEC RATIONNEL© X AP5"]
[null,"14h 40              16h 10",null,null,null,null,"ANGLAIS©","X","B39","ANGLAIS© X B39"]
[null,"16h 20              17h 50"]
["Mercredi","8h 00                    9h 30","MATHEMATIQUE©","MESSAOUDI","AP5","MATHEMATIQUE© MESSAOUDI AP5","MATHEMATIQUE©","MESSAOUDI","AP5","MATHEMATIQUE© MESSAOUDI AP5","MATHEMATIQUE©","MESSAOUDI","AP5","MATHEMATIQUE© MESSAOUDI AP5","MATHEMATIQUE©","MESSAOUDI","AP5","MATHEMATIQUE© MESSAOUDI AP5"]
[null,"9h 40                 11h 10",null,null,null,null,"MATHEMATIQUE(TD)","MESSAOUDI","B414","MATHEMATIQUE(TD) MESSAOUDI B414","DESSIN(TP)","DERBAH","AT24","DESSIN(TP) DERBAH AT24","ONDES ET VIBR(TD)","X","C32","ONDES ET VIBR(TD) X C32"]
[null,"11h20                12h 50","ONDES ET VIBR(TD)","X","B414","ONDES ET VIBR(TD) X B414",null,null,null,null,"DESSIN(TP)","DERBAH","AT24","DESSIN(TP) DERBAH AT24","ANGLAIS©","X","C32","ANGLAIS© X C32"]
[null,"13h 00              14h 30","VIB OND(TP)","X","B414","VIB OND(TP) X B414",null,null,null,null,null,null,null,null,"ONDES ET VIBR(TP)","X","B37","ONDES ET VIBR(TP) X B37"]
[null,"14h 40              16h 10"]
[null,"16h 20              17h 50"]
["Jeudi","8h 00                     9h 30","ONDES ET VIBR©","X","AP5","ONDES ET VIBR© X AP5","ONDES ET VIBR©","X","AP5","ONDES ET VIBR© X AP5","ONDES ET VIBR©","X","AP5","ONDES ET VIBR© X AP5","ONDES ET VIBR©","X","AP5","ONDES ET VIBR© X AP5"]
[null,"9h 40                  11h 10","PROBAT STAT(TD)","KABRI","B414","PROBAT STAT(TD) KABRI B414","MEC RATIONNEL(TD)","X","C49","MEC RATIONNEL(TD) X C49","ONDES ET VIBR(TD)","X","B41","ONDES ET VIBR(TD) X B41","DESSIN(TP)","DERBAH","AT23","DESSIN(TP) DERBAH AT23"]
[null,"11h20                 12h 50","MEC RATIONNEL(TD)","X","B414","MEC RATIONNEL(TD) X B414","ONDES ET VIBR(TD)","X","C49","ONDES ET VIBR(TD) X C49","PROBAT STAT(TD)","KABRI","B41","PROBAT STAT(TD) KABRI B41","DESSIN(TP)","DERBAH","AT23","DESSIN(TP) DERBAH AT23"]
[null,"13h 00              14h 30",null,null,null,null,"VIB OND(TP)","X","C43","VIB OND(TP) X C43",null,null,null,null,"PROBAT STAT(TD)","X","A11","PROBAT STAT(TD) X A11"]
[null,"14h 40              16h 10",null,null,null,null,null,null,null,null,"VIB OND(TP)","X","C43","VIB OND(TP) X C43"]
[null,"16h 20              17h 50"]
["Samedi","8h 00                     9h 30",null,null,null,null,null,null,null,null,null,null,null,null,"MATHEMATIQUE(TD)","MESSAOUDI","B39","MATHEMATIQUE(TD) MESSAOUDI B39"]
[null,"9h 40                  11h 10","MATHEMATIQUE©","MESSAOUDI","AP4","MATHEMATIQUE© MESSAOUDI AP4","MATHEMATIQUE©","MESSAOUDI","AP4","MATHEMATIQUE© MESSAOUDI AP4","MATHEMATIQUE©","MESSAOUDI","AP4","MATHEMATIQUE© MESSAOUDI AP4","MATHEMATIQUE©","MESSAOUDI","AP4","MATHEMATIQUE© MESSAOUDI AP4"]
[null,"11h20                 12h 50"]

{"sheet":"TC S34","index":26,"n_rows":36,"n_cols":18,"rows_kept":36,"cut":false,"hidden":false,"merged":[[27,0,32,0],[33,0,35,0],[0,0,0,1],[1,0,1,1],[3,0,8,0],[9,0,14,0],[15,0,20,0],[21,0,26,0]]}
["Filière:",null,null,null,null,"G DES PROCEDES-HSI",null,null,null,null,null,null,null,{"$f":"TODAY()","v":"2017-10-05"}]
["Section:",null,null,null,null,"Licence 2ème année"]
["Jour","SEANCES","LGP-16/A","Enseignant","Salle","LGP-16/A","LGP-16/B","Enseignant","Salle","LGP-16/B","LGP-16/C","Enseignant","Salle","LGP-16/C","LHSI-16","Enseignant","Salle","LHSI-16"]
["Dimanche","8h 00                     9h 30","MEC DES FLUIDES©","SAHMOUNE","AP6","MEC DES FLUIDES© SAHMOUNE AP6","MEC DES FLUIDES©","SAHMOUNE","AP6","MEC DES FLUIDES© SAHMOUNE AP6","MEC DES FLUIDES©","SAHMOUNE","AP6","MEC DES FLUIDES© SAHMOUNE AP6","MEC DES FLUIDES©","SAHMOUNE","AP6","MEC DES FLUIDES© SAHMOUNE AP6"]
[null,"9h 40                 11h 10","CHIMIE MINERALE©","BENBOUABDALLAH","AP6","CHIMIE MINERALE© BENBOUABDALLAH AP6","CHIMIE MINERALE©","BENBOUABDALLAH","AP6","CHIMIE MINERALE© BENBOUABDALLAH AP6","CHIMIE MINERALE©","BENBOUABDALLAH","AP6","CHIMIE MINERALE© BENBOUABDALLAH AP6","CHIMIE MINERALE©","BENBOUABDALLAH","AP6","CHIMIE MINERALE© BENBOUABDALLAH AP6"]
[null,"11h20                 12h 50",null,null,null,null,"CHIMIE MINERALE(TD)","BENBOUABDALLAH","C45","CHIMIE MINERALE(TD) BENBOUABDALLAH C45"]
[null,"13h 00              14h 30"]
[null,"14h 40              16h 10"]
[null,"16h 20              17h 50"]
["Lundi","8h 00                    9h 30","ONDES ET VIBR©","RAHMOUNE","AP6","ONDES ET VIBR© RAHMOUNE AP6","ONDES ET VIBR©","RAHMOUNE","AP6","ONDES ET VIBR© RAHMOUNE AP6","ONDES ET VIBR©","RAHMOUNE","AP6","ONDES ET VIBR© RAHMOUNE AP6","ONDES ET VIBR©","RAHMOUNE","AP6","ONDES ET VIBR© RAHMOUNE AP6"]
[null,"9h 40                  11h 10","CHIMIE MINERALE(TD)","BENBOUABDALLAH","C32","CHIMIE MINERALE(TD) BENBOUABDALLAH C32","DESSIN(TP)","HALFAOUI","AT22","DESSIN(TP) HALFAOUI AT22","ONDES ET VIBR(TD)","BERAZOUANE","C49","ONDES ET VIBR(TD) BERAZOUANE C49","M-D-F(TD)","AMITOUCHE","C45","M-D-F(TD) AMITOUCHE C45"]
[null,"11h20                12h 50",null,null,null,null,"DESSIN(TP)","HALFAOUI","AT22","DESSIN(TP) HALFAOUI AT22","CHIMIE MINERALE(TD)","BENBOUABDALLAH","C49","CHIMIE MINERALE(TD) BENBOUABDALLAH C49","INFORMATIQUE(TP)","HARFOUCHE","A26","INFORMATIQUE(TP) HARFOUCHE A26"]
[null,"13h 00              14h 30","VIB OND(TP)","BERAZOUANE","B47","VIB OND(TP) BERAZOUANE B47"]
[null,"14h 40              16h 10","ONDES ET VIBR(TD)","BERAZOUANE","B47","ONDES ET VIBR(TD) BERAZOUANE B47","M-D-F(TD)","AMITOUCHE","C49","M-D-F(TD) AMITOUCHE C49",null,null,null,null,"CHIMIE MINERALE(TD)","BENBOUABDALLAH","B49","CHIMIE MINERALE(TD) BENBOUABDALLAH B49"]
[null,"16h 20              17h 50"]
["Mardi","8h 00                    9h 30","HSI-INSTAL-INDUST©","KORSO","AP4","HSI-INSTAL-INDUST© KORSO AP4","HSI-INSTAL-INDUST©","KORSO","AP4","HSI-INSTAL-INDUST© KORSO AP4","HSI-INSTAL-INDUST©","KORSO","AP4","HSI-INSTAL-INDUST© KORSO AP4","HSI-INSTAL-INDUST©","KORSO","AP4","HSI-INSTAL-INDUST© KORSO AP4"]
[null,"9h 40                 11h 10","DESSIN(TP)","HALFAOUI","AT23","DESSIN(TP) HALFAOUI AT23","INFORMATIQUE(TP)","HARFOUCHE","AB12","INFORMATIQUE(TP) HARFOUCHE AB12","ANGLAIS©","REZAL","C412","ANGLAIS© REZAL C412","MATHEMATIQUE(TD)","X","A14","MATHEMATIQUE(TD) X A14"]
[null,"11h20                12h 50","DESSIN(TP)","HALFAOUI","AT23","DESSIN(TP) HALFAOUI AT23",null,null,null,null,"INFORMATIQUE(TP)","HARFOUCHE","RC9/B","INFORMATIQUE(TP) HARFOUCHE RC9/B"]
[null,"13h 00              14h 30",null,null,null,null,"ONDES ET VIBR(TD)","BERAZOUANE","B48","ONDES ET VIBR(TD) BERAZOUANE B48",null,null,null,null,"DESSIN(TP)","YAMANI","AT23","DESSIN(TP) YAMANI AT23"]
[null,"14h 40              16h 10","ANGLAIS©","REZAL","B41","ANGLAIS© REZAL B41","ONDES ET VIBR(TP)","BERAZOUANE","B48","ONDES ET VIBR(TP) BERAZOUANE B48",null,null,null,null,"DESSIN(TP)","YAMANI","AT23","DESSIN(TP) YAMANI AT23"]
[null,"16h 20              17h 50"]
["Mercredi","8h 00                    9h 30",null,null,null,null,null,null,null,null,"PROBAT ET STAT(TD)","ZITOUNI","B31","PROBAT ET STAT(TD) ZITOUNI B31"]
[null,"9h 40                 11h 10","PROBAT ET STAT©","ZITOUNI","AP6","PROBAT ET STAT© ZITOUNI AP6","PROBAT ET STAT©","ZITOUNI","AP6","PROBAT ET STAT© ZITOUNI AP6","PROBAT ET STAT©","ZITOUNI","AP6","PROBAT ET STAT© ZITOUNI AP6","PROBAT ET STAT©","ZITOUNI","AP6","PROBAT ET STAT© ZITOUNI AP6"]
[null,"11h20                12h 50"]
[null,"13h 00              14h 30",null,null,null,null,null,null,null,null,"DESSIN(TP)","HALFAOUI","AT24","DESSIN(TP) HALFAOUI AT24"]
[null,"14h 40              16h 10","INFORMATIQUE(TP)","HARFOUCHE","RC9/B","INFORMATIQUE(TP) HARFOUCHE RC9/B","PROBAT ET STAT(TD)","ZITOUNI","B313","PROBAT ET STAT(TD) ZITOUNI B313","DESSIN(TP)","HALFAOUI","AT24","DESSIN(TP) HALFAOUI AT24"]
[null,"16h 20              17h 50"]
["Jeudi","8h 00                     9h 30","REGLEMENT ET NORMES©","MEGDOUD","AP2","REGLEMENT ET NORMES© MEGDOUD AP2","REGLEMENT ET NORMES©","MEGDOUD","AP2","REGLEMENT ET NORMES© MEGDOUD AP2","REGLEMENT ET NORMES©","MEGDOUD","AP2","REGLEMENT ET NORMES© MEGDOUD AP2","REGLEMENT ET NORMES©","MEGDOUD","AP2","REGLEMENT ET NORMES© MEGDOUD AP2"]
[null,"9h 40                  11h 10","MATHEMATIQUE©","AZZOUNI","AP5","MATHEMATIQUE© AZZOUNI AP5","MATHEMATIQUE©","AZZOUNI","AP5","MATHEMATIQUE© AZZOUNI AP5","MATHEMATIQUE©","AZZOUNI","AP5","MATHEMATIQUE© AZZOUNI AP5","MATHEMATIQUE©","AZZOUNI","AP5","MATHEMATIQUE© AZZOUNI AP5"]
[null,"11h20                 12h 50",null,null,null,null,"MATHEMATIQUE(TD)","AZZOUNI","C32","MATHEMATIQUE(TD) AZZOUNI C32","ONDES ET VIBR(TP)","BERAZOUANE","B313","ONDES ET VIBR(TP) BERAZOUANE B313"]
[null,"13h 00              14h 30","MATHEMATIQUE(TD)","AZZOUNI","B312","MATHEMATIQUE(TD) AZZOUNI B312",null,null,null,null,null,null,null,null,"ONDES ET VIBR(TD)","BERAZOUANE","B313","ONDES ET VIBR(TD) BERAZOUANE B313"]
[null,"14h 40              16h 10",null,null,null,null,null,null,null,null,null,null,null,null,"VIB OND(TP)","BERAZOUANE","B313","VIB OND(TP) BERAZOUANE B313"]
[null,"16h 20              17h 50"]
["Samedi","8h 00                     9h 30","PROBAT ET STAT(TD)","ZITOUNI","B311","PROBAT ET STAT(TD) ZITOUNI B311",null,null,null,null,"M-D-F(TD)","AMITOUCHE","B35","M-D-F(TD) AMITOUCHE B35","ANGLAIS©","REZAL","C32","ANGLAIS© REZAL C32"]
[null,"9h 40                  11h 10","M-D-F(TD)","AMITOUCHE","B311","M-D-F(TD) AMITOUCHE B311","ANGLAIS©","REZAL","B32","ANGLAIS© REZAL B32","MATHEMATIQUE(TD)","AZZOUNI","B35","MATHEMATIQUE(TD) AZZOUNI B35","PROBAT ET STAT(TD)","ZITOUNI","C32","PROBAT ET STAT(TD) ZITOUNI C32"]
[null,"11h20                 12h 50","MATHEMATIQUE©","AZZOUNI","AP5","MATHEMATIQUE© AZZOUNI AP5","MATHEMATIQUE©","AZZOUNI","AP5","MATHEMATIQUE© AZZOUNI AP5","MATHEMATIQUE©","AZZOUNI","AP5","MATHEMATIQUE© AZZOUNI AP5","MATHEMATIQUE©","AZZOUNI","AP5","MATHEMATIQUE© AZZOUNI AP5"]

{"sheet":"TC S36","index":27,"n_rows":36,"n_cols":22,"rows_kept":36,"cut":false,"hidden":false,"merged":[[27,0,32,0],[33,0,35,0],[0,0,0,1],[1,0,1,1],[3,0,8,0],[9,0,14,0],[15,0,20,0],[21,0,26,0]]}
["Filière:",null,null,null,null,"ELECTROMECANIQUE",null,null,null,"G INDUSTRIELLE",null,null,null,{"$f":"TODAY()","v":"2017-10-05"}]
["Section:",null,null,null,null,"Licence 2ème année"]
["Jour","SEANCES","LEMEC-16/A","Enseignant","Salle","LEMEC-16/A","LEMEC-16/B","Enseignant","Salle","LEMEC-16/B","LEMEC-16/C","Enseignant","Salle","LEMEC-16/C","LGI-16","Enseignant","Salle","LGI-16","X","Enseignant","Salle","X"]
["Dimanche","8h 00                     9h 30","ELECTRONIQUE-FOND(TD)","X","A15","ELECTRONIQUE-FOND(TD) X A15"]
[null,"9h 40                 11h 10",null,null,null,null,"PROBAT-STAT(TD)","ADICHE","B38","PROBAT-STAT(TD) ADICHE B38","ELECTRONIQUEI FOND(TD)","DOUDAH","A15","ELECTRONIQUEI FOND(TD) DOUDAH A15"]
[null,"11h20                 12h 50",null,null,null,null,null,null,null,null,null,null,null,null,"PROBAT-STAT(TD)","ADICHE","B38","PROBAT-STAT(TD) ADICHE B38"]
[null,"13h 00              14h 30","MATHEMATIQUE©","KHALFAOUI","AP4","MATHEMATIQUE© KHALFAOUI AP4","MATHEMATIQUE©","KHALFAOUI","AP4","MATHEMATIQUE© KHALFAOUI AP4","MATHEMATIQUE©","KHALFAOUI","AP4","MATHEMATIQUE© KHALFAOUI AP4","MATHEMATIQUE©","KHALFAOUI","AP4","MATHEMATIQUE© KHALFAOUI AP4"]
[null,"14h 40              16h 10","ELEC-TECH-FOND©","RAHMOUNE","AP4","ELEC-TECH-FOND© RAHMOUNE AP4","ELEC-TECH-FOND©","RAHMOUNE","AP4","ELEC-TECH-FOND© RAHMOUNE AP4","ELEC-TECH-FOND©","RAHMOUNE","AP4","ELEC-TECH-FOND© RAHMOUNE AP4","ELEC-TECH-FOND©","RAHMOUNE","AP4","ELEC-TECH-FOND© RAHMOUNE AP4"]
[null,"16h 20              17h 50"]
["Lundi","8h 00                    9h 30","ONDES ET VIBR(TD)","MELLOUSSI","C32","ONDES ET VIBR(TD) MELLOUSSI C32",null,null,null,null,"ANGLAIS©","DAOUALI","C45","ANGLAIS© DAOUALI C45","ONDES ET VIBR(TD)","X","B35","ONDES ET VIBR(TD) X B35"]
[null,"9h 40                  11h 10","ONDES ET VIBR©","RAHMOUNE","AP6","ONDES ET VIBR© RAHMOUNE AP6","ONDES ET VIBR©","RAHMOUNE","AP6","ONDES ET VIBR© RAHMOUNE AP6","ONDES ET VIBR©","RAHMOUNE","AP6","ONDES ET VIBR© RAHMOUNE AP6","ONDES ET VIBR©","RAHMOUNE","AP6","ONDES ET VIBR© RAHMOUNE AP6"]
[null,"11h20                12h 50",null,null,null,null,"ONDES ET VIBR(TD)","MELLOUSSI","A12","ONDES ET VIBR(TD) MELLOUSSI A12",null,null,null,null,"ANGLAIS©","DAOUALI","B310","ANGLAIS© DAOUALI B310"]
[null,"13h 00              14h 30",null,null,null,null,null,null,null,null,"ONDES ET VIBR(TD)","MELLOUSSI","A13","ONDES ET VIBR(TD) MELLOUSSI A13"]
[null,"14h 40              16h 10",null,null,null,null,null,null,null,null,null,null,null,null,"ONDES ET VIBR(TD)","MELLOUSSI","A13","ONDES ET VIBR(TD) MELLOUSSI A13"]
[null,"16h 20              17h 50"]
["Mardi","8h 00                    9h 30","ELECTRONIQUE-FOND©","MELLAL","AP5","ELECTRONIQUE-FOND© MELLAL AP5","ELECTRONIQUE-FOND©","MELLAL","AP5","ELECTRONIQUE-FOND© MELLAL AP5","ELECTRONIQUE-FOND©","MELLAL","AP5","ELECTRONIQUE-FOND© MELLAL AP5","ELECTRONIQUE-FOND©","MELLAL","AP5","ELECTRONIQUE-FOND© MELLAL AP5"]
[null,"9h 40                 11h 10","PROBAT ET STAT©","ADICHE","AP5","PROBAT ET STAT© ADICHE AP5","PROBAT ET STAT©","ADICHE","AP5","PROBAT ET STAT© ADICHE AP5","PROBAT ET STAT©","ADICHE","AP5","PROBAT ET STAT© ADICHE AP5","PROBAT ET STAT©","ADICHE","AP5","PROBAT ET STAT© ADICHE AP5"]
[null,"11h20                12h 50","MATHEMATIQUE(TD)","AZZAL","B31","MATHEMATIQUE(TD) AZZAL B31","INFORMATIQUE(TP)","CHERABI","B210","INFORMATIQUE(TP) CHERABI B210"]
[null,"13h 00              14h 30",null,null,null,null,null,null,null,null,"ELECTRONIQUE(TP);ELECTROTECH(TP)","KANTAS;AGGAD","AT11;EEA","ELECTRONIQUE(TP) KANTAS AT11\nELECTROTECH(TP) AGGAD EEA","INFORMATIQUE(TP)","CHERABI","RC9/A","INFORMATIQUE(TP) CHERABI RC9/A"]
[null,"14h 40              16h 10",null,null,null,null,"ELECTRONIQUE(TP);ELECTROTECH(TP)","KANTAS;AGGAD","AT11;EEA","ELECTRONIQUE(TP) KANTAS AT11\nELECTROTECH(TP) AGGAD EEA",null,null,null,null,"MATHEMATIQUE(TD)","AZZAL","A16","MATHEMATIQUE(TD) AZZAL A16"]
[null,"16h 20              17h 50"]
["Mercredi","8h 00                    9h 30",null,null,null,null,null,null,null,null,null,null,null,null,"ELECTRONIQUE(TP);ELECTROTECH(TP)","KANTAS;AGGAD","AT11;EEA","ELECTRONIQUE(TP) KANTAS AT11\nELECTROTECH(TP) AGGAD EEA"]
[null,"9h 40                 11h 10","ELECTRONIQUE(TP);ELECTROTECH(TP)","KANTAS;AGGAD","AT11;EEA","ELECTRONIQUE(TP) KANTAS AT11\nELECTROTECH(TP) AGGAD EEA"]
[null,"11h20                12h 50"]
[null,"13h 00              14h 30","ETAT DE  L'ART  DE G-ELECT©","ALEM","AP5","ETAT DE  L'ART  DE G-ELECT© ALEM AP5","ETAT DE  L'ART  DE G-ELECT©","ALEM","AP5","ETAT DE  L'ART  DE G-ELECT© ALEM AP5","ETAT DE  L'ART  DE G-ELECT©","ALEM","AP5","ETAT DE  L'ART  DE G-ELECT© ALEM AP5","ETAT DE  L'ART  DE G-ELECT©","ALEM","AP5","ETAT DE  L'ART  DE G-ELECT© ALEM AP5"]
[null,"14h 40              16h 10","ENNERGIES ET ENVIRONNEMENT©","BAHLOUL","AP5","ENNERGIES ET ENVIRONNEMENT© BAHLOUL AP5","ENNERGIES ET ENVIRONNEMENT©","BAHLOUL","AP5","ENNERGIES ET ENVIRONNEMENT© BAHLOUL AP5","ENNERGIES ET ENVIRONNEMENT©","BHLOUL","AP5","ENNERGIES ET ENVIRONNEMENT© BHLOUL AP5","ENNERGIES ET ENVIRONNEMENT©","BHLOUL","AP5","ENNERGIES ET ENVIRONNEMENT© BHLOUL AP5"]
[null,"16h 20              17h 50"]
["Jeudi","8h 00                     9h 30",null,null,null,null,"ELECTRONIQUE-FOND(TD)","MELLAL","B32","ELECTRONIQUE-FOND(TD) MELLAL B32","INFORMATIQUE(TP)","AGGAD","RC9/A","INFORMATIQUE(TP) AGGAD RC9/A"]
[null,"9h 40                  11h 10","INFORMATIQUE(TP)","AGGAD","RC9/A","INFORMATIQUE(TP) AGGAD RC9/A","MATHEMATIQUE(TD)","AZZAL","B32","MATHEMATIQUE(TD) AZZAL B32","PROBAT-STAT(TD)","ADICHE","B35","PROBAT-STAT(TD) ADICHE B35","ELECTECHNIQUE FOND(TD)","HIRECHE","B39","ELECTECHNIQUE FOND(TD) HIRECHE B39"]
[null,"11h20                 12h 50","PROBAT-STAT(TD)","ADICHE","B32","PROBAT-STAT(TD) ADICHE B32",null,null,null,null,null,null,null,null,"ELECTRONIQUE-FOND(TD)","MELLAL","B39","ELECTRONIQUE-FOND(TD) MELLAL B39"]
[null,"13h 00              14h 30","OND ET VIB(TP)","CHELLIL-S","AT13","OND ET VIB(TP) CHELLIL-S AT13","ELECTECHNIQUE-FOND(TD)","HIRECHE","C32","ELECTECHNIQUE-FOND(TD) HIRECHE C32","MATHEMATIQUE(TD)","AZZAL","B31","MATHEMATIQUE(TD) AZZAL B31"]
[null,"14h 40              16h 10",null,null,null,null,null,null,null,null,null,null,null,null,"OND ET VIB(TP)","CHELLIL-S","B39","OND ET VIB(TP) CHELLIL-S B39"]
[null,"16h 20              17h 50"]
["Samedi","8h 00                     9h 30","MATHEMATIQUE©","KHALFAOUI","AP3","MATHEMATIQUE© KHALFAOUI AP3","MATHEMATIQUE©","KHALFAOUI","AP3","MATHEMATIQUE© KHALFAOUI AP3","MATHEMATIQUE©","KHALFAOUI","AP3","MATHEMATIQUE© KHALFAOUI AP3","MATHEMATIQUE©","KHALFAOUI","AP3","MATHEMATIQUE© KHALFAOUI AP3"]
[null,"9h 40                  11h 10","ANGLAIS©","DAOUALI","B39","ANGLAIS© DAOUALI B39","OND ET VIB(TP)","CHELLIL-S","AT13","OND ET VIB(TP) CHELLIL-S AT13","ELECTECHNIQUE-FOND(TD)","HIRECHE","C48","ELECTECHNIQUE-FOND(TD) HIRECHE C48"]
[null,"11h20                 12h 50","ELECTECHNIQUE-FOND(TD)","HIRECHE","B39","ELECTECHNIQUE-FOND(TD) HIRECHE B39","ANGLAIS©","DAOUALI","B311","ANGLAIS© DAOUALI B311","OND ET VIB(TP)","CHELLIL-S","AT13","OND ET VIB(TP) CHELLIL-S AT13"]

{"sheet":"TC S38","index":28,"n_rows":36,"n_cols":18,"rows_kept":36,"cut":false,"hidden":false,"merged":[[27,0,32,0],[33,0,35,0],[0,0,0,1],[1,0,1,1],[3,0,8,0],[9,0,14,0],[15,0,20,0],[21,0,26,0]]}
["Filière:",null,null,null,null,"G.Mécanique",null,null,null,null,null,null,null,{"$f":"TODAY()","v":"2017-10-05"}]
["Section:",null,null,null,null,"Licence 2ème année"]
["Jour","SEANCES","LGM-16/A","Enseignant","Salle","LGM-16/A","LGM-16/B","Enseignant","Salle","LGM-16/B","LGM-16/C","Enseignant","Salle","LGM-16/C","LGM-16/D","Enseignant","Salle","LGM-16/D"]
["Dimanche","8h 00                     9h 30","MATHEMATIQUE©","KHALFAOUI","AP4","MATHEMATIQUE© KHALFAOUI AP4","MATHEMATIQUE©","KHALFAOUI","AP4","MATHEMATIQUE© KHALFAOUI AP4","MATHEMATIQUE©","KHALFAOUI","AP4","MATHEMATIQUE© KHALFAOUI AP4","MATHEMATIQUE©","KHALFAOUI","AP4","MATHEMATIQUE© KHALFAOUI AP4"]
[null,"9h 40                 11h 10","PROBAT-STAT(TD)","X","X","PROBAT-STAT(TD) X X",null,null,null,null,"INFORMATIQUE(TP)","BENZAID","RC9/B","INFORMATIQUE(TP) BENZAID RC9/B","MATHEMATIQUE(TD)","MESSAOUDI-H","C45","MATHEMATIQUE(TD) MESSAOUDI-H C45"]
[null,"11h20                 12h 50","MEC DES FLUIDES(TD)","MERAH","C42","MEC DES FLUIDES(TD) MERAH C42",null,null,null,null,"PROBAT-STAT(TD)","BOUKABCHA","C412","PROBAT-STAT(TD) BOUKABCHA C412","PROBAT-STAT(TD)","X","B311","PROBAT-STAT(TD) X B311"]
[null,"13h 00              14h 30","OND ET VIB(TP)","X","C412","OND ET VIB(TP) X C412","DESSIN(TP)","SEMMOUD","AT22","DESSIN(TP) SEMMOUD AT22"]
[null,"14h 40              16h 10",null,null,null,null,"DESSIN(TP)","SEMMOUD","AT22","DESSIN(TP) SEMMOUD AT22",null,null,null,null,"OND ET VIB(TP)","X","B311","OND ET VIB(TP) X B311"]
[null,"16h 20              17h 50"]
["Lundi","8h 00                    9h 30",null,null,null,null,null,null,"AP6",null,"ONDES ET VIBR(TD)","REGUEB","B41","ONDES ET VIBR(TD) REGUEB B41"]
[null,"9h 40                  11h 10",null,null,null,null,"ONDES ET VIBR(TD)","REGUEB","B41","ONDES ET VIBR(TD) REGUEB B41","M-D-F(TD)","BOUARAB","B414","M-D-F(TD) BOUARAB B414"]
[null,"11h20                12h 50",null,null,null,null,"MEC DES FLUIDES(TD)","BOUARAB","B41","MEC DES FLUIDES(TD) BOUARAB B41"]
[null,"13h 00              14h 30","METROLOGIE©","TALHI","AP05","METROLOGIE© TALHI AP05","METROLOGIE©","TALHI","AP05","METROLOGIE© TALHI AP05","METROLOGIE©","TALHI","AP05","METROLOGIE© TALHI AP05","METROLOGIE©","TALHI","AP05","METROLOGIE© TALHI AP05"]
[null,"14h 40              16h 10","ANGLAIS©","X","B41","ANGLAIS© X B41",null,null,null,null,null,null,null,null,"ONDES ET VIBR(TD)","GUERRACHE","B311","ONDES ET VIBR(TD) GUERRACHE B311"]
[null,"16h 20              17h 50"]
["Mardi","8h 00                    9h 30","MEC DES FLUIDES©","MANSOURI-K","AP6","MEC DES FLUIDES© MANSOURI-K AP6","MEC DES FLUIDES©","MANSOURI-K","AP6","MEC DES FLUIDES© MANSOURI-K AP6","MEC DES FLUIDES©","MANSOURI-K","AP6","MEC DES FLUIDES© MANSOURI-K AP6","MEC DES FLUIDES©","MANSOURI-K","AP6","MEC DES FLUIDES© MANSOURI-K AP6"]
[null,"9h 40                 11h 10","ONDES ET VIBR©","MAAMIR","AP6","ONDES ET VIBR© MAAMIR AP6","ONDES ET VIBR©","MAAMIR","AP6","ONDES ET VIBR© MAAMIR AP6","ONDES ET VIBR©","MAAMIR","AP6","ONDES ET VIBR© MAAMIR AP6","ONDES ET VIBR©","MAAMIR","AP6","ONDES ET VIBR© MAAMIR AP6"]
[null,"11h20                12h 50",null,null,null,null,null,null,null,null,null,null,null,null,"ANGLAIS©","X","B38","ANGLAIS© X B38"]
[null,"13h 00              14h 30",null,null,null,null,"OND ET VIB(TP)","X","B312","OND ET VIB(TP) X B312"]
[null,"14h 40              16h 10","INFORMATIQUE(TP)","BENZAID","RC9/A","INFORMATIQUE(TP) BENZAID RC9/A","ANGLAIS©","X","B312","ANGLAIS© X B312"]
[null,"16h 20              17h 50"]
["Mercredi","8h 00                    9h 30",null,null,null,null,null,null,null,null,"DESSIN(TP)","TALHI","AT23","DESSIN(TP) TALHI AT23"]
[null,"9h 40                 11h 10",null,null,null,null,null,null,null,null,"DESSIN(TP)","TALHI","AT23","DESSIN(TP) TALHI AT23"]
[null,"11h20                12h 50","MECANIQUE RATIONNEL©","HACHEMANE","AP5","MECANIQUE RATIONNEL© HACHEMANE AP5","MECANIQUE RATIONNEL©","HACHEMANE","AP5","MECANIQUE RATIONNEL© HACHEMANE AP5","MECANIQUE RATIONNEL©","HACHEMANE","AP5","MECANIQUE RATIONNEL© HACHEMANE AP5","MECANIQUE RATIONNEL©","HACHEMANE","AP5","MECANIQUE RATIONNEL© HACHEMANE AP5"]
[null,"13h 00              14h 30","DESSIN(TP)","BENDERADJI","AT23","DESSIN(TP) BENDERADJI AT23","MECANIQUE RATIONNEL(TD)","BENDJEDDOU","B38","MECANIQUE RATIONNEL(TD) BENDJEDDOU B38"]
[null,"14h 40              16h 10","DESSIN(TP)","BENDERADJI","AT23","DESSIN(TP) BENDERADJI AT23",null,null,null,null,"ANGLAIS©","X","C49","ANGLAIS© X C49","INFORMATIQUE(TP)","RACHEDI","RC9/A","INFORMATIQUE(TP) RACHEDI RC9/A"]
[null,"16h 20              17h 50"]
["Jeudi","8h 00                     9h 30","ONDES ET VIBR(TD)","REGUEB","A14","ONDES ET VIBR(TD) REGUEB A14"]
[null,"9h 40                  11h 10","MATHEMATIQUE(TD)","MESSAOUDI-H","A24","MATHEMATIQUE(TD) MESSAOUDI-H A24","INFORMATIQUE(TP)","RACHEDI","A26","INFORMATIQUE(TP) RACHEDI A26",null,null,null,null,"MECANIQUE RATIONNEL(TD)","BENDJEDDOU","B37","MECANIQUE RATIONNEL(TD) BENDJEDDOU B37"]
[null,"11h20                 12h 50","MECANIQUE RATIONNEL(TD)","BENDJEDDOU","A24","MECANIQUE RATIONNEL(TD) BENDJEDDOU A24","PROBAT-STAT(TD)","X","C45","PROBAT-STAT(TD) X C45","MATHEMATIQUE(TD)","MESSAOUDI-H","B37","MATHEMATIQUE(TD) MESSAOUDI-H B37","MDF(TD) ","BOUARAB","B312","MDF(TD)  BOUARAB B312"]
[null,"13h 00              14h 30",null,null,null,null,"MATHEMATIQUE(TD)","MESSAOUDI-H","C45","MATHEMATIQUE(TD) MESSAOUDI-H C45","MECANIQUE RATIONNEL(TD)","BENDJEDDOU","B37","MECANIQUE RATIONNEL(TD) BENDJEDDOU B37","DESSIN(TP)","BELLAL","AT22","DESSIN(TP) BELLAL AT22"]
[null,"14h 40              16h 10",null,null,null,null,null,null,null,null,"OND ET VIB(TP)","X","B36","OND ET VIB(TP) X B36","DESSIN(TP)","BELLAL","AT22","DESSIN(TP) BELLAL AT22"]
[null,"16h 20              17h 50"]
["Samedi","8h 00                     9h 30","PROBAT ET STAT©","BOUKABCHA","AP6","PROBAT ET STAT© BOUKABCHA AP6","PROBAT ET STAT©","BOUKABCHA","AP6","PROBAT ET STAT© BOUKABCHA AP6","PROBAT ET STAT©","BOUKABCHA","AP6","PROBAT ET STAT© BOUKABCHA AP6","PROBAT ET STAT©","BOUKABCHA","AP6","PROBAT ET STAT© BOUKABCHA AP6"]
[null,"9h 40                  11h 10","TECHNOLOGIE DE BASE©","TOURAB","AP6","TECHNOLOGIE DE BASE© TOURAB AP6","TECHNOLOGIE DE BASE©","TOURAB","AP6","TECHNOLOGIE DE BASE© TOURAB AP6","TECHNOLOGIE DE BASE©","TOURAB","AP6","TECHNOLOGIE DE BASE© TOURAB AP6","TECHNOLOGIE DE BASE©","TOURAB","AP6","TECHNOLOGIE DE BASE© TOURAB AP6"]
[null,"11h20                 12h 50","MATHEMATIQUE©","KHALFAOUI","AP6","MATHEMATIQUE© KHALFAOUI AP6","MATHEMATIQUE©","KHALFAOUI","AP6","MATHEMATIQUE© KHALFAOUI AP6","MATHEMATIQUE©","KHALFAOUI","AP6","MATHEMATIQUE© KHALFAOUI AP6","MATHEMATIQUE©","KHALFAOUI","AP6","MATHEMATIQUE© KHALFAOUI AP6"]

{"sheet":"TC S39","index":29,"n_rows":36,"n_cols":18,"rows_kept":36,"cut":false,"hidden":false,"merged":[[27,0,32,0],[33,0,35,0],[1,0,1,1],[3,0,8,0],[9,0,14,0],[15,0,20,0],[21,0,26,0]]}
["Dep:G-Mécanique",null,null,null,null,"Filière:G.Mécanique",null,null,null,null,null,null,null,{"$f":"TODAY()","v":"2017-10-05"}]
["Section:",null,null,null,null,"Licence 2ème année"]
["Jour","SEANCES","LGM-16/E","Enseignant","Salle","LGM-16/E","LGM-16/F","Enseignant","Salle","LGM-16/F","LGM-16/G","Enseignant","Salle","LGM-16/G","LGM-16/H","Enseignant","Salle","LGM-16/H"]
["Dimanche","8h 00                     9h 30","DESSIN(TP)","SEMMOUD","AT22","DESSIN(TP) SEMMOUD AT22",null,null,null,null,"INFORMATIQUE(TP)","BENZAID","RC9/B","INFORMATIQUE(TP) BENZAID RC9/B","DESSIN(TP)","BELHADEF","AT24","DESSIN(TP) BELHADEF AT24"]
[null,"9h 40                 11h 10","DESSIN(TP)","SEMMOUD","AT22","DESSIN(TP) SEMMOUD AT22",null,null,null,null,null,null,null,null,"DESSIN(TP)","BELHADEF","AT24","DESSIN(TP) BELHADEF AT24"]
[null,"11h20                 12h 50",null,null,null,null,null,null,null,null,"MECANIQUE RATIONNEL(TD)","AGUIB","A21","MECANIQUE RATIONNEL(TD) AGUIB A21"]
[null,"13h 00              14h 30","PROBAT ET STAT©","BOUKABCHA","AP6","PROBAT ET STAT© BOUKABCHA AP6","PROBAT ET STAT©","BOUKABCHA","AP6","PROBAT ET STAT© BOUKABCHA AP6","PROBAT ET STAT©","BOUKABCHA","AP6","PROBAT ET STAT© BOUKABCHA AP6","PROBAT ET STAT©","BOUKABCHA","AP6","PROBAT ET STAT© BOUKABCHA AP6"]
[null,"14h 40              16h 10","MATHEMATIQUE©","KHALFAOUI","AP6","MATHEMATIQUE© KHALFAOUI AP6","MATHEMATIQUE©","KHALFAOUI","AP6","MATHEMATIQUE© KHALFAOUI AP6","MATHEMATIQUE©","KHALFAOUI","AP6","MATHEMATIQUE© KHALFAOUI AP6","MATHEMATIQUE©","KHALFAOUI","AP6","MATHEMATIQUE© KHALFAOUI AP6"]
[null,"16h 20              17h 50"]
["Lundi","8h 00                    9h 30","MATHEMATIQUE©","KHALFAOUI","AP5","MATHEMATIQUE© KHALFAOUI AP5","MATHEMATIQUE©","KHALFAOUI","AP5","MATHEMATIQUE© KHALFAOUI AP5","MATHEMATIQUE©","KHALFAOUI","AP5","MATHEMATIQUE© KHALFAOUI AP5","MATHEMATIQUE©","KHALFAOUI","AP5","MATHEMATIQUE© KHALFAOUI AP5"]
[null,"9h 40                  11h 10","ONDES ET VIBR©","MAAMIR","AP5","ONDES ET VIBR© MAAMIR AP5","ONDES ET VIBR©","MAAMIR","AP5","ONDES ET VIBR© MAAMIR AP5","ONDES ET VIBR©","MAAMIR","AP5","ONDES ET VIBR© MAAMIR AP5","ONDES ET VIBR©","MAAMIR","AP5","ONDES ET VIBR© MAAMIR AP5"]
[null,"11h20                12h 50",null,null,null,null,null,null,null,null,"MEC DES FLUIDES(TD)","DAIMALLAH","B37","MEC DES FLUIDES(TD) DAIMALLAH B37","MATHEMATIQUE(TD)","MESSAOUDI-H","C49","MATHEMATIQUE(TD) MESSAOUDI-H C49"]
[null,"13h 00              14h 30","MEC DES FLUIDES(TD)","BOUARAB","C32","MEC DES FLUIDES(TD) BOUARAB C32","MATHEMATIQUE(TD)","MESSAOUDI-H","C45","MATHEMATIQUE(TD) MESSAOUDI-H C45"]
[null,"14h 40              16h 10",null,null,null,null,null,null,null,null,"MATHEMATIQUE(TD)","MESSAOUDI-H","C48","MATHEMATIQUE(TD) MESSAOUDI-H C48"]
[null,"16h 20              17h 50"]
["Mardi","8h 00                    9h 30","ANGLAIS©","X","B413","ANGLAIS© X B413","DESSIN(TP)","BELHADEF","AT22","DESSIN(TP) BELHADEF AT22","ONDES ET VIBR(TP)","X","C45","ONDES ET VIBR(TP) X C45"]
[null,"9h 40                 11h 10","ONDES ET VIBR(TD)","X","A21","ONDES ET VIBR(TD) X A21","DESSIN(TP)","BELHADEF","AT22","DESSIN(TP) BELHADEF AT22","ANGLAIS©","X","X","ANGLAIS© X X","MECANIQUE RATIONNEL(TD)","AGUIB","C45","MECANIQUE RATIONNEL(TD) AGUIB C45"]
[null,"11h20                12h 50",null,null,null,null,null,null,null,null,null,null,null,null,"ONDES ET VIBR(TP)","X","C45","ONDES ET VIBR(TP) X C45"]
[null,"13h 00              14h 30","MECANIQUE RATIONNEL©","HACHEMANE","AP6","MECANIQUE RATIONNEL© HACHEMANE AP6","MECANIQUE RATIONNEL©","HACHEMANE","AP6","MECANIQUE RATIONNEL© HACHEMANE AP6","MECANIQUE RATIONNEL©","HACHEMANE","AP6","MECANIQUE RATIONNEL© HACHEMANE AP6","MECANIQUE RATIONNEL©","HACHEMANE","AP6","MECANIQUE RATIONNEL© HACHEMANE AP6"]
[null,"14h 40              16h 10",null,null,null,null,"ONDES ET VIBR(TP)","X","B311","ONDES ET VIBR(TP) X B311"]
[null,"16h 20              17h 50"]
["Mercredi","8h 00                    9h 30","MECANIQUE DES FLUIDES©","MANSOURI-K","AP6","MECANIQUE DES FLUIDES© MANSOURI-K AP6","MECANIQUE DES FLUIDES©","MANSOURI-K","AP6","MECANIQUE DES FLUIDES© MANSOURI-K AP6","MECANIQUE DES FLUIDES©","MANSOURI-K","AP6","MECANIQUE DES FLUIDES© MANSOURI-K AP6","MECANIQUE DES FLUIDES©","MANSOURI-K","AP6","MECANIQUE DES FLUIDES© MANSOURI-K AP6"]
[null,"9h 40                 11h 10",null,null,null,null,"MECANIQUE RATIONNEL(TD)","BENDJEDDOU","B35","MECANIQUE RATIONNEL(TD) BENDJEDDOU B35","DESSIN(TP)","BELLAL","AT22","DESSIN(TP) BELLAL AT22","INFORMATIQUE(TP)","RACHEDI","RC9/A","INFORMATIQUE(TP) RACHEDI RC9/A"]
[null,"11h20                12h 50","MECANIQUE RATIONNEL(TD)","BENDJEDDOU","C49","MECANIQUE RATIONNEL(TD) BENDJEDDOU C49",null,null,null,null,"DESSIN(TP)","BELLAL","AT22","DESSIN(TP) BELLAL AT22"]
[null,"13h 00              14h 30","METROLOGIE©","TALHI","AP6","METROLOGIE© TALHI AP6","METROLOGIE©","TALHI","AP6","METROLOGIE© TALHI AP6","METROLOGIE©","TALHI","AP6","METROLOGIE© TALHI AP6","METROLOGIE©","TALHI","AP6","METROLOGIE© TALHI AP6"]
[null,"14h 40              16h 10",null,null,null,null,"ANGLAIS©","X","C42","ANGLAIS© X C42"]
[null,"16h 20              17h 50"]
["Jeudi","8h 00                     9h 30","MATHEMATIQUE(TD)","MESSAOUDI-H","C32","MATHEMATIQUE(TD) MESSAOUDI-H C32","PROBAT-STAT(TD)","X","C45","PROBAT-STAT(TD) X C45","ONDES ET VIBR(TD)","X","B38","ONDES ET VIBR(TD) X B38"]
[null,"9h 40                  11h 10","PROBAT-STAT(TD)","X","C32","PROBAT-STAT(TD) X C32","MEC DES FLUIDES(TD)","BOUARAB","C45","MEC DES FLUIDES(TD) BOUARAB C45","PROBAT-STAT(TD)","X","X","PROBAT-STAT(TD) X X"]
[null,"11h20                 12h 50","INFORMATIQUE(TP)","RACHEDI","RC9/A","INFORMATIQUE(TP) RACHEDI RC9/A",null,null,null,null,null,null,null,null,"ONDES ET VIBR(TD)","GUERRACHE","A25","ONDES ET VIBR(TD) GUERRACHE A25"]
[null,"13h 00              14h 30",null,null,null,null,"INFORMATIQUE(TP)","RACHEDI","A27","INFORMATIQUE(TP) RACHEDI A27",null,null,null,null,"M-D-F(TD)","BOUARAB","A25","M-D-F(TD) BOUARAB A25"]
[null,"14h 40              16h 10"]
[null,"16h 20              17h 50"]
["Samedi","8h 00                     9h 30","TECHNOLOGIE DE BASE©","TOURAB","AP5","TECHNOLOGIE DE BASE© TOURAB AP5","TECHNOLOGIE DE BASE©","TOURAB","AP5","TECHNOLOGIE DE BASE© TOURAB AP5","TECHNOLOGIE DE BASE©","TOURAB","AP5","TECHNOLOGIE DE BASE© TOURAB AP5","TECHNOLOGIE DE BASE©","TOURAB","AP5","TECHNOLOGIE DE BASE© TOURAB AP5"]
[null,"9h 40                  11h 10","ONDES ET VIBR(TP)","X","B414","ONDES ET VIBR(TP) X B414",null,null,null,null,null,null,null,null,"PROBAT ET STAT(TD)","BOUKABCHA","B41","PROBAT ET STAT(TD) BOUKABCHA B41"]
[null,"11h20                 12h 50",null,null,null,null,"ONDES ET VIBR(TD)","X","B414","ONDES ET VIBR(TD) X B414",null,null,null,null,"ANGLAIS©","X","B32","ANGLAIS© X B32"]

{"sheet":"TC S310","index":30,"n_rows":36,"n_cols":17,"rows_kept":36,"cut":false,"hidden":false,"merged":[[27,0,32,0],[33,0,35,0],[0,0,0,1],[1,0,1,1],[3,0,8,0],[9,0,14,0],[15,0,20,0],[21,0,26,0]]}
["Filière:",null,null,null,null,"G.Mécanique",null,null,null,null,null,null,null,{"$f":"TODAY()","v":"2017-10-05"}]
["Section:",null,null,null,null,"Licence 2ème année"]
["Jour","SEANCES","LGM-16/I","Enseignant","Salle","LGM-16/I","LGM-16/J","Enseignant","Salle","LGM-16/J","LGM-15/","Enseignant","Salle","LGM-15/","ST32","Enseignant","Salle"]
["Dimanche","8h 00                     9h 30","MATHEMATIQUE©","KHALFAOUI","AP4","MATHEMATIQUE© KHALFAOUI AP4"]
[null,"9h 40                 11h 10"]
[null,"11h20                 12h 50","INFORMATIQUE(TP)","BENZAID","RC9/B","INFORMATIQUE(TP) BENZAID RC9/B","MATHEMATIQUE(TD)","MESSAOUDI-H","B32","MATHEMATIQUE(TD) MESSAOUDI-H B32"]
[null,"13h 00              14h 30","MATHEMATIQUE(TD)","MESSAOUDI-H","C49","MATHEMATIQUE(TD) MESSAOUDI-H C49","PROBAT ET STAT©","BOUKABCHA","AP6","PROBAT ET STAT© BOUKABCHA AP6"]
[null,"14h 40              16h 10","PROBAT-STAT(TD)","BOUKABCHA","C49","PROBAT-STAT(TD) BOUKABCHA C49","MATHEMATIQUE©","KHALFAOUI","AP6","MATHEMATIQUE© KHALFAOUI AP6"]
[null,"16h 20              17h 50"]
["Lundi","8h 00                    9h 30",null,null,null,null,"MATHEMATIQUE©","KHALFAOUI","AP5","MATHEMATIQUE© KHALFAOUI AP5"]
[null,"9h 40                  11h 10","ONDES ET VIBR(TD)","X","B46","ONDES ET VIBR(TD) X B46","ONDES ET VIBR©","MAAMIR","AP5","ONDES ET VIBR© MAAMIR AP5"]
[null,"11h20                12h 50"]
[null,"13h 00              14h 30","METROLOGIE©","TALHI","AP05","METROLOGIE© TALHI AP05","MDF(TD) ","DAIMALLAH","B311","MDF(TD)  DAIMALLAH B311"]
[null,"14h 40              16h 10","ANGLAIS©","X","C43","ANGLAIS© X C43"]
[null,"16h 20              17h 50"]
["Mardi","8h 00                    9h 30","MEC DES FLUIDES©","MANSOURI-K","AP6","MEC DES FLUIDES© MANSOURI-K AP6","DESSIN(TP)","BENDERADJI","AT24","DESSIN(TP) BENDERADJI AT24"]
[null,"9h 40                 11h 10","ONDES ET VIBR©","MAAMIR","AP6","ONDES ET VIBR© MAAMIR AP6","DESSIN(TP)","BENDERADJI","AT24","DESSIN(TP) BENDERADJI AT24"]
[null,"11h20                12h 50"]
[null,"13h 00              14h 30","MDF(TD) ","MERAH","C43","MDF(TD)  MERAH C43","MECANIQUE RATIONNEL©","HACHEMANE","AP6","MECANIQUE RATIONNEL© HACHEMANE AP6"]
[null,"14h 40              16h 10"]
[null,"16h 20              17h 50"]
["Mercredi","8h 00                    9h 30","MECANIQUE RATIONNEL(TD)","BENDERADJI","B310","MECANIQUE RATIONNEL(TD) BENDERADJI B310","MECANIQUE DES FLUIDES©","MANSOURI-K","AP6","MECANIQUE DES FLUIDES© MANSOURI-K AP6"]
[null,"9h 40                 11h 10",null,null,null,null,"MECANIQUE RATIONNEL(TD)","BENDERADJI","B310","MECANIQUE RATIONNEL(TD) BENDERADJI B310"]
[null,"11h20                12h 50","MECANIQUE RATIONNEL©","HACHEMANE","AP5","MECANIQUE RATIONNEL© HACHEMANE AP5","INFORMATIQUE(TP)","RACHEDI","A27","INFORMATIQUE(TP) RACHEDI A27"]
[null,null,null,null,null,null,"METROLOGIE©","TALHI","AP6","METROLOGIE© TALHI AP6"]
[null,"14h 40              16h 10"]
[null,"16h 20              17h 50"]
["Jeudi","8h 00                     9h 30"]
[null,"9h 40                  11h 10","DESSIN(TP)","HACHEMANE","AT24","DESSIN(TP) HACHEMANE AT24","ONDES ET VIBR(TD)","GUERRACHE","B310","ONDES ET VIBR(TD) GUERRACHE B310"]
[null,"11h20                 12h 50","DESSIN(TP)","HACHEMANE","AT24","DESSIN(TP) HACHEMANE AT24","ONDES ET VIBR(TP)","X","B47","ONDES ET VIBR(TP) X B47"]
[null,"13h 00              14h 30","OND ET VIB(TP)","X","B47","OND ET VIB(TP) X B47"]
[null,"14h 40              16h 10"]
[null,"16h 20              17h 50"]
["Samedi","8h 00                     9h 30","PROBAT ET STAT©","BOUKABCHA","AP6","PROBAT ET STAT© BOUKABCHA AP6","TECHNOLOGIE DE BASE©","TOURAB","AP5","TECHNOLOGIE DE BASE© TOURAB AP5"]
[null,"9h 40                  11h 10","TECHNOLOGIE DE BASE©","TOURAB","AP6","TECHNOLOGIE DE BASE© TOURAB AP6","ANGLAIS©","X","B312","ANGLAIS© X B312"]
[null,"11h20                 12h 50","MATHEMATIQUE©","KHALFAOUI","AP6","MATHEMATIQUE© KHALFAOUI AP6","PROBAT ET STAT(TD)","BOUKABCHA","B312","PROBAT ET STAT(TD) BOUKABCHA B312"]